Workbook

Sheet MultiStrategy-Daily
A3: Day # | B3: Date | C3: FXQ | D3: FXIA | E3: FXBQ | F3: FXC | G3: V1 | H3: V2** | I3: V4 (EFT) * | J3: Multi Strategy Daily ROR | K3: ROR Above RF | L3: Actual VAMI | M3: Max VAMI | N3: DD | O3: S&P 500 | P3: S&P 500 ROR | Q3: S&P 500 VAMI | R3: EQ-SPX ROR | T3: Strategy weights
A4: 0 | B4: 2012-02-29 | L4: 1000 | M4: 1000 | O4: 1370 | Q4: 1000 | T4: FXQ | U4: FXIA | V4: FXBQ | W4: FXC | X4: V1 | Y4: V2 | Z4: V4(EFT)* | AA4: Overlever. | AB4: Period
A5: 1 | B5: 2012-03-01 | C5: -0.0006470588235 | G5: 0.00098 | I5: -0.001 | J5: =$AA$5*($T$5*C5+$X$5*G5+$Z$5*I5) -> -0.0002667968471 | K5: =IF(J5-RF/52<0,J5-RF/52,0) -> -0.0004591045394 | L5: =$L$4*(1+SUM($J$5:J5)) -> 999.7332032 | M5: =IF(L5>M4,L5,M4) -> 1000 | N5: =L5/M5-1 -> -0.0002667968471 | O5: 1376 | P5: =O5/O4-1 -> 0.004379562044 | Q5: =Q4*(1+P5) -> 1004.379562 | R5: =J5-P5 -> -0.004646358891 | T5: 0.3333 | X5: 0.3333 | Z5: 0.3333 | AA5: 1.2 | AB5: 1/Mar/2012-31/Aug/2012
A6: 2 | B6: 2012-03-02 | C6: 0.0005588235294 | G6: 0.00426 | I6: 0.01218 | J6: =$AA$5*($T$5*C6+$X$5*G6+$Z$5*I6) -> 0.006798849459 | K6: 0 | L6: =$L$4*(1+SUM($J$5:J6)) -> 1006.532053 | M6: 1006.532053 | N6: 0 | O6: 1369 | P6: -0.005087209302 | Q6: 999.270073 | R6: 0.01188605876 | T6: 0.25 | U6: 0.25 | X6: 0.25 | Z6: 0.25 | AA6: 1.2 | AB6: 1/Sep/2012-31/Dec/2012
A7: 3 | B7: 2012-03-05 | C7: 0.0003823529412 | G7: 0.00056 | I7: -0.00074 | J7: 8.093308235e-05 | K7: -0.00011137461 | L7: =$L$4*(1+SUM($J$5:J7)) -> 1006.612986 | M7: 1006.612986 | N7: 0 | O7: 1364 | P7: -0.00365230095 | Q7: 995.620438 | R7: 0.003733234032 | T7: 0.2 | U7: 0.2 | V7: 0.2 | X7: 0.2 | Z7: 0.2 | AA7: 1.2 | AB7: 1/Jan/2013-31/Jul/2013
A8: 4 | B8: 2012-03-06 | C8: -2.941176471e-05 | G8: -0.01702 | I8: 0.01132 | J8: -0.002291535529 | K8: -0.002483843222 | L8: =$L$4*(1+SUM($J$5:J8)) -> 1004.32145 | M8: 1006.612986 | N8: -0.002276481192 | O8: 1343 | P8: -0.01539589443 | Q8: 980.2919708 | R8: 0.0131043589 | T8: 0.1667 | U8: 0.1667 | V8: 0.1667 | W8: 0.1667 | X8: 0.1667 | Z8: 0.1667 | AA8: 1.2 | AB8: 1/Aug/2013-31/Jan/2014
A9: 5 | B9: 2012-03-07 | C9: 0.0004705882353 | G9: -0.00256 | I9: -0.00738 | J9: -0.003787385929 | K9: -0.003979693622 | L9: =$L$4*(1+SUM($J$5:J9)) -> 1000.534064 | M9: 1006.612986 | N9: -0.006038985733 | O9: 1353 | P9: 0.007446016381 | Q9: 987.5912409 | R9: -0.01123340231 | T9: 0.1429 | U9: 0.1429 | V9: 0.1429 | W9: 0.1429 | X9: 0.1429 | Y9: 0.1429 | Z9: 0.1429 | AA9: 1.2 | AB9: 1/Feb/2014 -13/Mar/2020
A10: 6 | B10: 2012-03-08 | C10: -0.0005588235294 | G10: 0.00572 | I10: 0.00984 | J10: 0.005999870541 | K10: 0 | L10: =$L$4*(1+SUM($J$5:J10)) -> 1006.533935 | M10: 1006.612986 | N10: -7.853158937e-05 | O10: 1366 | P10: 0.009608277901 | Q10: 997.080292 | R10: -0.00360840736 | T10: 0.1666 | U10: 0.1667 | V10: 0.1667 | X10: 0.1667 | Y10: 0.1667 | Z10: 0.1667 | AA10: 1.2 | AB10: 16/Mar/2020 Forward
A11: 7 | B11: 2012-03-09 | C11: -0.0005294117647 | G11: 0.00222 | I11: 0.01212 | J11: 0.005523682871 | K11: 0 | L11: =$L$4*(1+SUM($J$5:J11)) -> 1012.057618 | M11: 1012.057618 | N11: 0 | O11: 1371 | P11: 0.003660322108 | Q11: 1000.729927 | R11: 0.001863360762 | T11: 0.2 | U11: 0.2 | V11: 0.2 | X11: 0.2 | Z11: 0.2 | AA11: 1.2
A12: 8 | B12: 2012-03-12 | C12: -0.0002352941176 | G12: 0.00816 | I12: -0.00312 | J12: 0.001921690165 | K12: 0 | L12: =$L$4*(1+SUM($J$5:J12)) -> 1013.979308 | M12: 1013.979308 | N12: 0 | O12: 1372 | P12: 0.0007293946025 | Q12: 1001.459854 | R12: 0.001192295562
A13: 9 | B13: 2012-03-13 | C13: 0.0001470588235 | G13: 0.00424 | I13: -0.00596 | J13: -0.0006291135529 | K13: -0.0008214212452 | L13: =$L$4*(1+SUM($J$5:J13)) -> 1013.350194 | M13: 1013.979308 | N13: -0.000620440228 | O13: 1396 | P13: 0.01749271137 | Q13: 1018.978102 | R13: -0.01812182492
A14: 10 | B14: 2012-03-14 | C14: -0.0002058823529 | G14: -0.00738 | I14: -0.00486 | J14: -0.004977855106 | K14: -0.005170162798 | L14: =$L$4*(1+SUM($J$5:J14)) -> 1008.372339 | M14: 1013.979308 | N14: -0.005529667732 | O14: 1394 | P14: -0.001432664756 | Q14: 1017.518248 | R14: -0.003545190349 | U14: * EFT was replaced with V4 on June 3, 2013
A15: 11 | B15: 2012-03-15 | C15: 0.0002058823529 | G15: 0.0005 | I15: -0.01014 | J15: -0.003773269694 | K15: -0.003965577386 | L15: =$L$4*(1+SUM($J$5:J15)) -> 1004.599069 | M15: 1013.979308 | N15: -0.009250916938 | O15: 1401 | P15: 0.005021520803 | Q15: 1022.627737 | R15: -0.008794790498 | U15: ** The former V2 strategy was modified and replaced by a new one
A16: 12 | B16: 2012-03-16 | C16: 0.0004117647059 | G16: 0.00298 | I16: 0.00472 | J16: 0.003244381412 | K16: 0 | L16: =$L$4*(1+SUM($J$5:J16)) -> 1007.843451 | M16: 1013.979308 | N16: -0.006051264453 | O16: 1405 | P16: 0.002855103498 | Q16: 1025.547445 | R16: 0.0003892779143
A17: 13 | B17: 2012-03-19 | C17: 0.0002352941176 | G17: 0.00488 | I17: 0.00576 | J17: 0.004349682635 | K17: 0 | L17: =$L$4*(1+SUM($J$5:J17)) -> 1012.193134 | M17: 1013.979308 | N17: -0.001761549069 | O17: 1413 | P17: 0.005693950178 | Q17: 1031.386861 | R17: -0.001344267543
A18: 14 | B18: 2012-03-20 | C18: 0.0004117647059 | G18: 0.00592 | I18: -0.00546 | J18: 0.0003486710118 | K18: 0 | L18: =$L$4*(1+SUM($J$5:J18)) -> 1012.541805 | M18: 1013.979308 | N18: -0.001417685039 | O18: 1405 | P18: -0.005661712668 | Q18: 1025.547445 | R18: 0.00601038368
A19: 15 | B19: 2012-03-21 | C19: -0.0007941176471 | G19: 0.00448 | I19: 0.00748 | J19: 0.004465906306 | K19: 0 | L19: =$L$4*(1+SUM($J$5:J19)) -> 1017.007711 | M19: 1017.007711 | N19: 0 | O19: 1405 | P19: 0 | Q19: 1025.547445 | R19: 0.004465906306
A20: 16 | B20: 2012-03-22 | C20: -0.0007352941176 | G20: -2e-05 | I20: -0.00688 | J20: -0.003053812235 | K20: -0.003246119928 | L20: =$L$4*(1+SUM($J$5:J20)) -> 1013.953899 | M20: 1017.007711 | N20: -0.00300274246 | O20: 1393 | P20: -0.008540925267 | Q20: 1016.788321 | R20: 0.005487113032
A21: 17 | B21: 2012-03-23 | C21: -0.0001176470588 | G21: 0.00038 | I21: -0.00634 | J21: -0.002430815718 | K21: -0.00262312341 | L21: =$L$4*(1+SUM($J$5:J21)) -> 1011.523083 | M21: 1017.007711 | N21: -0.005392906951 | O21: 1398 | P21: 0.003589375449 | Q21: 1020.437956 | R21: -0.006020191166
A22: 18 | B22: 2012-03-26 | C22: 0.001764705882 | G22: 0.0132 | I22: 0.00932 | J22: 0.009712910965 | K22: 0 | L22: =$L$4*(1+SUM($J$5:J22)) -> 1021.235994 | M22: 1021.235994 | N22: 0 | O22: 1417 | P22: 0.01359084406 | Q22: 1034.306569 | R22: -0.003877933098
A23: 19 | B23: 2012-03-27 | C23: 0.0001176470588 | G23: -0.02116 | I23: -0.00338 | J23: -0.009767964282 | K23: -0.009960271975 | L23: =$L$4*(1+SUM($J$5:J23)) -> 1011.46803 | M23: 1021.235994 | N23: -0.009564845287 | O23: 1414 | P23: -0.002117148906 | Q23: 1032.116788 | R23: -0.007650815376
A24: 20 | B24: 2012-03-28 | C24: 0.001147058824 | G24: -0.00124 | I24: -0.01064 | J24: -0.004292747153 | K24: -0.004485054845 | L24: =$L$4*(1+SUM($J$5:J24)) -> 1007.175282 | M24: 1021.235994 | N24: -0.01376832732 | O24: 1405 | P24: -0.006364922207 | Q24: 1025.547445 | R24: 0.002072175054
A25: 21 | B25: 2012-03-29 | C25: -0.0002941176471 | G25: -0.00078 | I25: 0.00066 | J25: -0.0001656304941 | K25: -0.0003579381864 | L25: =$L$4*(1+SUM($J$5:J25)) -> 1007.009652 | M25: 1021.235994 | N25: -0.01393051363 | O25: 1394 | P25: -0.007829181495 | Q25: 1017.518248 | R25: 0.007663551001
A26: 22 | B26: 2012-03-30 | C26: -0.0001176470588 | G26: 0.00458 | I26: -0.00146 | J26: 0.001200821082 | K26: 0 | L26: =$L$4*(1+SUM($J$5:J26)) -> 1008.210473 | M26: 1021.235994 | N26: -0.0127546629 | O26: 1410 | P26: 0.01147776184 | Q26: 1029.19708 | R26: -0.01027694075
A27: 23 | B27: 2012-04-02 | C27: 0.0005588235294 | G27: -0.0056 | I27: -0.00208 | J27: -0.002848185741 | K27: -0.003040493433 | L27: =$L$26*(1+SUM($J$27:J27)) -> 1005.338902 | M27: 1021.235994 | N27: -0.015566521 | O27: 1419 | P27: 0.006382978723 | Q27: 1035.766423 | R27: -0.009231164465
A28: 24 | B28: 2012-04-03 | C28: 0.0002941176471 | G28: -0.00454 | I28: -0.00196 | J28: -0.002482104706 | K28: -0.002674412398 | L28: =$L$26*(1+SUM($J$27:J28)) -> 1002.836418 | M28: 1021.235994 | N28: -0.01801696729 | O28: 1413 | P28: -0.00422832981 | Q28: 1031.386861 | R28: 0.001746225104
A29: 25 | B29: 2012-04-04 | C29: 0.0002352941176 | G29: 0.0007 | I29: 0.0098 | J29: 0.004293688235 | K29: 0 | L29: =$L$26*(1+SUM($J$27:J29)) -> 1007.16536 | M29: 1021.235994 | N29: -0.0137780436 | O29: 1401 | P29: -0.008492569002 | Q29: 1022.627737 | R29: 0.01278625724
A30: 26 | B30: 2012-04-05 | C30: -5.882352941e-05 | G30: 0.00312 | I30: 0.00426 | J30: 0.002928177741 | K30: 0 | L30: =$L$26*(1+SUM($J$27:J30)) -> 1010.117579 | M30: 1021.235994 | N30: -0.01088721378 | O30: 1398 | P30: -0.002141327623 | Q30: 1020.437956 | R30: 0.005069505364
A31: 27 | B31: 2012-04-06 | C31: 5.882352941e-05 | G31: 0 | I31: -0.00728 | J31: -0.002888181741 | K31: -0.003080489433 | L31: =$L$26*(1+SUM($J$27:J31)) -> 1007.205684 | M31: 1021.235994 | N31: -0.01373855774 | O31: 1398 | P31: 0 | Q31: 1020.437956 | R31: -0.002888181741
A32: 28 | B32: 2012-04-09 | C32: 0.0001764705882 | G32: 0.00438 | I32: 0.00418 | J32: 0.003494238776 | K32: 0 | L32: =$L$26*(1+SUM($J$27:J32)) -> 1010.728612 | M32: 1021.235994 | N32: -0.0102888868 | O32: 1382 | P32: -0.01144492132 | Q32: 1008.759124 | R32: 0.01493916009
A33: 29 | B33: 2012-04-10 | C33: -0.0002352941176 | G33: 0.00656 | I33: -0.00276 | J33: 0.001425739765 | K33: 0 | L33: =$L$26*(1+SUM($J$27:J33)) -> 1012.166058 | M33: 1021.235994 | N33: -0.008881331866 | O33: 1360 | P33: -0.01591895803 | Q33: 992.7007299 | R33: 0.0173446978
A34: 30 | B34: 2012-04-11 | C34: 0.0006764705882 | G34: 0.001 | I34: 0.00318 | J34: 0.001942393976 | K34: 0 | L34: =$L$26*(1+SUM($J$27:J34)) -> 1014.1244 | M34: 1021.235994 | N34: -0.00696371247 | O34: 1369 | P34: 0.006617647059 | Q34: 999.270073 | R34: -0.004675253082
A35: 31 | B35: 2012-04-12 | C35: -0.0006764705882 | G35: 0.01758 | I35: -0.01086 | J35: 0.002417170024 | K35: 0 | L35: =$L$26*(1+SUM($J$27:J35)) -> 1016.561416 | M35: 1021.235994 | N35: -0.004577372636 | O35: 1387 | P35: 0.01314828342 | Q35: 1012.408759 | R35: -0.0107311134
A36: 32 | B36: 2012-04-13 | C36: 0.0002352941176 | G36: -0.00834 | I36: 0.00392 | J36: -0.001673714965 | K36: -0.001866022657 | L36: =$L$26*(1+SUM($J$27:J36)) -> 1014.873959 | M36: 1021.235994 | N36: -0.00622973993 | O36: 1370 | P36: -0.01225666907 | Q36: 1000 | R36: 0.01058295411
A37: 33 | B37: 2012-04-16 | C37: 0 | G37: -0.00396 | I37: 0.00828 | J37: 0.0017278272 | K37: 0 | L37: =$L$26*(1+SUM($J$27:J37)) -> 1016.615973 | M37: 1021.235994 | N37: -0.004523950584 | O37: 1372 | P37: 0.001459854015 | Q37: 1001.459854 | R37: =J37-P37 -> 0.0002679731854
A38: 34 | B38: 2012-04-17 | C38: -0.0002058823529 | G38: 0.01232 | I38: -0.00378 | J38: 0.003333313694 | K38: 0 | L38: =$L$26*(1+SUM($J$27:J38)) -> 1019.976654 | M38: 1021.235994 | N38: -0.001233152182 | O38: 1388 | P38: 0.01166180758 | Q38: 1013.138686 | R38: -0.008328493886
A39: 35 | B39: 2012-04-18 | C39: -2.941176471e-05 | G39: -0.00362 | I39: 0.00352 | J39: -5.175952941e-05 | K39: -0.0002440672217 | L39: =$L$26*(1+SUM($J$27:J39)) -> 1019.92447 | M39: 1021.235994 | N39: -0.001284251536 | O39: 1385 | P39: -0.002161383285 | Q39: 1010.948905 | R39: 0.002109623756
A40: 36 | B40: 2012-04-19 | C40: -0.0001176470588 | G40: 0.00172 | I40: 0.0016 | J40: 0.001280813082 | K40: 0 | L40: =$L$26*(1+SUM($J$27:J40)) -> 1021.215799 | M40: 1021.235994 | N40: -1.977479283e-05 | O40: 1377 | P40: -0.005776173285 | Q40: 1005.109489 | R40: 0.007056986368
A41: 37 | B41: 2012-04-20 | C41: 0.0002647058824 | G41: -0.00234 | I41: 0.00304 | J41: 0.0003858437647 | K41: 0 | L41: =$L$26*(1+SUM($J$27:J41)) -> 1021.604811 | M41: 1021.604811 | N41: 0 | O41: 1381 | P41: 0.00290486565 | Q41: 1008.029197 | R41: -0.002519021885
A42: 38 | B42: 2012-04-23 | C42: 0.0002058823529 | G42: -0.00442 | I42: 0.0023 | J42: -0.0007655704941 | K42: -0.0009578781864 | L42: =$L$26*(1+SUM($J$27:J42)) -> 1020.832955 | M42: 1021.604811 | N42: -0.0007555330415 | O42: 1367 | P42: -0.01013758146 | Q42: 997.810219 | R42: 0.009372010969
A43: 39 | B43: 2012-04-24 | C43: -0.0001764705882 | G43: -0.00196 | I43: 0.0014 | J43: -0.0002945587765 | K43: -0.0004868664688 | L43: =$L$26*(1+SUM($J$27:J43)) -> 1020.535977 | M43: 1021.604811 | N43: -0.001046229836 | O43: 1372 | P43: 0.003657644477 | Q43: 1001.459854 | R43: -0.003952203253
A44: 40 | B44: 2012-04-25 | C44: 0.0002941176471 | G44: 0.00856 | I44: -0.0098 | J44: -0.0003783151059 | K44: -0.0005706227982 | L44: =$L$26*(1+SUM($J$27:J44)) -> 1020.154556 | M44: 1021.604811 | N44: -0.001419584824 | O44: 1391 | P44: 0.0138483965 | Q44: 1015.328467 | R44: -0.01422671161
A45: 41 | B45: 2012-04-26 | C45: -0.0004411764706 | G45: 0.00488 | I45: -0.00594 | J45: -0.0006004105412 | K45: -0.0007927182335 | L45: =$L$26*(1+SUM($J$27:J45)) -> 1019.549216 | M45: 1021.604811 | N45: -0.002012123337 | O45: 1400 | P45: 0.006470165349 | Q45: 1021.89781 | R45: -0.00707057589
A46: 42 | B46: 2012-04-27 | C46: -0.0003529411765 | G46: 0.00172 | I46: 0.00586 | J46: 0.002890534447 | K46: 0 | L46: =$L$26*(1+SUM($J$27:J46)) -> 1022.463483 | M46: 1022.463483 | N46: 0 | O46: 1401 | P46: 0.0007142857143 | Q46: 1022.627737 | R46: 0.002176248733
A47: 43 | B47: 2012-04-30 | C47: 0.0002941176471 | G47: -0.00584 | I47: -0.00328 | J47: -0.003529999906 | K47: -0.003722307598 | L47: =$L$26*(1+SUM($J$27:J47)) -> 1018.9045 | M47: 1022.463483 | N47: -0.003480792159 | O47: 1398 | P47: -0.002141327623 | Q47: 1020.437956 | R47: -0.001388672283
A48: 44 | B48: 2012-05-01 | C48: -0.001441176471 | G48: -0.00344 | I48: 0.0004 | J48: -0.001792291341 | K48: -0.001984599033 | L48: =$L$47*(1+SUM($J$48:J48)) -> 1017.078326 | M48: 1022.463483 | N48: -0.005266844907 | O48: 1411 | P48: 0.009298998569 | Q48: 1029.927007 | R48: -0.01109128991
A49: 45 | B49: 2012-05-02 | C49: 0 | G49: -0.00116 | I49: 0.01122 | J49: 0.0040235976 | K49: 0 | L49: =$L$47*(1+SUM($J$48:J49)) -> 1021.177988 | M49: 1022.463483 | N49: -0.001257252614 | O49: 1402 | P49: -0.006378454996 | Q49: 1023.357664 | R49: 0.0104020526
A50: 46 | B50: 2012-05-03 | C50: 0.0006176470588 | G50: -0.003 | I50: 0.00176 | J50: -0.0002489162824 | K50: =IF(J50-RF/52<0,J50-RF/52,0) -> -0.0004412239747 | L50: =$L$47*(1+SUM($J$48:J50)) -> 1020.924366 | M50: 1022.463483 | N50: -0.00150530247 | O50: 1392 | P50: -0.007132667618 | Q50: 1016.058394 | R50: 0.006883751335
A51: 47 | B51: 2012-05-04 | C51: -0.0003235294118 | G51: 0.00554 | I51: 0.00424 | J51: 0.003782209976 | K51: 0 | L51: =$L$47*(1+SUM($J$48:J51)) -> 1024.778077 | M51: 1024.778077 | N51: 0 | O51: 1369 | P51: -0.01652298851 | Q51: 999.270073 | R51: 0.02030519848
A52: 48 | B52: 2012-05-07 | C52: 0.0006176470588 | G52: -0.00408 | I52: 0.00108 | J52: -0.0009528458824 | K52: -0.001145153575 | L52: =$L$47*(1+SUM($J$48:J52)) -> 1023.807218 | M52: 1024.778077 | N52: -0.0009473845892 | O52: 1370 | P52: 0.0007304601899 | Q52: 1000 | R52: -0.001683306072
A53: 49 | B53: 2012-05-08 | C53: -0.0002058823529 | G53: -0.00458 | I53: -0.00628 | J53: -0.004425910306 | K53: -0.004618217998 | L53: =$L$47*(1+SUM($J$48:J53)) -> 1019.297638 | M53: 1024.778077 | N53: -0.005347927525 | O53: 1364 | P53: -0.004379562044 | Q53: 995.620438 | R53: -4.634826209e-05
A54: 50 | B54: 2012-05-09 | C54: 0 | G54: 0.00278 | I54: 0.00208 | J54: 0.0019438056 | K54: 0 | L54: =$L$47*(1+SUM($J$48:J54)) -> 1021.27819 | M54: 1024.778077 | N54: -0.003415262964 | O54: 1355 | P54: -0.006598240469 | Q54: 989.0510949 | R54: 0.008542046069
A55: 51 | B55: 2012-05-10 | C55: -0.0001764705882 | G55: -0.00248 | I55: -0.00634 | J55: -0.003598228376 | K55: -0.003790536069 | L55: =$L$47*(1+SUM($J$48:J55)) -> 1017.611939 | M55: 1024.778077 | N55: -0.006992867879 | O55: 1358 | P55: 0.00221402214 | Q55: 991.2408759 | R55: -0.005812250517
A56: 52 | B56: 2012-05-11 | C56: -0.0003823529412 | G56: -0.00038 | I56: 0.00056 | J56: -8.093308235e-05 | K56: =IF(J56-RF/52<0,J56-RF/52,0) -> -0.0002732407747 | L56: =$L$47*(1+SUM($J$48:J56)) -> 1017.529476 | M56: 1024.778077 | N56: -0.007073337088 | O56: 1353 | P56: -0.003681885125 | Q56: 987.5912409 | R56: 0.003600952043
A57: 53 | B57: 2012-05-14 | C57: -0.0008529411765 | G57: 0.00276 | I57: 0.00844 | J57: 0.004138409647 | K57: 0 | L57: =$L$47*(1+SUM($J$48:J57)) -> 1021.74612 | M57: =IF(L57>M56,L57,M56) -> 1024.778077 | N57: =L57/M57-1 -> -0.002958646984 | O57: 1338 | P57: =O57/O56-1 -> -0.0110864745 | Q57: =Q56*(1+P57) -> 976.6423358 | R57: =J57-P57 -> 0.01522488415
A58: 54 | B58: 2012-05-15 | C58: -0.0004705882353 | G58: 0.00624 | I58: 0.00914 | J58: 0.005963168329 | K58: 0 | L58: =$L$47*(1+SUM($J$48:J58)) -> 1027.822019 | M58: 1027.822019 | N58: 0 | O58: 1331 | P58: -0.005231689088 | Q58: 971.5328467 | R58: 0.01119485742
A59: 55 | B59: 2012-05-16 | C59: -0.001058823529 | G59: -0.00686 | I59: -0.00402 | J59: -0.004775051859 | K59: -0.004967359551 | L59: =$L$47*(1+SUM($J$48:J59)) -> 1022.956698 | M59: 1027.822019 | N59: -0.00473362288 | O59: 1325 | P59: -0.004507888805 | Q59: 967.1532847 | R59: -0.0002671630534
A60: 56 | B60: 2012-05-17 | C60: -0.0002647058824 | G60: 0.00096 | I60: -0.01448 | J60: -0.005513330965 | K60: -0.005705638657 | L60: =$L$47*(1+SUM($J$48:J60)) -> 1017.33914 | M60: 1027.822019 | N60: -0.01019911946 | O60: 1305 | P60: -0.01509433962 | Q60: 952.5547445 | R60: 0.009581008658
A61: 57 | B61: 2012-05-18 | C61: 0.0007647058824 | G61: 0.00016 | I61: 0.0025 | J61: 0.001369745365 | K61: 0 | L61: =$L$47*(1+SUM($J$48:J61)) -> 1018.73478 | M61: 1027.822019 | N61: -0.008841258185 | O61: 1295 | P61: -0.007662835249 | Q61: 945.2554745 | R61: 0.009032580614
A62: 58 | B62: 2012-05-21 | C62: -0.0002058823529 | G62: 0.01492 | I62: -0.00234 | J62: 0.004949152094 | K62: 0 | L62: =$L$47*(1+SUM($J$48:J62)) -> 1023.777493 | M62: 1027.822019 | N62: -0.003935045586 | O62: 1316 | P62: 0.01621621622 | Q62: 960.5839416 | R62: -0.01126706412
A63: 59 | B63: 2012-05-22 | C63: 0.0002352941176 | G63: -0.0013 | I63: -0.00366 | J63: -0.001889693365 | K63: -0.002082001057 | L63: =$L$47*(1+SUM($J$48:J63)) -> 1021.852076 | M63: 1027.822019 | N63: -0.005808343722 | O63: 1317 | P63: 0.0007598784195 | Q63: 961.3138686 | R63: -0.002649571784
A64: 60 | B64: 2012-05-23 | C64: 0.0001176470588 | G64: -0.00352 | I64: 0.004 | J64: 0.0002390349176 | K64: 0 | L64: =$L$47*(1+SUM($J$48:J64)) -> 1022.09563 | M64: 1027.822019 | N64: -0.005571382703 | O64: 1319 | P64: 0.001518602885 | Q64: 962.7737226 | R64: -0.001279567968
A65: 61 | B65: 2012-05-24 | C65: 2.941176471e-05 | G65: -0.00762 | I65: -0.00866 | J65: -0.006499585271 | K65: -0.006691892963 | L65: =$L$47*(1+SUM($J$48:J65)) -> 1015.473173 | M65: 1027.822019 | N65: -0.01201457672 | O65: 1321 | P65: 0.001516300227 | Q65: 964.2335766 | R65: -0.008015885498
A66: 62 | B66: 2012-05-25 | C66: -0.0003235294118 | G66: -0.00084 | I66: 0.00186 | J66: 0.0002785603765 | K66: 0 | L66: =$L$47*(1+SUM($J$48:J66)) -> 1015.756999 | M66: 1027.822019 | N66: -0.01173843317 | O66: 1318 | P66: -0.002271006813 | Q66: 962.0437956 | R66: 0.002549567189
A67: 63 | B67: 2012-05-28 | C67: 0.001235294118 | G67: 0 | I67: -0.0096 | J67: -0.003345547765 | K67: -0.003537855457 | L67: =$L$47*(1+SUM($J$48:J67)) -> 1012.348206 | M67: 1027.822019 | N67: -0.01505495452 | O67: 1318 | P67: 0 | Q67: 962.0437956 | R67: -0.003345547765
A68: 64 | B68: 2012-05-29 | C68: 2.941176471e-05 | G68: 0.00422 | I68: -0.00188 | J68: 0.0009476699294 | K68: 0 | L68: =$L$47*(1+SUM($J$48:J68)) -> 1013.313791 | M68: 1027.822019 | N68: -0.0141155067 | O68: 1333 | P68: 0.01138088012 | Q68: 972.9927007 | R68: -0.01043321019
A69: 65 | B69: 2012-05-30 | C69: 0.0001176470588 | G69: -0.00222 | I69: 0.00886 | J69: 0.002702788518 | K69: 0 | L69: =$L$47*(1+SUM($J$48:J69)) -> 1016.067674 | M69: 1027.822019 | N69: -0.01143616793 | O69: 1313 | P69: -0.01500375094 | Q69: 958.3941606 | R69: 0.01770653946
A70: 66 | B70: 2012-05-31 | C70: 2.941176471e-05 | G70: 0.00114 | I70: -0.00944 | J70: =$AA$5*($T$5*C70+$X$5*G70+$Z$5*I70) -> -0.003307904471 | K70: -0.003500212163 | L70: =$L$47*(1+SUM($J$48:J70)) -> 1012.697236 | M70: 1027.822019 | N70: -0.01471537258 | O70: 1310 | P70: -0.002284843869 | Q70: 956.2043796 | R70: -0.001023060602
A71: 67 | B71: 2012-06-01 | C71: 0.0003235294118 | G71: 0.00714 | I71: -0.00324 | J71: 0.001689242824 | K71: =IF(J71-RF/52<0,J71-RF/52,0) -> 0 | L71: =$L$70*(1+SUM($J$71:J71)) -> 1014.407927 | M71: =IF(L71>M70,L71,M70) -> 1027.822019 | N71: =L71/M71-1 -> -0.0130509876 | O71: 1278 | P71: =O71/O70-1 -> -0.02442748092 | Q71: =Q70*(1+P71) -> 932.8467153 | R71: =J71-P71 -> 0.02611672374
A72: 68 | B72: 2012-06-04 | C72: -5.882352941e-05 | G72: 0.00502 | I72: 0.00574 | J72: 0.004280042541 | K72: 0 | L72: =$L$70*(1+SUM($J$71:J72)) -> 1018.742314 | M72: 1027.822019 | N72: -0.008833927477 | O72: 1278 | P72: 0 | Q72: 932.8467153 | R72: 0.004280042541
A73: 69 | B73: 2012-06-05 | C73: -2.941176471e-05 | G73: 0.00678 | I73: -0.00316 | J73: 0.001436091671 | K73: 0 | L73: =$L$70*(1+SUM($J$71:J73)) -> 1020.19664 | M73: 1027.822019 | N73: -0.007418968431 | O73: 1285 | P73: 0.005477308294 | Q73: 937.9562044 | R73: -0.004041216624
A74: 70 | B74: 2012-06-06 | C74: 0.0003529411765 | G74: 0.01146 | I74: 0.01178 | J74: 0.009436232753 | K74: 0 | L74: =$L$70*(1+SUM($J$71:J74)) -> 1029.752687 | M74: 1029.752687 | N74: 0 | O74: 1315 | P74: 0.0233463035 | Q74: 959.8540146 | R74: -0.01391007075
A75: 71 | B75: 2012-06-07 | C75: -0.0002058823529 | G75: 0.00422 | I75: -0.0088 | J75: -0.001914161506 | K75: -0.002106469198 | L75: =$L$70*(1+SUM($J$71:J75)) -> 1027.814221 | M75: 1029.752687 | N75: -0.001882457885 | O75: 1315 | P75: 0 | Q75: 959.8540146 | R75: -0.001914161506
A76: 72 | B76: 2012-06-08 | C76: 0.0006470588235 | G76: 0.00404 | I76: 0.00758 | J76: 0.004906332847 | K76: 0 | L76: =$L$70*(1+SUM($J$71:J76)) -> 1032.782851 | M76: 1032.782851 | N76: 0 | O76: 1326 | P76: 0.008365019011 | Q76: 967.8832117 | R76: -0.003458686164
A77: 73 | B77: 2012-06-11 | C77: 0.0008823529412 | G77: -0.00244 | I77: 0.01054 | J77: 0.003592581882 | K77: =IF(J77-RF/52<0,J77-RF/52,0) -> 0 | L77: =$L$70*(1+SUM($J$71:J77)) -> 1036.421049 | M77: =IF(L77>M76,L77,M76) -> 1036.421049 | N77: =L77/M77-1 -> 0 | O77: 1309 | P77: =O77/O76-1 -> -0.01282051282 | Q77: =Q76*(1+P77) -> 955.4744526 | R77: =J77-P77 -> 0.0164130947
A78: 74 | B78: 2012-06-12 | C78: 8.823529412e-05 | G78: 0.00244 | I78: 0.00288 | J78: 0.002163077788 | K78: 0 | L78: =$L$70*(1+SUM($J$71:J78)) -> 1038.611591 | M78: 1038.611591 | N78: 0 | O78: 1323 | P78: 0.01069518717 | Q78: 965.6934307 | R78: -0.008532109378
A79: 75 | B79: 2012-06-13 | C79: -0.0001176470588 | G79: -0.00328 | I79: 0.00452 | J79: 0.0004488962824 | K79: 0 | L79: =$L$70*(1+SUM($J$71:J79)) -> 1039.066188 | M79: 1039.066188 | N79: 0 | O79: 1315 | P79: -0.00604686319 | Q79: 959.8540146 | R79: 0.006495759472
A80: 76 | B80: 2012-06-14 | C80: -0.0002941176471 | G80: 0.00232 | I80: -0.01226 | J80: -0.004093237694 | K80: -0.004285545386 | L80: =$L$70*(1+SUM($J$71:J80)) -> 1034.920977 | M80: 1039.066188 | N80: -0.003989361358 | O80: 1329 | P80: 0.01064638783 | Q80: 970.0729927 | R80: -0.01473962553
A81: 77 | B81: 2012-06-15 | C81: 0.0002058823529 | G81: 0.00542 | I81: -0.00054 | J81: 0.002034149506 | K81: 0 | L81: =$L$70*(1+SUM($J$71:J81)) -> 1036.980955 | M81: 1039.066188 | N81: -0.002006833579 | O81: 1343 | P81: 0.01053423627 | Q81: 980.2919708 | R81: -0.008500086762
A82: 78 | B82: 2012-06-18 | C82: 5.882352941e-05 | G82: 0.01426 | I82: 0.00622 | J82: 0.008214707859 | K82: 0 | L82: =$L$70*(1+SUM($J$71:J82)) -> 1045.299967 | M82: 1045.299967 | N82: 0 | O82: 1345 | P82: 0.001489203276 | Q82: 981.7518248 | R82: 0.006725504583
A83: 79 | B83: 2012-06-19 | C83: -0.0003823529412 | G83: 0.00256 | I83: -0.00122 | J83: 0.0003830205176 | K83: 0 | L83: =$L$70*(1+SUM($J$71:J83)) -> 1045.68785 | M83: 1045.68785 | N83: 0 | O83: 1358 | P83: 0.009665427509 | Q83: 991.2408759 | R83: -0.009282406992
A84: 80 | B84: 2012-06-20 | C84: 0.0008823529412 | G84: -0.01544 | I84: -0.00406 | J84: -0.007446314118 | K84: -0.00763862181 | L84: =$L$70*(1+SUM($J$71:J84)) -> 1038.146989 | M84: 1045.68785 | N84: -0.007211388866 | O84: 1354 | P84: -0.0029455081 | Q84: 988.3211679 | R84: -0.004500806017
A85: 81 | B85: 2012-06-21 | C85: 8.823529412e-05 | G85: 0.00228 | I85: 0.00542 | J85: 0.003114982588 | K85: 0 | L85: =$L$70*(1+SUM($J$71:J85)) -> 1041.301523 | M85: 1045.68785 | N85: -0.004194681486 | O85: 1325 | P85: -0.02141802068 | Q85: 967.1532847 | R85: 0.02453300327
A86: 82 | B86: 2012-06-22 | C86: 8.823529412e-05 | G86: 0.00714 | I86: -0.00076 | J86: 0.002587035388 | K86: 0 | L86: =$L$70*(1+SUM($J$71:J86)) -> 1043.921406 | M86: 1045.68785 | N86: -0.001689264994 | O86: 1335 | P86: 0.007547169811 | Q86: 974.4525547 | R86: -0.004960134423
A87: 83 | B87: 2012-06-25 | C87: -0.0005882352941 | G87: -0.00848 | I87: 0.00708 | J87: -0.0007952145882 | K87: -0.0009875222805 | L87: =$L$70*(1+SUM($J$71:J87)) -> 1043.116095 | M87: 1045.68785 | N87: -0.002459391198 | O87: 1314 | P87: -0.01573033708 | Q87: 959.1240876 | R87: 0.01493512249
A88: 84 | B88: 2012-06-26 | C88: 0.001411764706 | G88: -0.00434 | I88: -0.00244 | J88: -0.002147079388 | K88: -0.002339387081 | L88: =$L$70*(1+SUM($J$71:J88)) -> 1040.941753 | M88: 1045.68785 | N88: -0.00453873195 | O88: 1321 | P88: 0.005327245053 | Q88: 964.2335766 | R88: -0.007474324442
A89: 85 | B89: 2012-06-27 | C89: 8.823529412e-05 | G89: -0.00276 | I89: -0.00942 | J89: -0.004836222212 | K89: -0.005028529904 | L89: =$L$70*(1+SUM($J$71:J89)) -> 1036.044125 | M89: 1045.68785 | N89: -0.009222375221 | O89: 1332 | P89: 0.008327024981 | Q89: 972.2627737 | R89: -0.01316324719
A90: 86 | B90: 2012-06-28 | C90: 0.0004117647059 | G90: -0.00112 | I90: -0.00466 | J90: -0.002147079388 | K90: -0.002339387081 | L90: =$L$70*(1+SUM($J$71:J90)) -> 1033.869783 | M90: 1045.68785 | N90: -0.01130171597 | O90: 1329 | P90: -0.002252252252 | Q90: 970.0729927 | R90: 0.000105172864
A91: 87 | B91: 2012-06-29 | C91: 0.0007941176471 | G91: 0.00772 | I91: 0.01904 | J91: 0.01102054489 | K91: 0 | L91: =$L$70*(1+SUM($J$71:J91)) -> 1045.030259 | M91: 1045.68785 | N91: -0.0006288604509 | O91: 1362 | P91: 0.02483069977 | Q91: 994.1605839 | R91: -0.01381015488
A92: 88 | B92: 2012-07-02 | C92: 0 | G92: 0.01164 | I92: 0.00392 | J92: 0.0062233776 | K92: 0 | L92: =$L$91*(1+SUM($J$92:J92)) -> 1051.533877 | M92: 1051.533877 | N92: 0 | O92: 1366 | P92: 0.002936857562 | Q92: 997.080292 | R92: 0.003286520038
A93: 89 | B93: 2012-07-03 | C93: -0.0001 | G93: 0.00116 | I93: -0.0024 | J93: -0.0005359464 | K93: -0.0007282540923 | L93: =$L$91*(1+SUM($J$92:J93)) -> 1050.973796 | M93: 1051.533877 | N93: -0.0005326316322 | O93: 1374 | P93: 0.005856515373 | Q93: 1002.919708 | R93: -0.006392461773
A94: 90 | B94: 2012-07-04 | C94: -0.0002 | G94: 0 | I94: -0.00056 | J94: -0.0003039696 | K94: -0.0004962772923 | L94: =$L$91*(1+SUM($J$92:J94)) -> 1050.656139 | M94: 1051.533877 | N94: -0.0008347212147 | O94: 1374 | P94: 0 | Q94: 1002.919708 | R94: -0.0003039696
A95: 91 | B95: 2012-07-05 | C95: -0.00185 | G95: -0.00164 | I95: 0.01312 | J95: 0.0038516148 | K95: 0 | L95: =$L$91*(1+SUM($J$92:J95)) -> 1054.681193 | M95: 1054.681193 | N95: 0 | O95: 1368 | P95: -0.004366812227 | Q95: 998.540146 | R95: 0.008218427027
A96: 92 | B96: 2012-07-06 | C96: 0.001 | G96: -0.00334 | I96: 0.00878 | J96: 0.0025757424 | K96: 0 | L96: =$L$91*(1+SUM($J$92:J96)) -> 1057.372922 | M96: 1057.372922 | N96: 0 | O96: 1355 | P96: -0.009502923977 | Q96: 989.0510949 | R96: 0.01207866638
A97: 93 | B97: 2012-07-09 | C97: 0.00015 | G97: -0.00096 | I97: -0.00022 | J97: -0.0004119588 | K97: -0.0006042664923 | L97: =$L$91*(1+SUM($J$92:J97)) -> 1056.942412 | M97: 1057.372922 | N97: -0.0004071500248 | O97: 1352 | P97: -0.00221402214 | Q97: 986.8613139 | R97: 0.00180206334
A98: 94 | B98: 2012-07-10 | C98: -0.0015 | G98: -0.00704 | I98: 0.00334 | J98: -0.002079792 | K98: -0.002272099692 | L98: =$L$91*(1+SUM($J$92:J98)) -> 1054.768967 | M98: 1057.372922 | N98: -0.002462664713 | O98: 1341 | P98: -0.008136094675 | Q98: 978.8321168 | R98: 0.006056302675
A99: 95 | B99: 2012-07-11 | C99: -0.002 | G99: -0.00462 | I99: -0.00422 | J99: -0.0043355664 | K99: -0.004527874092 | L99: =$L$91*(1+SUM($J$92:J99)) -> 1050.238169 | M99: 1057.372922 | N99: -0.006747622256 | O99: 1341 | P99: 0 | Q99: 978.8321168 | R99: -0.0043355664
A100: 96 | B100: 2012-07-12 | C100: 0.0035 | G100: -0.00286 | I100: 0.00268 | J100: 0.0013278672 | K100: 0 | L100: =$L$91*(1+SUM($J$92:J100)) -> 1051.62583 | M100: 1057.372922 | N100: -0.005435255186 | O100: 1335 | P100: -0.004474272931 | Q100: 974.4525547 | R100: 0.005802140131
A101: 97 | B101: 2012-07-13 | C101: -5e-05 | G101: 0.00058 | I101: 0.00142 | J101: 0.000779922 | K101: 0 | L101: =$L$91*(1+SUM($J$92:J101)) -> 1052.440872 | M101: 1057.372922 | N101: -0.004664437178 | O101: 1357 | P101: 0.01647940075 | Q101: 990.5109489 | R101: -0.01569947875
A102: 98 | B102: 2012-07-16 | C102: -0.0002 | G102: 0.0049 | I102: 0.00436 | J102: 0.0036236376 | K102: 0 | L102: =$L$91*(1+SUM($J$92:J102)) -> 1056.227683 | M102: 1057.372922 | N102: -0.001083098124 | O102: 1354 | P102: -0.002210759027 | Q102: 988.3211679 | R102: 0.005834396627
A103: 99 | B103: 2012-07-17 | C103: 0.00065 | G103: 0.00536 | I103: 0.00092 | J103: 0.0027717228 | K103: 0 | L103: =$L$91*(1+SUM($J$92:J103)) -> 1059.124217 | M103: 1059.124217 | N103: 0 | O103: 1364 | P103: 0.007385524372 | Q103: 995.620438 | R103: -0.004613801572
A104: 100 | B104: 2012-07-18 | C104: 0.0002 | G104: -0.00116 | I104: -0.00914 | J104: -0.004039596 | K104: -0.004231903692 | L104: =$L$91*(1+SUM($J$92:J104)) -> 1054.902717 | M104: 1059.124217 | N104: -0.003985840361 | O104: 1373 | P104: 0.006598240469 | Q104: 1002.189781 | R104: -0.01063783647
A105: 101 | B105: 2012-07-19 | C105: -0.0002 | G105: -0.00108 | I105: -0.00662 | J105: -0.003159684 | K105: -0.003351991692 | L105: =$L$91*(1+SUM($J$92:J105)) -> 1051.600752 | M105: 1059.124217 | N105: -0.007103477872 | O105: 1376 | P105: 0.002184996358 | Q105: 1004.379562 | R105: -0.005344680358
A106: 102 | B106: 2012-07-20 | C106: -0.002 | G106: -0.00402 | I106: 0.0024 | J106: -0.0014478552 | K106: -0.001640162892 | L106: =$L$91*(1+SUM($J$92:J106)) -> 1050.087699 | M106: 1059.124217 | N106: -0.008532066199 | O106: 1363 | P106: -0.009447674419 | Q106: 994.8905109 | R106: 0.007999819219
A107: 103 | B107: 2012-07-23 | C107: -0.00115 | G107: 0.00278 | I107: 0.00378 | J107: 0.0021637836 | K107: 0 | L107: =$L$91*(1+SUM($J$92:J107)) -> 1052.348919 | M107: 1059.124217 | N107: -0.006397076461 | O107: 1350 | P107: -0.009537784299 | Q107: 985.4014599 | R107: 0.0117015679
A108: 104 | B108: 2012-07-24 | C108: 0.0001 | G108: -0.00074 | I108: -0.00792 | J108: -0.0034236576 | K108: -0.003615965292 | L108: =$L$91*(1+SUM($J$92:J108)) -> 1048.771093 | M108: 1059.124217 | N108: -0.009775174827 | O108: 1338 | P108: -0.008888888889 | Q108: 976.6423358 | R108: 0.005465231289
A109: 105 | B109: 2012-07-25 | C109: 0.0009 | G109: -0.00504 | I109: -0.00264 | J109: -0.0027117288 | K109: =IF(J109-RF/52<0,J109-RF/52,0) -> -0.002904036492 | L109: =$L$91*(1+SUM($J$92:J109)) -> 1045.937254 | M109: =IF(L109>M108,L109,M108) -> 1059.124217 | N109: =L109/M109-1 -> -0.01245081816 | O109: 1338 | P109: =O109/O108-1 -> 0 | Q109: =Q108*(1+P109) -> 976.6423358 | R109: =J109-P109 -> -0.0027117288
A110: 106 | B110: 2012-07-26 | C110: 0.0016 | G110: 0.012 | I110: 0.00958 | J110: 0.0092710728 | K110: 0 | L110: =$L$91*(1+SUM($J$92:J110)) -> 1055.625806 | M110: 1059.124217 | N110: -0.00330311721 | O110: 1360 | P110: 0.01644245142 | Q110: 992.7007299 | R110: -0.00717137862
A111: 107 | B111: 2012-07-27 | C111: -0.00205 | G111: 0.00696 | I111: 0.00032 | J111: 0.0020917908 | K111: 0 | L111: =$L$91*(1+SUM($J$92:J111)) -> 1057.81179 | M111: 1059.124217 | N111: -0.001239162251 | O111: 1386 | P111: 0.01911764706 | Q111: 1011.678832 | R111: -0.01702585626
A112: 108 | B112: 2012-07-30 | C112: 0.0006 | G112: -0.00346 | I112: 0.00442 | J112: 0.0006239376 | K112: 0 | L112: =$L$91*(1+SUM($J$92:J112)) -> 1058.463824 | M112: 1059.124217 | N112: -0.0006235275021 | O112: 1385 | P112: -0.0007215007215 | Q112: 1010.948905 | R112: 0.001345438322
A113: 109 | B113: 2012-07-31 | C113: 0.00035 | G113: 0.00114 | I113: -0.01306 | J113: -0.0046275372 | K113: -0.004819844892 | L113: =$L$91*(1+SUM($J$92:J113)) -> 1053.627908 | M113: 1059.124217 | N113: -0.005189485223 | O113: 1379 | P113: -0.004332129964 | Q113: 1006.569343 | R113: -0.0002954072361
A114: 110 | B114: 2012-08-01 | C114: -0.0006 | G114: -0.00178 | I114: -0.00358 | J114: -0.0023837616 | K114: -0.002576069292 | L114: =$L$113*(1+SUM($J$114:J114)) -> 1051.11631 | M114: 1059.124217 | N114: -0.007560876327 | O114: 1375 | P114: -0.002900652647 | Q114: 1003.649635 | R114: 0.0005168910468
A115: 111 | B115: 2012-08-02 | C115: -0.0004 | G115: -0.00464 | I115: 0.01406 | J115: 0.0036076392 | K115: 0 | L115: =$L$113*(1+SUM($J$114:J115)) -> 1054.917419 | M115: 1059.124217 | N115: -0.003971958918 | O115: 1365 | P115: -0.007272727273 | Q115: 996.350365 | R115: 0.01088036647
A116: 112 | B116: 2012-08-03 | C116: -0.00035 | G116: 0.01186 | I116: 0.01982 | J116: 0.0125307468 | K116: 0 | L116: =$L$113*(1+SUM($J$114:J116)) -> 1068.120164 | M116: 1068.120164 | N116: 0 | O116: 1391 | P116: 0.01904761905 | Q116: 1015.328467 | R116: -0.006516872248
A117: 113 | B117: 2012-08-06 | C117: -5e-05 | G117: 0.00384 | I117: -0.00764 | J117: -0.001539846 | K117: -0.001732153692 | L117: =$L$113*(1+SUM($J$114:J117)) -> 1066.497739 | M117: 1068.120164 | N117: -0.001518953367 | O117: 1396 | P117: 0.003594536305 | Q117: 1018.978102 | R117: -0.005134382305
A118: 114 | B118: 2012-08-07 | C118: 0.00075 | G118: -0.004 | I118: -0.00154 | J118: -0.0019158084 | K118: -0.002108116092 | L118: =$L$113*(1+SUM($J$114:J118)) -> 1064.47919 | M118: 1068.120164 | N118: -0.003408768075 | O118: 1401 | P118: 0.003581661891 | Q118: 1022.627737 | R118: -0.005497470291
A119: 115 | B119: 2012-08-08 | C119: -0.0003 | G119: -0.00054 | I119: 0.00096 | J119: 4.79952e-05 | K119: -0.0001443124923 | L119: =$L$113*(1+SUM($J$114:J119)) -> 1064.529759 | M119: 1068.120164 | N119: -0.003361424074 | O119: 1402 | P119: 0.0007137758744 | Q119: 1023.357664 | R119: -0.0006657806744
A120: 116 | B120: 2012-08-09 | C120: 5e-05 | G120: 0.00146 | I120: 0.00544 | J120: 0.002779722 | K120: 0 | L120: =$L$113*(1+SUM($J$114:J120)) -> 1067.458552 | M120: 1068.120164 | N120: -0.000619417347 | O120: 1403 | P120: 0.0007132667618 | Q120: 1024.087591 | R120: 0.002066455238
A121: 117 | B121: 2012-08-10 | C121: 0 | G121: 0.00328 | I121: -0.00576 | J121: -0.0009919008 | K121: -0.001184208492 | L121: =$L$113*(1+SUM($J$114:J121)) -> 1066.413457 | M121: 1068.120164 | N121: -0.001597860035 | O121: 1406 | P121: 0.002138275125 | Q121: 1026.277372 | R121: -0.003130175925
A122: 118 | B122: 2012-08-13 | C122: 0.00025 | G122: 0.00358 | I122: -0.00092 | J122: 0.0011638836 | K122: 0 | L122: =$L$113*(1+SUM($J$114:J122)) -> 1067.639758 | M122: 1068.120164 | N122: -0.00044976801 | O122: 1404 | P122: -0.001422475107 | Q122: 1024.817518 | R122: 0.002586358707
A123: 119 | B123: 2012-08-14 | C123: 0.00035 | G123: -0.00302 | I123: -0.00862 | J123: -0.0045155484 | K123: -0.004707856092 | L123: =$L$113*(1+SUM($J$114:J123)) -> 1062.88205 | M123: 1068.120164 | N123: -0.004904049442 | O123: 1404 | P123: 0 | Q123: 1024.817518 | R123: -0.0045155484
A124: 120 | B124: 2012-08-15 | C124: 0.0004 | G124: -0.00032 | I124: -0.00542 | J124: -0.0021357864 | K124: -0.002328094092 | L124: =$L$113*(1+SUM($J$114:J124)) -> 1060.631726 | M124: 1068.120164 | N124: -0.007010857489 | O124: 1405 | P124: 0.0007122507123 | Q124: 1025.547445 | R124: -0.002848037112
A125: 121 | B125: 2012-08-16 | C125: 0.0001 | G125: -0.00076 | I125: 0.00136 | J125: 0.000279972 | K125: 0 | L125: =$L$113*(1+SUM($J$114:J125)) -> 1060.926712 | M125: 1068.120164 | N125: -0.006734684149 | O125: 1415 | P125: 0.007117437722 | Q125: 1032.846715 | R125: -0.006837465722
A126: 122 | B126: 2012-08-17 | C126: 0.00035 | G126: 0.00686 | I126: 0.00248 | J126: 0.0038756124 | K126: 0 | L126: =$L$113*(1+SUM($J$114:J126)) -> 1065.010165 | M126: 1068.120164 | N126: -0.002911656064 | O126: 1416 | P126: 0.0007067137809 | Q126: 1033.576642 | R126: 0.003168898619
A127: 123 | B127: 2012-08-20 | C127: 0.00075 | G127: 0.00244 | I127: 0.00288 | J127: 0.0024277572 | K127: 0 | L127: =$L$113*(1+SUM($J$114:J127)) -> 1067.568118 | M127: 1068.120164 | N127: -0.0005168386781 | O127: 1418 | P127: 0.001412429379 | Q127: 1035.036496 | R127: 0.001015327821
A128: 124 | B128: 2012-08-21 | C128: 0.00015 | G128: -0.00126 | I128: 0.0112 | J128: 0.0040355964 | K128: 0 | L128: =$L$113*(1+SUM($J$114:J128)) -> 1071.820135 | M128: 1071.820135 | N128: 0 | O128: 1413 | P128: -0.003526093089 | Q128: 1031.386861 | R128: 0.007561689489
A129: 125 | B129: 2012-08-22 | C129: 0.0002 | G129: 0.00056 | I129: 0.00838 | J129: 0.0036556344 | K129: 0 | L129: =$L$113*(1+SUM($J$114:J129)) -> 1075.671813 | M129: 1075.671813 | N129: 0 | O129: 1414 | P129: 0.0007077140835 | Q129: 1032.116788 | R129: 0.002947920316
A130: 126 | B130: 2012-08-23 | C130: -0.00045 | G130: 0.0026 | I130: -0.0003 | J130: 0.000739926 | K130: 0 | L130: =$L$113*(1+SUM($J$114:J130)) -> 1076.45142 | M130: 1076.45142 | N130: 0 | O130: 1410 | P130: -0.002828854314 | Q130: 1029.19708 | R130: 0.003568780314
A131: 127 | B131: 2012-08-24 | C131: -0.001 | G131: 0.00332 | I131: 0.00122 | J131: 0.0014158584 | K131: 0 | L131: =$L$113*(1+SUM($J$114:J131)) -> 1077.943208 | M131: 1077.943208 | N131: 0 | O131: 1411 | P131: 0.0007092198582 | Q131: 1029.927007 | R131: 0.0007066385418
A132: 128 | B132: 2012-08-27 | C132: -0.00075 | G132: -0.00262 | I132: 0.00354 | J132: 6.79932e-05 | K132: -0.0001243144923 | L132: =$L$113*(1+SUM($J$114:J132)) -> 1078.014848 | M132: 1078.014848 | N132: 0 | O132: 1410 | P132: -0.0007087172218 | Q132: 1029.19708 | R132: 0.0007767104218
A133: 129 | B133: 2012-08-28 | C133: -0.00105 | G133: -0.0005 | I133: 0.00668 | J133: 0.0020517948 | K133: 0 | L133: =$L$113*(1+SUM($J$114:J133)) -> 1080.176676 | M133: 1080.176676 | N133: 0 | O133: 1409 | P133: -0.0007092198582 | Q133: 1028.467153 | R133: 0.002761014658
A134: 130 | B134: 2012-08-29 | C134: 0.00095 | G134: 0.0003 | I134: -0.00662 | J134: =$AA$5*($T$5*C134+$X$5*G134+$Z$5*I134) -> -0.0021477852 | K134: -0.002340092892 | L134: =$L$113*(1+SUM($J$114:J134)) -> 1077.913709 | M134: 1080.176676 | N134: -0.002094996566 | O134: 1411 | P134: 0.001419446416 | Q134: 1029.927007 | R134: -0.003567231616
A135: 131 | B135: 2012-08-30 | C135: -0.001 | G135: 0.00056 | I135: -0.00648 | J135: =$AA$5*($T$5*C135+$X$5*G135+$Z$5*I135) -> -0.0027677232 | K135: -0.002960030892 | L135: =$L$113*(1+SUM($J$114:J135)) -> 1074.997559 | M135: 1080.176676 | N135: -0.004794694189 | O135: 1399 | P135: -0.008504606662 | Q135: 1021.167883 | R135: 0.005736883462
A136: 132 | B136: 2012-08-31 | C136: -0.00055 | G136: -0.00202 | I136: -0.00682 | J136: =$AA$5*($T$5*C136+$X$5*G136+$Z$5*I136) -> -0.0037556244 | K136: -0.003947932092 | L136: =$L$113*(1+SUM($J$114:J136)) -> 1071.040528 | M136: 1080.176676 | N136: -0.008458012207 | O136: 1407 | P136: 0.005718370264 | Q136: 1027.007299 | R136: -0.009473994664
A137: 133 | B137: 2012-09-03 | C137: -0.00135 | D137: -0.0011 | G137: 0 | I137: -0.00776 | J137: =$AA$6*($T$6*C137+$U$6*D137+$X$6*G137+$Z$6*I137) -> -0.003063 | K137: -0.003255307692 | L137: =$L$136*(1+SUM($J$137:J137)) -> 1067.759931 | M137: 1080.176676 | N137: -0.01149510532 | O137: 1407 | P137: 0 | Q137: 1027.007299 | R137: -0.003063
A138: 134 | B138: 2012-09-04 | C138: -0.00015 | D138: -0.0026 | G138: 0.0032 | I138: -0.00182 | J138: =$AA$6*($T$6*C138+$U$6*D138+$X$6*G138+$Z$6*H138) -> 0.000135 | K138: -5.730769231e-05 | L138: =$L$136*(1+SUM($J$137:J138)) -> 1067.904522 | M138: 1080.176676 | N138: -0.01136124715 | O138: 1405 | P138: -0.001421464108 | Q138: 1025.547445 | R138: 0.001556464108
A139: 135 | B139: 2012-09-05 | C139: -0.0022 | D139: -0.0021 | G139: 0.00248 | I139: -0.0007 | J139: -0.000546 | K139: -0.0007383076923 | L139: =$L$136*(1+SUM($J$137:J139)) -> 1067.319734 | M139: 1080.176676 | N139: -0.01190262907 | O139: 1403 | P139: -0.001423487544 | Q139: 1024.087591 | R139: 0.0008774875445
A140: 136 | B140: 2012-09-06 | C140: 0.0008 | D140: 0.004433333333 | G140: 0.01594 | I140: -0.00962 | J140: 0.006352 | K140: 0 | L140: =$L$136*(1+SUM($J$137:J140)) -> 1074.122983 | M140: 1080.176676 | N140: -0.005604354366 | O140: 1432 | P140: 0.02066999287 | Q140: 1045.255474 | R140: -0.01431799287
A141: 137 | B141: 2012-09-07 | C141: 0.00215 | D141: 0.005566666667 | G141: 0.00792 | I141: 0.01442 | J141: 0.004691 | K141: =IF(J141-RF/52<0,J141-RF/52,0) -> 0 | L141: =$L$136*(1+SUM($J$137:J141)) -> 1079.147234 | M141: =IF(L141>M140,L141,M140) -> 1080.176676 | N141: =L141/M141-1 -> -0.000953030901 | O141: 1438 | P141: =O141/O140-1 -> 0.004189944134 | Q141: =Q140*(1+P141) -> 1049.635036 | R141: =J141-P141 -> 0.0005010558659
A142: 138 | B142: 2012-09-10 | C142: -0.00025 | D142: -0.0004666666667 | G142: -0.0061 | I142: -0.00104 | J142: -0.002045 | K142: -0.002237307692 | L142: =$L$136*(1+SUM($J$137:J142)) -> 1076.956956 | M142: 1080.176676 | N142: -0.002980734266 | O142: 1429 | P142: -0.006258692629 | Q142: 1043.065693 | R142: 0.004213692629
A143: 139 | B143: 2012-09-11 | C143: 0.0003 | D143: 0.001566666667 | G143: -0.01372 | I143: -0.00048 | J143: -0.003556 | K143: -0.003748307692 | L143: =$L$136*(1+SUM($J$137:J143)) -> 1073.148336 | M143: 1080.176676 | N143: -0.006506657575 | O143: 1434 | P143: 0.003498950315 | Q143: 1046.715328 | R143: -0.007054950315
A144: 140 | B144: 2012-09-12 | C144: -0.0004 | D144: 0.001166666667 | G144: 0.0012 | I144: -0.0184 | J144: 0.00059 | K144: 0 | L144: =$L$136*(1+SUM($J$137:J144)) -> 1073.78025 | M144: 1080.176676 | N144: -0.005921647802 | O144: 1437 | P144: 0.002092050209 | Q144: 1048.905109 | R144: -0.001502050209
A145: 141 | B145: 2012-09-13 | C145: 0.00025 | D145: -0.0004333333333 | G145: 0.01404 | I145: 0.00086 | J145: 0.004157 | K145: 0 | L145: =$L$136*(1+SUM($J$137:J145)) -> 1078.232566 | M145: 1080.176676 | N145: -0.001799807759 | O145: 1460 | P145: 0.01600556715 | Q145: 1065.693431 | R145: -0.01184856715
A146: 142 | B146: 2012-09-14 | C146: -0.00065 | D146: -0.002266666667 | G146: -0.01268 | I146: 0.01208 | J146: -0.004679 | K146: -0.004871307692 | L146: =$L$136*(1+SUM($J$137:J146)) -> 1073.221167 | M146: 1080.176676 | N146: -0.006439232719 | O146: 1466 | P146: 0.004109589041 | Q146: 1070.072993 | R146: -0.008788589041
A147: 143 | B147: 2012-09-17 | C147: -0.00025 | D147: -0.001333333333 | G147: -0.00118 | I147: 0.00056 | J147: -0.000829 | K147: -0.001021307692 | L147: =$L$136*(1+SUM($J$137:J147)) -> 1072.333274 | M147: 1080.176676 | N147: -0.007261221027 | O147: 1460 | P147: -0.004092769441 | Q147: 1065.693431 | R147: 0.003263769441
A148: 144 | B148: 2012-09-18 | C148: 0.00065 | D148: 0.0009333333333 | G148: 0.00314 | I148: -0.0115 | J148: 0.001417 | K148: 0 | L148: =$L$136*(1+SUM($J$137:J148)) -> 1073.850939 | M148: 1080.176676 | N148: -0.005856206031 | O148: 1459 | P148: -0.0006849315068 | Q148: 1064.963504 | R148: 0.002101931507
A149: 145 | B149: 2012-09-19 | C149: 0.00035 | D149: 0.0004 | G149: -0.00074 | I149: 0.00354 | J149: 3e-06 | K149: -0.0001893076923 | L149: =$L$136*(1+SUM($J$137:J149)) -> 1073.854152 | M149: 1080.176676 | N149: -0.005853231405 | O149: 1461 | P149: 0.001370801919 | Q149: 1066.423358 | R149: -0.001367801919
A150: 146 | B150: 2012-09-20 | C150: -0.00055 | D150: 0.002466666667 | G150: 0.00232 | I150: 0.00028 | J150: 0.001271 | K150: 0 | L150: =$L$136*(1+SUM($J$137:J150)) -> 1075.215444 | M150: 1080.176676 | N150: -0.004592981538 | O150: 1460 | P150: -0.0006844626968 | Q150: 1065.693431 | R150: 0.001955462697
A151: 147 | B151: 2012-09-21 | C151: -5e-05 | D151: 0.0009 | G151: 0.00242 | I151: -0.00296 | J151: 0.000981 | K151: 0 | L151: =$L$136*(1+SUM($J$137:J151)) -> 1076.266135 | M151: 1080.176676 | N151: -0.003620278848 | O151: 1460 | P151: 0 | Q151: 1065.693431 | R151: 0.000981
A152: 148 | B152: 2012-09-24 | C152: -0.00145 | D152: 0.001866666667 | G152: 0.00306 | I152: 0.00324 | J152: 0.001043 | K152: 0 | L152: =$L$136*(1+SUM($J$137:J152)) -> 1077.38323 | M152: 1080.176676 | N152: -0.002586100555 | O152: 1457 | P152: -0.002054794521 | Q152: 1063.50365 | R152: 0.003097794521
A153: 149 | B153: 2012-09-25 | C153: -0.0007 | D153: 6.666666667e-05 | G153: -0.00616 | I153: 0.00106 | J153: -0.002038 | K153: -0.002230307692 | L153: =$L$136*(1+SUM($J$137:J153)) -> 1075.20045 | M153: 1080.176676 | N153: -0.004606863126 | O153: 1442 | P153: -0.01029512697 | Q153: 1052.554745 | R153: 0.008257126973
A154: 150 | B154: 2012-09-26 | C154: -0.00055 | D154: 0.001033333333 | G154: 4e-05 | I154: 0.00278 | J154: 0.000157 | K154: -3.530769231e-05 | L154: =$L$136*(1+SUM($J$137:J154)) -> 1075.368603 | M154: 1080.176676 | N154: -0.004451191034 | O154: 1433 | P154: -0.006241331484 | Q154: 1045.985401 | R154: 0.006398331484
A155: 151 | B155: 2012-09-27 | C155: -0.0007 | D155: -0.0002 | G155: 0.006042 | I155: 0.00176 | J155: 0.0015426 | K155: 0 | L155: =$L$136*(1+SUM($J$137:J155)) -> 1077.02079 | M155: 1080.176676 | N155: -0.002921638364 | O155: 1447 | P155: 0.009769713887 | Q155: 1056.20438 | R155: -0.008227113887
A156: 152 | B156: 2012-09-28 | C156: -0.0005 | D156: -0.0006333333333 | G156: -0.005086 | I156: 0.00134 | J156: -0.0018658 | K156: -0.002058107692 | L156: =$L$136*(1+SUM($J$137:J156)) -> 1075.022443 | M156: 1080.176676 | N156: -0.004771657404 | O156: 1441 | P156: -0.004146510021 | Q156: 1051.824818 | R156: 0.002280710021
A157: 153 | B157: 2012-10-01 | C157: 5e-05 | D157: 3.333333333e-05 | G157: -0.009776 | I157: 0.00436 | J157: -0.0029078 | K157: -0.003100107692 | L157: =$L$156*(1+SUM($J$157:J157)) -> 1071.896493 | M157: 1080.176676 | N157: -0.007665582379 | O157: 1444 | P157: 0.002081887578 | Q157: 1054.014599 | R157: -0.004989687578
A158: 154 | B158: 2012-10-02 | C158: 0.00155 | D158: -0.002233333333 | G158: -0.0037 | I158: 0.005 | J158: -0.001315 | K158: -0.001507307692 | L158: =$L$156*(1+SUM($J$157:J158)) -> 1070.482838 | M158: 1080.176676 | N158: -0.008974307649 | O158: 1446 | P158: 0.001385041551 | Q158: 1055.474453 | R158: -0.002700041551
A159: 155 | B159: 2012-10-03 | C159: -0.00055 | D159: 0 | G159: -0.00034 | I159: -0.00296 | J159: -0.000267 | K159: -0.0004593076923 | L159: =$L$156*(1+SUM($J$157:J159)) -> 1070.195807 | M159: 1080.176676 | N159: -0.009240033617 | O159: 1451 | P159: 0.003457814661 | Q159: 1059.124088 | R159: -0.003724814661
A160: 156 | B160: 2012-10-04 | C160: -0.00025 | D160: -0.0007 | G160: 0.00118 | I160: -0.00534 | J160: 6.9e-05 | K160: -0.0001233076923 | L160: =$L$156*(1+SUM($J$157:J160)) -> 1070.269984 | M160: 1080.176676 | N160: -0.009171362861 | O160: 1461 | P160: 0.006891798759 | Q160: 1066.423358 | R160: -0.006822798759
A161: 157 | B161: 2012-10-05 | C161: 0.0001 | D161: -0.0002333333333 | G161: 0.00186 | I161: -0.00756 | J161: 0.000518 | K161: 0 | L161: =$L$156*(1+SUM($J$157:J161)) -> 1070.826845 | M161: 1080.176676 | N161: -0.00865583458 | O161: 1461 | P161: 0 | Q161: 1066.423358 | R161: 0.000518
A162: 158 | B162: 2012-10-08 | C162: -0.0008 | D162: -0.001366666667 | G162: -0.00426 | I162: 0.00584 | J162: -0.001928 | K162: -0.002120307692 | L162: =$L$156*(1+SUM($J$157:J162)) -> 1068.754202 | M162: 1080.176676 | N162: -0.01057463482 | O162: 1456 | P162: -0.003422313484 | Q162: 1062.773723 | R162: 0.001494313484
A163: 159 | B163: 2012-10-09 | C163: 0.0011 | D163: 0.0028 | G163: -0.00082 | I163: 0.00676 | J163: 0.000924 | K163: 0 | L163: =$L$156*(1+SUM($J$157:J163)) -> 1069.747523 | M163: 1080.176676 | N163: -0.009655043836 | O163: 1441 | P163: -0.0103021978 | Q163: 1051.824818 | R163: 0.0112261978
A164: 160 | B164: 2012-10-10 | C164: -0.00025 | D164: 0.0017 | G164: 2e-05 | I164: 0.00282 | J164: 0.000441 | K164: 0 | L164: =$L$156*(1+SUM($J$157:J164)) -> 1070.221608 | M164: 1080.176676 | N164: -0.009216148137 | O164: 1433 | P164: -0.005551700208 | Q164: 1045.985401 | R164: 0.005992700208
A165: 161 | B165: 2012-10-11 | C165: 5e-05 | D165: 6.666666667e-05 | G165: 0.00024 | I165: 0.00556 | J165: 0.000107 | K165: -8.530769231e-05 | L165: =$L$156*(1+SUM($J$157:J165)) -> 1070.336635 | M165: 1080.176676 | N165: -0.009109658704 | O165: 1433 | P165: 0 | Q165: 1045.985401 | R165: 0.000107
A166: 162 | B166: 2012-10-12 | C166: -0.00035 | D166: -0.0011 | G166: -0.00822 | I166: 0.00596 | J166: -0.002901 | K166: -0.003093307692 | L166: =$L$156*(1+SUM($J$157:J166)) -> 1067.217995 | M166: 1080.176676 | N166: -0.01199681613 | O166: 1429 | P166: -0.002791346825 | Q166: 1043.065693 | R166: -0.0001096531752
A167: 163 | B167: 2012-10-15 | C167: -0.00015 | D167: 0.0003 | G167: -0.00198 | I167: 0.00062 | J167: -0.000549 | K167: -0.0007413076923 | L167: =$L$156*(1+SUM($J$157:J167)) -> 1066.627808 | M167: 1080.176676 | N167: -0.01254319649 | O167: 1440 | P167: 0.007697690693 | Q167: 1051.094891 | R167: -0.008246690693
A168: 164 | B168: 2012-10-16 | C168: -5e-05 | D168: 0.0012 | G168: 0.00532 | I168: 0.01052 | J168: 0.001941 | K168: 0 | L168: =$L$156*(1+SUM($J$157:J168)) -> 1068.714426 | M168: 1080.176676 | N168: -0.01061145827 | O168: 1455 | P168: 0.01041666667 | Q168: 1062.043796 | R168: -0.008475666667
A169: 165 | B169: 2012-10-17 | C169: -0.00025 | D169: -0.0017 | G169: -0.0003 | I169: 0.00618 | J169: -0.000675 | K169: -0.0008673076923 | L169: =$L$156*(1+SUM($J$157:J169)) -> 1067.988786 | M169: 1080.176676 | N169: -0.0112832374 | O169: 1461 | P169: 0.00412371134 | Q169: 1066.423358 | R169: -0.00479871134
A170: 166 | B170: 2012-10-18 | C170: 0.00055 | D170: 0.003033333333 | G170: 0.00166 | I170: -0.00646 | J170: 0.001573 | K170: 0 | L170: =$L$156*(1+SUM($J$157:J170)) -> 1069.679796 | M170: 1080.176676 | N170: -0.009717743221 | O170: 1457 | P170: -0.002737850787 | Q170: 1063.50365 | R170: 0.004310850787
A171: 167 | B171: 2012-10-19 | C171: -0.0005 | D171: -0.001033333333 | G171: -0.00434 | I171: 0.00332 | J171: -0.001762 | K171: -0.001954307692 | L171: =$L$156*(1+SUM($J$157:J171)) -> 1067.785607 | M171: 1080.176676 | N171: -0.01147133556 | O171: 1433 | P171: -0.01647220316 | Q171: 1045.985401 | R171: 0.01471020316
A172: 168 | B172: 2012-10-22 | C172: -0.0004 | D172: -0.0016 | G172: -0.00476 | I172: -0.00806 | J172: -0.002028 | K172: -0.002220307692 | L172: =$L$156*(1+SUM($J$157:J172)) -> 1065.605461 | M172: 1080.176676 | N172: -0.01348965864 | O172: 1434 | P172: 0.0006978367062 | Q172: 1046.715328 | R172: -0.002725836706
A173: 169 | B173: 2012-10-23 | C173: 0.00065 | D173: 0.005533333333 | G173: -0.01076 | I173: 0.00622 | J173: -0.001373 | K173: =IF(J173-RF/52<0,J173-RF/52,0) -> -0.001565307692 | L173: =$L$156*(1+SUM($J$157:J173)) -> 1064.129455 | M173: =IF(L173>M172,L173,M172) -> 1080.176676 | N173: =L173/M173-1 -> -0.01485610715 | O173: 1413 | P173: =O173/O172-1 -> -0.01464435146 | Q173: =Q172*(1+P173) -> 1031.386861 | R173: =J173-P173 -> 0.01327135146
A174: 170 | B174: 2012-10-24 | C174: 0.00105 | D174: 0.001166666667 | G174: -0.00408 | I174: 0.00298 | J174: -0.000559 | K174: -0.0007513076923 | L174: =$L$156*(1+SUM($J$157:J174)) -> 1063.528518 | M174: 1080.176676 | N174: -0.0154124398 | O174: 1409 | P174: -0.002830856334 | Q174: 1028.467153 | R174: 0.002271856334
A175: 171 | B175: 2012-10-25 | C175: -5e-05 | D175: -0.001366666667 | G175: -0.00412 | I175: 0.00618 | J175: -0.001661 | K175: -0.001853307692 | L175: =$L$156*(1+SUM($J$157:J175)) -> 1061.742906 | M175: 1080.176676 | N175: -0.01706551407 | O175: 1413 | P175: 0.002838892832 | Q175: 1031.386861 | R175: -0.004499892832
A176: 172 | B176: 2012-10-26 | C176: -0.0006 | D176: -0.001566666667 | G176: 0.00486 | I176: -0.00418 | J176: 0.000808 | K176: 0 | L176: =$L$156*(1+SUM($J$157:J176)) -> 1062.611524 | M176: 1080.176676 | N176: -0.01626136957 | O176: 1412 | P176: -0.0007077140835 | Q176: 1030.656934 | R176: 0.001515714084
A177: 173 | B177: 2012-10-29 | C177: 0.0007 | D177: 0.002433333333 | G177: 0 | I177: -0.002696 | J177: 0.00094 | K177: 0 | L177: =$L$156*(1+SUM($J$157:J177)) -> 1063.622045 | M177: 1080.176676 | N177: -0.01532585493 | O177: 1412 | P177: 0 | Q177: 1030.656934 | R177: 0.00094
A178: 174 | B178: 2012-10-30 | C178: 0.00015 | D178: 0.001333333333 | G178: -2e-05 | I178: -0.0015212 | J178: 0.000439 | K178: 0 | L178: =$L$156*(1+SUM($J$157:J178)) -> 1064.09398 | M178: 1080.176676 | N178: -0.01488894969 | O178: 1412 | P178: 0 | Q178: 1030.656934 | R178: 0.000439
A179: 175 | B179: 2012-10-31 | C179: -0.0006 | D179: 3.333333333e-05 | G179: -0.00764 | I179: -0.0015356 | J179: -0.002462 | K179: -0.002654307692 | L179: =$L$156*(1+SUM($J$157:J179)) -> 1061.447274 | M179: 1080.176676 | N179: -0.01733920187 | O179: 1412 | P179: 0 | Q179: 1030.656934 | R179: -0.002462
A180: 176 | B180: 2012-11-01 | C180: -0.00035 | D180: 0 | G180: 0.00282 | I180: 0.0001328 | J180: 0.000741 | K180: 0 | L180: =$L$179*(1+SUM($J$180:J180)) -> 1062.233807 | M180: 1080.176676 | N180: -0.01661105022 | O180: 1428 | P180: 0.01133144476 | Q180: 1042.335766 | R180: -0.01059044476
A181: 177 | B181: 2012-11-02 | C181: 0.0001 | D181: 0.001433333333 | G181: -0.00046 | I181: 0.01062 | J181: 0.000322 | K181: 0 | L181: =$L$179*(1+SUM($J$180:J181)) -> 1062.575593 | M181: 1080.176676 | N181: -0.01629463344 | O181: 1414 | P181: -0.009803921569 | Q181: 1032.116788 | R181: 0.01012592157
A182: 178 | B182: 2012-11-05 | C182: 0 | D182: -0.0002333333333 | G182: 0.00054 | I182: 0.00292 | J182: 9.2e-05 | K182: -0.0001003076923 | L182: =$L$179*(1+SUM($J$180:J182)) -> 1062.673246 | M182: 1080.176676 | N182: -0.01620422865 | O182: 1417 | P182: 0.002121640736 | Q182: 1034.306569 | R182: -0.002029640736
A183: 179 | B183: 2012-11-06 | C183: 0.00015 | D183: -0.001733333333 | G183: -0.00266 | I183: -0.0032 | J183: -0.001273 | K183: -0.001465307692 | L183: =$L$179*(1+SUM($J$180:J183)) -> 1061.322024 | M183: 1080.176676 | N183: -0.01745515584 | O183: 1428 | P183: 0.007762879323 | Q183: 1042.335766 | R183: -0.009035879323
A184: 180 | B184: 2012-11-07 | C184: -0.00085 | D184: -0.0009333333333 | G184: -0.00378 | I184: 0.00322 | J184: -0.001669 | K184: -0.001861307692 | L184: =$L$179*(1+SUM($J$180:J184)) -> 1059.550468 | M184: 1080.176676 | N184: -0.01909521672 | O184: 1395 | P184: -0.0231092437 | Q184: 1018.248175 | R184: 0.0214402437
A185: 181 | B185: 2012-11-08 | C185: 0.0003 | D185: 0.002866666667 | G185: 0.00186 | I185: -0.01254 | J185: 0.001508 | K185: 0 | L185: =$L$179*(1+SUM($J$180:J185)) -> 1061.151131 | M185: 1080.176676 | N185: -0.01761336423 | O185: 1378 | P185: -0.01218637993 | Q185: 1005.839416 | R185: 0.01369437993
A186: 182 | B186: 2012-11-09 | C186: 0.00065 | D186: -0.0001666666667 | G186: -0.00524 | I186: -0.00176 | J186: -0.001427 | K186: -0.001619307692 | L186: =$L$179*(1+SUM($J$180:J186)) -> 1059.636445 | M186: 1080.176676 | N186: -0.01901562119 | O186: 1380 | P186: 0.00145137881 | Q186: 1007.29927 | R186: -0.00287837881
A187: 183 | B187: 2012-11-12 | C187: 5e-05 | D187: -0.0009 | G187: 0.00734 | I187: -0.00626 | J187: 0.001947 | K187: 0 | L187: =$L$179*(1+SUM($J$180:J187)) -> 1061.703083 | M187: 1080.176676 | N187: -0.01710238062 | O187: 1380 | P187: 0 | Q187: 1007.29927 | R187: 0.001947
A188: 184 | B188: 2012-11-13 | C188: -0.0001 | D188: 0.0001 | G188: -0.0003 | I188: 0.00028 | J188: -9e-05 | K188: -0.0002823076923 | L188: =$L$179*(1+SUM($J$180:J188)) -> 1061.607553 | M188: 1080.176676 | N188: -0.01719082009 | O188: 1375 | P188: -0.003623188406 | Q188: 1003.649635 | R188: 0.003533188406
A189: 185 | B189: 2012-11-14 | C189: 0.00015 | D189: 0.0002666666667 | G189: -0.01122 | I189: -0.00316 | J189: -0.003241 | K189: -0.003433307692 | L189: =$L$179*(1+SUM($J$180:J189)) -> 1058.167402 | M189: 1080.176676 | N189: -0.02037562374 | O189: 1355 | P189: -0.01454545455 | Q189: 989.0510949 | R189: 0.01130445455
A190: 186 | B190: 2012-11-15 | C190: -0.00095 | D190: 0.002533333333 | G190: -0.00032 | I190: -0.00724 | J190: 0.000379 | K190: 0 | L190: =$L$179*(1+SUM($J$180:J190)) -> 1058.569691 | M190: 1080.176676 | N190: -0.02000319529 | O190: 1354 | P190: -0.0007380073801 | Q190: 988.3211679 | R190: 0.00111700738
A191: 187 | B191: 2012-11-16 | C191: -0.00055 | D191: 0.0005 | G191: 0.00082 | I191: -0.00086 | J191: 0.000231 | K191: 0 | L191: =$L$179*(1+SUM($J$180:J191)) -> 1058.814885 | M191: 1080.176676 | N191: -0.01977620065 | O191: 1360 | P191: 0.004431314623 | Q191: 992.7007299 | R191: -0.004200314623
A192: 188 | B192: 2012-11-19 | C192: -0.0012 | D192: 0.0011 | G192: 0.014 | I192: -0.00064 | J192: 0.00417 | K192: 0 | L192: =$L$179*(1+SUM($J$180:J192)) -> 1063.24112 | M192: 1080.176676 | N192: -0.01567850512 | O192: 1387 | P192: 0.01985294118 | Q192: 1012.408759 | R192: -0.01568294118
A193: 189 | B193: 2012-11-20 | C193: -0.0011 | D193: 0.0009666666667 | G193: -0.0006 | I193: -0.01994 | J193: -0.00022 | K193: -0.0004123076923 | L193: =$L$179*(1+SUM($J$180:J193)) -> 1063.007602 | M193: 1080.176676 | N193: -0.0158946905 | O193: 1388 | P193: 0.0007209805335 | Q193: 1013.138686 | R193: -0.0009409805335
A194: 190 | B194: 2012-11-21 | C194: 0.0002 | D194: -0.0001 | G194: 0.00022 | I194: 0.00068 | J194: 9.6e-05 | K194: -9.630769231e-05 | L194: =$L$179*(1+SUM($J$180:J194)) -> 1063.109501 | M194: 1080.176676 | N194: -0.01580035506 | O194: 1391 | P194: 0.002161383285 | Q194: 1015.328467 | R194: -0.002065383285
A195: 191 | B195: 2012-11-22 | C195: 0.00055 | D195: -0.0009666666667 | G195: 0 | I195: 0.00326 | J195: -0.000125 | K195: -0.0003173076923 | L195: =$L$179*(1+SUM($J$180:J195)) -> 1062.97682 | M195: 1080.176676 | N195: -0.01592318766 | O195: 1391 | P195: 0 | Q195: 1015.328467 | R195: -0.000125
A196: 192 | B196: 2012-11-23 | C196: 0.0003 | D196: -0.0008 | G196: -0.0035 | I196: 0.00406 | J196: -0.0012 | K196: -0.001392307692 | L196: =$L$179*(1+SUM($J$180:J196)) -> 1061.703083 | M196: 1080.176676 | N196: -0.01710238062 | O196: 1409 | P196: 0.0129403307 | Q196: 1028.467153 | R196: -0.0141403307
A197: 193 | B197: 2012-11-26 | C197: 0 | D197: 0.0004333333333 | G197: 0.0025 | I197: -0.00218 | J197: 0.00088 | K197: 0 | L197: =$L$179*(1+SUM($J$180:J197)) -> 1062.637157 | M197: 1080.176676 | N197: -0.01623763911 | O197: 1406 | P197: -0.002129169624 | Q197: 1026.277372 | R197: 0.003009169624
A198: 194 | B198: 2012-11-27 | C198: -0.00045 | D198: 0.0018 | G198: -0.00072 | I198: -0.00018 | J198: 0.000189 | K198: -3.307692308e-06 | L198: =$L$179*(1+SUM($J$180:J198)) -> 1062.83777 | M198: 1080.176676 | N198: -0.01605191622 | O198: 1399 | P198: -0.004978662873 | Q198: 1021.167883 | R198: 0.005167662873
A199: 195 | B199: 2012-11-28 | C199: -0.00095 | D199: 0.0004 | G199: -0.00172 | I199: -0.00088 | J199: -0.000681 | K199: -0.0008733076923 | L199: =$L$179*(1+SUM($J$180:J199)) -> 1062.114925 | M199: 1080.176676 | N199: -0.01672110823 | O199: 1410 | P199: 0.007862759114 | Q199: 1029.19708 | R199: -0.008543759114
A200: 196 | B200: 2012-11-29 | C200: -0.0002 | D200: -0.0001 | G200: 0.00034 | I200: -0.00036 | J200: 1.2e-05 | K200: -0.0001803076923 | L200: =$L$179*(1+SUM($J$180:J200)) -> 1062.127662 | M200: 1080.176676 | N200: -0.0167093163 | O200: 1416 | P200: 0.004255319149 | Q200: 1033.576642 | R200: -0.004243319149
A201: 197 | B201: 2012-11-30 | C201: 0.0001 | D201: -0.0002 | G201: -0.0031758 | I201: 0.00178 | J201: -0.00098274 | K201: -0.001175047692 | L201: =$L$179*(1+SUM($J$180:J201)) -> 1061.084535 | M201: 1080.176676 | N201: -0.01767501637 | O201: 1416 | P201: 0 | Q201: 1033.576642 | R201: -0.00098274
A202: 198 | B202: 2012-12-03 | C202: 0.0001 | D202: -0.0003 | G202: 0.0001958 | I202: -0.00566 | J202: =$AA$6*($T$6*C202+$U$6*D202+$X$6*G202+$Z$6*H202) -> -1.26e-06 | K202: =IF(J202-RF/52<0,J202-RF/52,0) -> -0.0001935676923 | L202: =$L$201*(1+SUM($J$202:J202)) -> 1061.083198 | M202: =IF(L202>M201,L202,M201) -> 1080.176676 | N202: =L202/M202-1 -> -0.0176762541 | O202: 1409 | P202: =O202/O201-1 -> -0.004943502825 | Q202: =Q201*(1+P202) -> 1028.467153 | R202: =J202-P202 -> 0.004942242825
... 3104 more rows

Sheet MultiStrategy-Monthly
A1: Multi Strategy Performance
A2: (20% performance fee deducted monthly, based on HWM) | I2: * EFT was discontinued and replaced with V4 on June 3, 2013 | P2: V4 was modified on April 1, 2015
I3: ** The former V2 strategy was redesigned on Dec 1, 2015 | P3: V2 ceased trading on Feb 28, 2018 and was replaced by the SP Quant strategy
C5: Str. 1 | D5: Str. 2 | E5: Str. 3 | F5: Str. 4 | G5: Str. 5 | H5: Str. 6 | I5: Str. 7
A6: Month # | B6: Month | C6: FXQ | D6: FXIA | E6: FXBQ | F6: FXC | G6: V4 (EFT)* | H6: V1 | I6: SPQ (V2)** | J6: Comb. ROR (Before Fees) | K6: ROR<RF | L6: VAMI | M6: Max. VAMI | N6: Draw-down | O6: Perfor. Fee | P6: ROR Net of Fees | Q6: VAMI Net of Fees | R6: SPX ROR | S6: SPX VAMI | T6: Strategy-SPX ROR
A7: 0 | B7: 2012-02-12 | L7: 1000 | M7: 1000 | Q7: 1000 | S7: 1000
A8: 1 | B8: 2012-03-12 | C8: 0.00208 | G8: 0.00603 | H8: 0.0129 | J8: =($L$165*C8+$P$165*G8+$Q$165*H8)*$S$165 -> 0.0084031596 | K8: =IF(J8<$E$166/12,J8-$E$166/12,"") ->  | L8: =L7*(1+J8) -> 1008.40316 | M8: =MAX(L8,M7) -> 1008.40316 | N8: =L8/M8-1 -> 0 | O8: =IF(N8=0,0.2*(L8/M7-1),0) -> 0.00168063192 | P8: =J8-O8 -> 0.00672252768 | Q8: =Q7*(1+P8) -> 1006.722528 | R8: 0.03133237655 | S8: =S7*(1+R8) -> 1031.332377 | T8: =J8-R8 -> -0.02292921695
A9: 2 | B9: 2012-04-12 | C9: 0.00096 | G9: 0.00359 | H9: 0.02193 | J9: 0.0105909408 | L9: 1019.083098 | M9: 1019.083098 | N9: 0 | O9: 0.00211818816 | P9: 0.00847275264 | Q9: 1015.252239 | R9: -0.007497497284 | S9: 1023.599965 | T9: 0.01808843808
A10: 3 | B10: 2012-05-12 | C10: -0.00031 | G10: -0.01033 | H10: -0.00277 | J10: -0.0053634636 | K10: -0.006196796933 | L10: 1013.617283 | M10: 1019.083098 | N10: -0.0053634636 | O10: 0 | P10: -0.0053634636 | Q10: 1009.80697 | R10: -0.06266 | S10: 959.4611911 | T10: 0.0572965364
A11: 4 | B11: 2012-06-12 | C11: 0.0041 | G11: 0.04494 | H11: 0.03023 | J11: 0.0317048292 | L11: 1045.753845 | M11: 1045.753845 | N11: 0 | O11: 0.005234263581 | P11: 0.02647056562 | Q11: 1036.537132 | R11: 0.0396 | S11: 997.4558542 | T11: -0.0078951708
A12: 5 | B12: 2012-07-12 | C12: -0.00222 | G12: 0.01226 | H12: 0.01061 | J12: 0.008259174 | L12: 1054.390908 | M12: 1054.390908 | N12: 0 | O12: 0.0016518348 | P12: 0.0066073392 | Q12: 1043.385884 | R12: 0.0126 | S12: 1010.023798 | T12: -0.004340826
A13: 6 | B13: 2012-08-12 | C13: -0.00164 | G13: 0.02432 | H13: 0.01914 | J13: 0.0167263272 | L13: 1072.026996 | M13: 1072.026996 | N13: 0 | O13: 0.00334526544 | P13: 0.01338106176 | Q13: 1057.347495 | R13: 0.01976 | S13: 1029.981868 | T13: -0.0030336728
A14: 7 | B14: 2012-09-12 | C14: -0.0058 | D14: 0.00898 | G14: -0.01237 | H14: 0.01614 | J14: =($L$166*C14+$M$166*D14+$P$166*G14+$Q$166*H14)*$S$166 -> 0.002085 | L14: 1074.262172 | M14: 1074.262172 | N14: 0 | O14: =IF(N14=0,0.2*(L14/M13-1),0) -> 0.000417 | P14: =J14-O14 -> 0.001668 | Q14: =Q13*(1+P14) -> 1059.111151 | R14: 0.0242 | S14: 1054.907429 | T14: =J14-R14 -> -0.022115
A15: 8 | B15: 2012-10-12 | C15: 0.00108 | D15: 0.0075 | G15: 0.03201 | H15: -0.04998 | J15: =($L$166*C15+$M$166*D15+$P$166*G15+$Q$166*H15)*$S$166 -> -0.002817 | K15: -0.003650333333 | L15: 1071.235976 | M15: 1074.262172 | N15: -0.002817 | O15: 0 | P15: -0.002817 | Q15: 1056.127635 | R15: -0.0198 | S15: 1034.020262 | T15: 0.016983
A16: 9 | B16: 2012-11-12 | C16: -0.00448 | D16: 0.00563 | G16: -0.03224 | H16: -0.00326 | J16: =($L$166*C16+$M$166*D16+$P$166*G16+$Q$166*H16)*$S$166 -> -0.010305 | K16: -0.01113833333 | L16: 1060.196889 | M16: 1074.262172 | N16: -0.01309297081 | O16: 0 | P16: -0.010305 | Q16: 1045.244239 | R16: 0.00285 | S16: 1036.96722 | T16: -0.013155
A17: 10 | B17: 2012-12-12 | C17: -0.00181 | D17: -0.00229 | G17: -0.00338 | H17: -0.01329 | J17: =($L$166*C17+$M$166*D17+$P$166*G17+$Q$166*H17)*$S$166 -> -0.006231 | K17: -0.007064333333 | L17: 1053.590802 | M17: 1074.262172 | N17: -0.01924238851 | O17: 0 | P17: -0.006231 | Q17: 1038.731323 | R17: 0.00707 | S17: 1044.298578 | T17: -0.013301 | U17: =Q17/Q7-1 -> 0.03873132263
A18: 11 | B18: 2013-01-12 | C18: 0.00056 | D18: 0.00228 | G18: -0.00852 | H18: 0.00369 | J18: =($L$166*C18+$M$166*D18+$P$166*G18+$Q$166*H18)*$S$166 -> -0.000597 | K18: -0.001430333333 | L18: 1052.961808 | M18: 1074.262172 | N18: -0.01982790081 | O18: 0 | P18: -0.000597 | Q18: 1038.1112 | R18: 0.05043 | S18: 1096.962556 | T18: -0.051027
A19: 12 | B19: 2013-02-12 | C19: 0.01557 | D19: 0.02302 | E19: 0.01932 | G19: 0.0122 | H19: -0.00104 | J19: =($L$167*C19+$M$167*D19+$N$167*E19+$P$167*G19+$Q$167*H19)*$S$167 -> 0.0165768 | L19: 1070.416546 | M19: 1074.262172 | N19: -0.003579783954 | O19: 0 | P19: 0.0165768 | Q19: 1055.319762 | R19: 0.01106 | S19: 1109.094962 | T19: 0.0055168
A20: 13 | B20: 2013-03-12 | C20: -0.00168 | D20: -0.00563 | E20: 0.00126 | G20: -0.05001 | H20: 0.00613 | J20: -0.0119832 | K20: -0.01281653333 | L20: 1057.58953 | M20: 1074.262172 | N20: -0.01552008669 | O20: 0 | P20: -0.0119832 | Q20: 1042.673654 | R20: 0.01106 | S20: 1121.361552 | T20: -0.0230432
A21: 14 | B21: 2013-04-12 | C21: 0.00869 | D21: 0.01443 | E21: 0.00474 | G21: 0.02989 | H21: 0.00732 | J21: 0.0156168 | L21: 1074.105694 | M21: 1074.262172 | N21: -0.0001456607767 | O21: 0 | P21: 0.0156168 | Q21: 1058.95688 | R21: 0.01809 | S21: 1141.646982 | T21: -0.0024732
A22: 15 | B22: 2013-05-12 | C22: -0.00582 | D22: -0.01347 | E22: -0.00842 | G22: -0.02399 | H22: -0.00891 | J22: -0.0145464 | K22: -0.01537973333 | L22: 1058.481323 | M22: 1074.262172 | N22: -0.01468994194 | O22: 0 | P22: -0.0145464 | Q22: 1043.55287 | R22: 0.02076 | S22: 1165.347574 | T22: -0.0353064
A23: 16 | B23: 2013-06-12 | C23: 0.00634 | D23: 0.00187 | E23: -0.00587 | G23: -0.03159 | H23: -0.00047 | J23: -0.0071328 | K23: -0.007966133333 | L23: 1050.931388 | M23: 1074.262172 | N23: -0.02171796152 | O23: 0 | P23: -0.0071328 | Q23: 1036.109416 | R23: -0.015 | S23: 1147.86736 | T23: 0.0078672
A24: 17 | B24: 2013-07-12 | C24: 0.00832 | D24: 0.01344 | E24: 0.00865 | G24: 0.05366 | H24: 0.02282 | J24: 0.0256536 | L24: 1077.891561 | M24: 1077.891561 | N24: 0 | O24: 0.0006756989167 | P24: 0.02497790108 | Q24: 1061.989254 | R24: 0.04946 | S24: 1204.64088 | T24: -0.0238064
A25: 18 | B25: 2013-08-12 | C25: 0.01202 | D25: 0.01095 | E25: -0.00325 | F25: 0.00046 | G25: -0.0105 | H25: -0.01775 | J25: =($L$168*C25+$M$168*D25+$N$168*E25+$O$168*F25+$P$168*G25+$Q$168*H25)*$S$168 -> -0.0016143228 | K25: -0.002447656133 | L25: 1076.151496 | M25: 1077.891561 | N25: -0.0016143228 | O25: 0 | P25: -0.0016143228 | Q25: 1060.274861 | R25: -0.0313 | S25: 1166.93562 | T25: 0.0296856772
A26: 19 | B26: 2013-09-12 | C26: -0.0005 | D26: 0.00719 | E26: 0.03506 | F26: -0.00735 | G26: -0.00013 | H26: 0.02109 | J26: 0.0110742144 | L26: 1088.069028 | M26: 1088.069028 | N26: 0 | O26: 0.001888402849 | P26: 0.009185811551 | Q26: 1070.014346 | R26: 0.02975 | S26: 1201.651955 | T26: -0.0186757856
A27: 20 | B27: 2013-10-12 | C27: 0.01276 | D27: 0.01732 | E27: 0.00492 | F27: 0.00724 | G27: 0.00054 | H27: 0.00603 | J27: 0.0097639524 | L27: 1098.692883 | M27: 1098.692883 | N27: 0 | O27: 0.00195279048 | P27: 0.00781116192 | Q27: 1078.372401 | R27: 0.0446 | S27: 1255.245632 | T27: -0.0348360476
A28: 21 | B28: 2013-11-12 | C28: -0.00602 | D28: -0.00909 | E28: -0.00818 | F28: -0.00421 | G28: 0.0153 | H28: 0.0128 | J28: 0.000120024 | K28: -0.0007133093333 | L28: 1098.824752 | M28: 1098.824752 | N28: 0 | O28: 2.40048e-05 | P28: 9.60192e-05 | Q28: 1078.475946 | R28: 0.02805 | S28: 1290.455272 | T28: -0.027929976
A29: 22 | B29: 2013-12-12 | C29: -0.00765 | D29: -0.00452 | E29: -0.01119 | F29: -0.00105 | G29: 0.01096 | H29: 0.0218 | J29: 0.001670334 | L29: 1100.660157 | M29: 1100.660157 | N29: 0 | O29: 0.0003340668 | P29: 0.0013362672 | Q29: 1079.917078 | R29: 0.02356 | S29: 1320.858398 | T29: -0.021889666 | U29: =Q29/Q17-1 -> 0.03965005581
A30: 23 | B30: 2014-01-12 | C30: 0.0172 | D30: 0.01888 | E30: 0.00538 | F30: 0.0105 | G30: -0.02549 | H30: -0.00041 | J30: 0.0052130424 | L30: 1106.397945 | M30: 1106.397945 | N30: 0 | O30: 0.00104260848 | P30: 0.00417043392 | Q30: 1084.4208 | R30: -0.03558 | S30: 1273.862256 | T30: 0.0407930424
A31: 24 | B31: 2014-02-12 | C31: 0.00963 | D31: 0.01033 | E31: 0.01163 | F31: 0.01099 | G31: 0.02178 | H31: 0.02201 | I31: 0.02206 | J31: =($L$169*C31+$M$169*D31+$N$169*E31+$O$169*F31+$P$169*G31+$Q$169*H31+$R$169*I31)*$S$169 -> 0.0185935764 | L31: 1126.969839 | M31: 1126.969839 | N31: 0 | O31: 0.00371871528 | P31: 0.01487486112 | Q31: 1100.551409 | R31: 0.04312 | S31: 1328.791197 | T31: -0.0245264236
A32: 25 | B32: 2014-03-12 | C32: 0.00177 | D32: -0.00054 | E32: 0.01231 | F32: 0.00092 | G32: -0.01167 | H32: 0.00021 | I32: 0.00339 | J32: 0.0010957572 | L32: 1128.204725 | M32: 1128.204725 | N32: 0 | O32: 0.00021915144 | P32: 0.00087660576 | Q32: 1101.516159 | R32: 0.00693 | S32: 1337.99972 | T32: -0.0058342428
A33: 26 | B33: 2014-04-12 | C33: 0.00432 | D33: 0.00611 | E33: 0.00243 | F33: 0.00823 | G33: -0.00485 | H33: 0.0124 | I33: -0.00566 | J33: 0.0039406104 | L33: 1132.65054 | M33: 1132.65054 | N33: 0 | O33: 0.00078812208 | P33: 0.00315248832 | Q33: 1104.988676 | R33: 0.0062 | S33: 1346.295318 | T33: -0.0022593896
A34: 27 | B34: 2014-05-12 | C34: 0.00182 | D34: 0.00122 | E34: -0.0034 | F34: 0.00219 | G34: 0.01636 | H34: 0.02343 | I34: 0.0029 | J34: 0.0076342896 | L34: 1141.297522 | M34: 1141.297522 | N34: 0 | O34: 0.00152685792 | P34: 0.00610743168 | Q34: 1111.737319 | R34: 0.02103 | S34: 1374.607909 | T34: -0.0133957104
A35: 28 | B35: 2014-06-12 | C35: -0.00999 | D35: -0.00737 | E35: -0.00597 | F35: -0.0047 | G35: 0.02811 | H35: 0.01792 | I35: -0.00276 | J35: 0.0026133552 | L35: 1144.280138 | M35: 1144.280138 | N35: 0 | O35: 0.00052267104 | P35: 0.00209068416 | Q35: 1114.06161 | R35: 0.01906 | S35: 1400.807935 | T35: -0.0164466448
A36: 29 | B36: 2014-07-12 | C36: -0.00065 | D36: 7e-05 | E36: -0.00116 | F36: -0.00039 | G36: -0.02461 | H36: -0.02714 | I36: -0.01187 | J36: -0.01127481 | K36: -0.01210814333 | L36: 1131.378597 | M36: 1144.280138 | N36: -0.01127481 | O36: 0 | P36: -0.01127481 | Q36: 1101.500777 | R36: -0.01508 | S36: 1379.683752 | T36: 0.00380519
A37: 30 | B37: 2014-08-12 | C37: -0.00342 | D37: -0.00443 | E37: 0.00594 | F37: -0.00305 | G37: 0.01134 | H37: 0.00897 | I37: 0.00742 | J37: 0.0039045996 | L37: 1135.796177 | M37: 1144.280138 | N37: -0.007414234019 | O37: 0 | P37: 0.0039045996 | Q37: 1105.801697 | R37: 0.03766 | S37: 1431.642642 | T37: -0.0337554004
A38: 31 | B38: 2014-09-12 | C38: -0.00507 | D38: -0.00685 | E38: -0.0025 | F38: -0.00709 | G38: -0.03572 | H38: -0.02492 | I38: -0.00684 | J38: -0.0152600052 | K38: -0.01609333853 | L38: 1118.463922 | M38: 1144.280138 | N38: -0.02256109797 | O38: 0 | P38: -0.0152600052 | Q38: 1088.927157 | R38: -0.01551 | S38: 1409.437864 | T38: 0.0002499948
A39: 32 | B39: 2014-10-12 | C39: 0.01741 | D39: 0.02369 | E39: 0.01082 | F39: 0.00985 | G39: -0.01604 | H39: -0.02367 | I39: 0.01775 | J39: 0.0068266188 | L39: 1126.099248 | M39: 1144.280138 | N39: -0.01588849518 | O39: 0 | P39: 0.0068266188 | Q39: 1096.360848 | R39: 0.0232 | S39: 1442.136823 | T39: -0.0163733812
A40: 33 | B40: 2014-11-12 | C40: 0.00505 | D40: 0.01055 | E40: 0.00385 | F40: 0.00618 | G40: 0.01622 | H40: 0.01502 | I40: -0.00287 | J40: 0.00925992 | K40: =IF(J40<$E$166/12,J40-$E$166/12,"") ->  | L40: =L39*(1+J40) -> 1136.526837 | M40: =MAX(L40,M39) -> 1144.280138 | N40: =L40/M40-1 -> -0.006775701379 | O40: 0 | P40: 0.00925992 | Q40: 1106.513061 | R40: 0.02453 | S40: =S39*(1+R40) -> 1477.512439 | T40: -0.01527008
A41: 34 | B41: 2014-12-12 | C41: -0.01122 | D41: -0.01949 | E41: -0.01599 | F41: -0.01031 | G41: -0.03993 | H41: -0.00497 | I41: 0.00222 | J41: -0.0170948412 | K41: -0.01792817453 | L41: 1117.098092 | M41: 1144.280138 | N41: -0.02375471304 | O41: 0 | P41: -0.0170948412 | Q41: 1087.597396 | R41: 0.02453 | S41: 1513.755819 | T41: -0.0416248412 | U41: =Q41/Q29-1 -> 0.007111952288
A42: 35 | B42: 2015-01-15 | C42: 0.01206 | D42: 0.01399 | E42: -0.01284 | F42: 0.04321 | G42: -0.02667 | H42: -0.01236 | I42: -0.01607 | J42: 0.0002263536 | K42: -0.0006069797333 | L42: 1117.350951 | M42: 1144.280138 | N42: -0.0235337364 | O42: 0 | P42: 0.0002263536 | Q42: 1087.843578 | R42: -0.03104 | S42: 1466.768839 | T42: 0.0312663536
A43: 36 | B43: 2015-02-18 | C43: 0.01457 | D43: 0.03841 | E43: 0.02659 | F43: 0.02394 | G43: 0.05282 | H43: 0.02229 | I43: 0.0118 | J43: 0.0326532216 | L43: 1153.836059 | M43: 1153.836059 | N43: 0 | O43: 0.001670206577 | P43: 0.03098301502 | Q43: 1121.548252 | R43: 0.05489 | S43: 1547.27978 | T43: -0.0222367784
A44: 37 | B44: 2015-03-24 | C44: 0.01327 | D44: 0.00945 | E44: 0.00107 | F44: 0.01 | G44: 0.00791 | H44: 0.00548 | I44: -0.00439 | J44: 0.0073376292 | L44: 1162.30248 | M44: 1162.30248 | N44: 0 | O44: 0.00146752584 | P44: 0.00587010336 | Q44: 1128.131856 | R44: -0.0174 | S44: 1520.357112 | T44: 0.0247376292
A45: 38 | B45: 2015-04-15 | C45: 0.00688 | D45: 0.00632 | E45: 0.00668 | F45: 0.00426 | G45: 0.01736 | H45: 0.0065 | I45: 0.00389 | J45: 0.0088980972 | L45: 1172.644761 | M45: 1172.644761 | N45: 0 | O45: 0.00177961944 | P45: 0.00711847776 | Q45: 1136.162437 | R45: 0.00852 | S45: 1533.310555 | T45: 0.0003780972
A46: 39 | B46: 2015-05-15 | C46: -0.00847 | D46: -0.00545 | E46: -0.00312 | F46: -0.00389 | G46: 0.01469 | H46: 0.02484 | I46: 0.015 | J46: 0.005761728 | L46: 1179.401221 | M46: 1179.401221 | N46: 0 | O46: =IF(N46=0,0.2*(L46/M45-1),0) -> 0.0011523456 | P46: =J46-O46 -> 0.0046093824 | Q46: =Q45*(1+P46) -> 1141.399445 | R46: 0.01049 | S46: 1549.394982 | T46: =J46-R46 -> -0.004728272
A47: 40 | B47: 2015-06-15 | C47: -0.01186 | D47: -0.00335 | E47: -0.01342 | F47: 0.0261 | G47: -0.01315 | H47: -0.0116 | I47: 0.01929 | J47: -0.0013701252 | K47: -0.002203458533 | L47: 1177.785293 | M47: 1179.401221 | N47: -0.0013701252 | O47: 0 | P47: -0.0013701252 | Q47: 1139.835584 | R47: -0.021 | S47: 1516.857688 | T47: 0.0196298748
A48: 41 | B48: 2015-07-15 | C48: 0.02308 | D48: 0.02053 | E48: 0.00868 | F48: 0.01408 | G48: 0.02483 | H48: -0.01036 | I48: 0.02936 | J48: 0.018897096 | L48: 1200.042015 | M48: 1200.042015 | N48: 0 | O48: 0.003500215883 | P48: 0.01539688012 | Q48: 1157.385496 | R48: 0.01974 | S48: 1546.800458 | T48: -0.000842904
A49: 42 | B49: 2015-08-15 | C49: 0.00483 | D49: 0.00637 | E49: -0.03215 | F49: -0.0049 | G49: -0.0441 | H49: 0.0048 | I49: -0.13678 | J49: -0.0346269564 | K49: -0.03546028973 | L49: 1158.488213 | M49: 1200.042015 | N49: -0.0346269564 | O49: 0 | P49: -0.0346269564 | Q49: 1117.308759 | R49: -0.06258 | S49: 1450.001686 | T49: 0.0279530436
A50: 43 | B50: 2015-09-15 | C50: 0.01708 | D50: 0.02132 | E50: -0.00108 | F50: 0.03967 | G50: -0.0398 | H50: 0.01184 | I50: -0.02021 | J50: 0.0049420536 | L50: 1164.213523 | M50: 1200.042015 | N50: -0.02985603107 | O50: 0 | P50: 0.0049420536 | Q50: 1122.830559 | R50: -0.02644 | S50: 1411.663641 | T50: 0.0313820536
A51: 44 | B51: 2015-10-15 | C51: -0.01758 | D51: 0.00014 | E51: 0.0668 | F51: -0.00233 | G51: 0.06547 | H51: 0.0496 | I51: -0.00639 | J51: 0.0267011508 | L51: 1195.299364 | M51: 1200.042015 | N51: -0.003952070663 | O51: 0 | P51: 0.0267011508 | Q51: 1152.811427 | R51: 0.08298 | S51: 1528.80349 | T51: -0.0562788492
A52: 45 | B52: 2015-11-15 | C52: 0.00785 | D52: -0.01384 | E52: -0.00015 | F52: 0.00169 | G52: 5e-05 | H52: -0.01932 | I52: -0.00693 | J52: -0.005255862 | K52: -0.006089195333 | L52: 1189.017036 | M52: 1200.042015 | N52: -0.009187161125 | O52: 0 | P52: -0.005255862 | Q52: 1146.752409 | R52: 0.0005049630656 | S52: 1529.575479 | T52: -0.005760825066
A53: 46 | B53: 2015-12-15 | C53: -0.00237 | D53: -0.00205 | E53: -0.00023 | F53: -0.00762 | G53: -0.02916 | H53: -0.03316 | I53: -0.00625 | J53: -0.0138624432 | K53: -0.01469577653 | L53: 1172.534355 | M53: 1200.042015 | N53: -0.02292224783 | O53: 0 | P53: -0.0138624432 | Q53: 1130.855619 | R53: -0.01753 | S53: 1502.762021 | T53: 0.0036675568 | U53: =Q53/Q41-1 -> 0.03977411403
A54: 47 | B54: 2016-01-15 | C54: 0.00968 | D54: 0.01297 | E54: 0.03369 | F54: 0.01184 | G54: -0.07219 | H54: -0.01677 | I54: -0.01715 | J54: -0.0065042364 | K54: -0.007337569733 | L54: 1164.907914 | M54: 1200.042015 | N54: -0.02927739251 | O54: 0 | P54: -0.0065042364 | Q54: 1123.500267 | R54: -0.05073 | S54: 1426.526904 | T54: 0.0442257636
A55: 48 | B55: 2016-02-15 | C55: 0.0231 | D55: 0.02117 | E55: 0.01564 | F55: 0.01732 | G55: -0.01539 | H55: 0.01796 | I55: -0.00405 | J55: 0.01298961 | L55: 1180.039614 | M55: 1200.042015 | N55: -0.01666808442 | O55: 0 | P55: 0.01298961 | Q55: 1138.094097 | R55: -0.00413 | S55: 1420.635348 | T55: 0.01711961
A56: 49 | B56: 2016-03-15 | C56: 0.01416 | D56: 0.01135 | E56: 0.00785 | F56: 0.01211 | G56: 0.06874 | H56: 0.06414 | I56: 0.02693 | J56: 0.0352014144 | L56: 1221.578677 | M56: 1221.578677 | N56: 0 | O56: 0.003589317967 | P56: 0.03161209643 | Q56: 1174.071638 | R56: 0.066 | S56: 1514.397281 | T56: -0.0307985856
A57: 50 | B57: 2016-04-15 | C57: -0.00024 | D57: -0.0018 | E57: 0.00321 | F57: -0.01018 | G57: 0.0048 | H57: 0.01499 | I57: -0.00215 | J57: 0.0014798724 | L57: 1223.386458 | M57: 1223.386458 | N57: 0 | O57: 0.00029597448 | P57: 0.00118389792 | Q57: 1175.461618 | R57: 0.0027 | S57: 1518.486153 | T57: -0.0012201276
A58: 51 | B58: 2016-05-15 | C58: 0.00531 | D58: 0.01312 | E58: 0.01035 | F58: 0.00655 | G58: 0.03769 | H58: 0.01922 | I58: 0.00963 | J58: 0.0174686676 | L58: 1244.757389 | M58: 1244.757389 | N58: 0 | O58: 0.00349373352 | P58: 0.01397493408 | Q58: 1191.888617 | R58: 0.01532 | S58: 1541.749361 | T58: 0.0021486676
A59: 52 | B59: 2016-06-15 | C59: 0.00591 | D59: -0.0028 | E59: -0.00725 | F59: 0.00176 | G59: -0.00139 | H59: -0.00188 | I59: 0.06106 | J59: 0.0095017068 | L59: 1256.584709 | M59: 1256.584709 | N59: 0 | O59: 0.00190034136 | P59: 0.00760136544 | Q59: 1200.948598 | R59: 0.00091 | S59: 1543.152353 | T59: 0.0085917068
A60: 53 | B60: 2016-07-15 | C60: 0.0044 | D60: -0.00265 | E60: -0.01506 | F60: -0.00149 | G60: 0.0439 | H60: -0.01362 | I60: 0.01099210526 | J60: 0.004539436611 | L60: 1262.288895 | M60: 1262.288895 | N60: 0 | O60: 0.0009078873221 | P60: 0.003631549288 | Q60: 1205.309902 | R60: 0.03561 | S60: 1598.104009 | T60: -0.03107056339
A61: 54 | B61: 2016-08-15 | C61: -0.00042 | D61: 0.00071 | E61: 0.00523 | F61: -0.00088 | G61: 0.01831 | H61: -0.01297 | I61: 0.004972307692 | J61: 0.002564021723 | L61: 1265.525431 | M61: 1265.525431 | N61: 0 | O61: 0.0005128043446 | P61: 0.002051217378 | Q61: 1207.782255 | R61: -0.00122 | S61: 1596.154322 | T61: 0.003784021723
A62: 55 | B62: 2016-09-15 | C62: 0.00101 | D62: 0.00245 | E62: -0.02286 | F62: 0.00606 | G62: 0.01435 | H62: -0.01089 | I62: -0.012032 | J62: -0.00375746976 | K62: -0.004590803093 | L62: 1260.770258 | M62: 1265.525431 | N62: -0.00375746976 | O62: 0 | P62: -0.00375746976 | Q62: 1203.244049 | R62: -0.00123 | S62: 1594.191052 | T62: -0.00252746976
A63: 56 | B63: 2016-10-15 | C63: -0.01484 | D63: -0.0176 | E63: -0.04764 | F63: -0.01 | G63: 0.00539 | H63: 0.01085 | I63: -0.00366675 | J63: =($L$169*C63+$M$169*D63+$N$169*E63+$O$169*F63+$P$169*G63+$Q$169*H63+$R$169*I63)*$S$169 -> -0.01329085749 | K63: -0.01412419082 | L63: =L62*(1+J63) -> 1244.01354 | M63: =MAX(L63,M62) -> 1265.525431 | N63: =L63/M63-1 -> -0.01699838725 | O63: =IF(N63=0,0.2*(L63/M62-1),0) -> 0 | P63: =J63-O63 -> -0.01329085749 | Q63: =Q62*(1+P63) -> 1187.251904 | R63: -0.01943 | S63: =S62*(1+R63) -> 1563.21592 | T63: =J63-R63 -> 0.00613914251
A64: 57 | B64: 2016-11-30 | C64: 0.00216 | D64: 0.01076 | E64: 0.04782 | F64: 0.0056 | G64: 0.02231 | H64: 0.00913 | I64: 0.01888375 | J64: 0.02000549985 | L64: 1268.900653 | M64: 1268.900653 | N64: 0 | O64: 0.0005334102723 | P64: 0.01947208958 | Q64: 1210.37018 | R64: 0.03417 | S64: 1616.631008 | T64: -0.01416450015
A65: 58 | B65: 2016-12-16 | C65: 0.00265 | D65: 0.00122 | E65: 0.02555 | F65: -0.00467 | G65: 0.01576 | H65: 0.04669 | I65: 0.00607375 | J65: 0.01599458265 | L65: 1289.196189 | M65: 1289.196189 | N65: 0 | O65: 0.00319891653 | P65: 0.01279566612 | Q65: 1225.857672 | R65: 0.0182 | S65: 1646.053692 | T65: -0.00220541735 | U65: =Q65/Q53-1 -> 0.08400900309
A66: 59 | B66: 2017-01-01 | C66: 0.01039 | D66: 0.01017 | E66: -0.03544 | F66: 0.01555 | G66: 0.04293 | H66: 0.02968 | I66: 0.00479 | J66: 0.0133874436 | L66: 1306.45523 | M66: 1306.45523 | N66: 0 | O66: 0.00267748872 | P66: 0.01070995488 | Q66: 1238.986553 | R66: 0.01788 | S66: 1675.485132 | T66: -0.0044925564
A67: 60 | B67: 2017-02-17 | C67: 0.002437 | D67: 0.00823 | E67: -0.0147 | F67: 0.00816 | G67: -0.00298 | H67: 0.02189 | I67: 0.00266 | J67: 0.00440652156 | L67: 1312.212154 | M67: 1312.212154 | N67: 0 | O67: 0.000881304312 | P67: 0.003525217248 | Q67: 1243.354249 | R67: 0.0372 | S67: 1737.813179 | T67: -0.03279347844
A68: 61 | B68: 2017-03-17 | C68: -0.005944333333 | D68: -0.00207 | E68: 0.03534 | F68: 0.00785 | G68: 0.0218 | H68: 0.01673 | I68: 0.00411 | J68: 0.01334383052 | L68: 1329.72209 | M68: 1329.72209 | N68: 0 | O68: 0.002668766104 | P68: 0.01067506442 | Q68: 1256.627136 | R68: -0.00039 | S68: 1737.135432 | T68: 0.01373383052
A69: 62 | B69: 2017-04-17 | C69: -0.01168566667 | D69: -0.01614 | E69: 0.04331 | F69: -0.03743 | G69: 0.01632 | H69: -0.00425 | I69: 0.00033 | J69: -0.00163689092 | K69: -0.002470224253 | L69: 1327.54548 | M69: 1329.72209 | N69: -0.00163689092 | O69: 0 | P69: -0.00163689092 | Q69: 1254.570175 | R69: 0.00909 | S69: 1752.925993 | T69: -0.01072689092
A70: 63 | B70: 2017-05-17 | C70: 0.009912666667 | D70: 0.01192 | E70: 0.00606 | F70: 0.01112 | G70: 0.02681 | H70: 0.00081 | I70: 0.0117 | J70: 0.01343248568 | L70: 1345.377716 | M70: 1345.377716 | N70: 0 | O70: 0.002354721449 | P70: 0.01107776423 | Q70: 1268.468007 | R70: 0.01158 | S70: 1773.224876 | T70: 0.00185248568
A71: 64 | B71: 2017-06-17 | C71: -0.0006116666667 | D71: -0.00184 | E71: 0.00726 | F71: -0.00664 | G71: 0.00117 | H71: -0.00801 | I71: -0.00566 | J71: -0.0024575942 | K71: -0.003290927533 | L71: 1342.071323 | M71: 1345.377716 | N71: -0.0024575942 | O71: 0 | P71: -0.0024575942 | Q71: 1265.350628 | R71: 0.00481 | S71: 1781.754088 | T71: -0.0072675942
A72: 65 | B72: 2017-07-17 | C72: -0.011388 | D72: -0.02122 | E72: -0.01521 | F72: -0.02043 | G72: 0.01881 | H72: 0.02166 | I72: -0.00141 | J72: -0.00500515824 | K72: =IF(J72<$E$166/12,J72-$E$166/12,"") -> -0.005838491573 | L72: 1335.354044 | M72: 1345.377716 | N72: -0.007450451792 | O72: 0 | P72: -0.00500515824 | Q72: 1259.017347 | R72: 0.01935 | S72: 1816.231029 | T72: -0.02435515824
A73: 66 | B73: 2017-08-17 | C73: -0.010232 | D73: -0.00109 | E73: -0.01837 | F73: 0.008 | G73: 0.01002 | H73: 0.00122 | I73: 0.00964 | J73: -0.00013924176 | K73: -0.0009725750933 | L73: 1335.168107 | M73: 1345.377716 | N73: -0.007588656138 | O73: 0 | P73: -0.00013924176 | Q73: 1258.84204 | R73: 0.00055 | S73: 1817.229956 | T73: -0.00068924176
A74: 67 | B74: 2017-09-17 | C74: 0.007414666667 | D74: 0.00193 | E74: 0.03843 | F74: 0.00151 | G74: 0.01828 | H74: 0.02263 | I74: 0.008 | J74: 0.01683842144 | L74: 1357.65023 | M74: 1357.65023 | N74: 0 | O74: 0.001824396862 | P74: 0.01501402458 | Q74: 1277.742325 | R74: 0.0193 | S74: 1852.302494 | T74: -0.00246157856
A75: 68 | B75: 2017-10-17 | C75: 0.001884333333 | D75: 0.00408 | E75: -0.01079 | F75: 0.00584 | G75: 0.01092 | H75: 0.00884 | I75: 0.0031 | J75: 0.00409397068 | L75: 1363.20841 | M75: 1363.20841 | N75: 0 | O75: 0.000818794136 | P75: 0.003275176544 | Q75: 1281.927157 | R75: 0.02519 | S75: 1898.961994 | T75: -0.02109602932
A76: 69 | B76: 2017-11-17 | C76: 0.005947333333 | D76: 0.00479 | E76: -0.00495 | F76: 0.00566 | G76: 0.0061 | H76: 0.0113 | I76: -0.00313 | J76: 0.00441000832 | L76: 1369.220171 | M76: 1369.220171 | N76: 0 | O76: 0.000882001664 | P76: 0.003528006656 | Q76: 1286.449804 | R76: 0.02808 | S76: 1952.284847 | T76: -0.02366999168
A77: 70 | B77: 2017-12-17 | C77: 0.011459 | D77: 0.01318 | E77: 0.02576 | F77: 0.01584 | G77: 0.01072 | H77: -0.00025 | I77: -0.003 | J77: 0.01263961932 | L77: 1386.526593 | M77: 1386.526593 | N77: 0 | O77: 0.002527923864 | P77: 0.01011169546 | Q77: 1299.457993 | R77: 0.00983 | S77: 1971.475807 | T77: 0.00280961932 | U77: =Q77/Q65-1 -> 0.06003985798
A78: 71 | B78: 2018-01-17 | C78: 0.001925 | D78: 0.00534 | E78: -0.00314 | F78: -0.00212 | G78: -0.01803 | H78: -0.00967 | I78: -0.01837 | J78: -0.0075562662 | K78: -0.008389599533 | L78: 1376.049629 | M78: 1386.526593 | N78: -0.0075562662 | O78: 0 | P78: -0.0075562662 | Q78: 1289.638942 | R78: 0.05618 | S78: 2082.233318 | T78: -0.0637362662
A79: 72 | B79: 2018-02-17 | C79: 0.003644 | D79: 0.00286 | E79: 0.00817 | F79: 0.00415 | G79: -0.05712 | H79: 0.03211 | I79: -0.01616 | J79: -0.00383189208 | K79: -0.004665225413 | L79: 1370.776755 | M79: 1386.526593 | N79: -0.01135920348 | O79: 0 | P79: -0.00383189208 | Q79: 1284.697185 | R79: -0.03895 | S79: 2001.13033 | T79: 0.03511810792
A80: 73 | B80: 2018-03-17 | C80: -0.001415 | D80: 0.00148 | E80: -0.00462 | F80: -0.00404 | G80: -0.02881 | H80: -0.00917 | I80: -0.00763 | J80: -0.0092950734 | K80: -0.01012840673 | L80: 1358.035284 | M80: 1386.526593 | N80: -0.02054869225 | O80: 0 | P80: -0.0092950734 | Q80: 1272.755831 | R80: -0.02688 | S80: 1947.339947 | T80: 0.0175849266
A81: 74 | B81: 2018-04-17 | C81: -0.009211666667 | D81: -0.01217 | E81: -0.00127 | F81: -0.00902 | G81: 0.01229 | H81: 0.02089 | I81: 0.00938 | J81: 0.0018671314 | L81: =L80*(1+J81) -> 1360.570915 | M81: =MAX(L81,M80) -> 1386.526593 | N81: =L81/M81-1 -> -0.01871992796 | O81: =IF(N81=0,0.2*(L81/M80-1),0) -> 0 | P81: =J81-O81 -> 0.0018671314 | Q81: =Q80*(1+P81) -> 1275.132233 | R81: 0.00272 | S81: =S80*(1+R81) -> 1952.636712 | T81: =J81-R81 -> -0.0008528686
A82: 75 | B82: 2018-05-17 | C82: 0.002338 | D82: 0.00302 | E82: 0.01193 | F82: 0.00085 | G82: 0.02772 | H82: 0.0224 | I82: 0.01118 | J82: 0.01362202824 | L82: =L81*(1+J82) -> 1379.10465 | M82: =MAX(L82,M81) -> 1386.526593 | N82: =L82/M82-1 -> -0.005352903109 | O82: =IF(N82=0,0.2*(L82/M81-1),0) -> 0 | P82: =J82-O82 -> 0.01362202824 | Q82: =Q81*(1+P82) -> 1292.50212 | R82: 0.02161 | S82: =S81*(1+R82) -> 1994.833191 | T82: =J82-R82 -> -0.00798797176
A83: 76 | B83: 2018-06-17 | C83: 0.006528333333 | D83: 0.00962 | E83: 0.00164 | F83: 0.004 | G83: -0.00421 | H83: -0.02626 | I83: -0.00281 | J83: -0.001970591 | K83: -0.002803924333 | L83: =L82*(1+J83) -> 1376.386999 | M83: =MAX(L83,M82) -> 1386.526593 | N83: =L83/M83-1 -> -0.007312945726 | O83: =IF(N83=0,0.2*(L83/M82-1),0) -> 0 | P83: =J83-O83 -> -0.001970591 | Q83: =Q82*(1+P83) -> 1289.955127 | R83: 0.00484 | S83: =S82*(1+R83) -> 2004.488183 | T83: =J83-R83 -> -0.006810591
A84: 77 | B84: 2018-07-17 | C84: 0.009437666667 | D84: 0.01167 | E84: 0.00748 | F84: 0.01416 | G84: 0.02754 | H84: 0.03509 | I84: 0.00652 | J84: 0.01918821188 | L84: =L83*(1+J84) -> 1402.797404 | M84: =MAX(L84,M83) -> 1402.797404 | N84: =L84/M84-1 -> 0 | O84: =IF(N84=0,0.2*(L84/M83-1),0) -> 0.00234698876 | P84: =J84-O84 -> 0.01684122312 | Q84: =Q83*(1+P84) -> 1311.679549 | R84: 0.03602158647 | S84: =S83*(1+R84) -> 2076.693028 | T84: =J84-R84 -> -0.01683337459
A85: 78 | B85: 2018-08-17 | C85: -0.009 | D85: -0.00971 | E85: -0.00875 | F85: -0.0187 | G85: 0.01659 | H85: 0.03403 | I85: 0.00247 | J85: 0.0011883564 | L85: =L84*(1+J85) -> 1404.464428 | M85: =MAX(L85,M84) -> 1404.464428 | N85: =L85/M85-1 -> 0 | O85: =IF(N85=0,0.2*(L85/M84-1),0) -> 0.00023767128 | P85: =J85-O85 -> 0.00095068512 | Q85: =Q84*(1+P85) -> 1312.926543 | R85: 0.03026321863 | S85: =S84*(1+R85) -> 2139.540443 | T85: =J85-R85 -> -0.02907486223
A86: 79 | B86: 2018-09-17 | C86: 0.0086 | D86: 0.00493 | E86: 0.01866 | F86: 0.00447 | G86: 0.01351 | H86: 0.00498 | I86: -0.00224 | J86: 0.0090730068 | L86: =L85*(1+J86) -> 1417.207143 | M86: =MAX(L86,M85) -> 1417.207143 | N86: =L86/M86-1 -> 0 | O86: =IF(N86=0,0.2*(L86/M85-1),0) -> 0.00181460136 | P86: =J86-O86 -> 0.00725840544 | Q86: =Q85*(1+P86) -> 1322.456297 | R86: 0.00429 | S86: =S85*(1+R86) -> 2148.719072 | T86: =J86-R86 -> 0.0047830068
A87: 80 | B87: 2018-10-17 | C87: 0.00687 | D87: 0.01039 | E87: 0.00573 | F87: 0.00297 | G87: -0.09812 | H87: 0.00765 | I87: -0.00295 | J87: -0.0115680408 | K87: -0.01240137413 | L87: =L86*(1+J87) -> 1400.812833 | M87: =MAX(L87,M86) -> 1417.207143 | N87: =L87/M87-1 -> -0.0115680408 | O87: =IF(N87=0,0.2*(L87/M86-1),0) -> 0 | P87: =J87-O87 -> -0.0115680408 | Q87: =Q86*(1+P87) -> 1307.158068 | R87: -0.0694 | S87: =S86*(1+R87) -> 1999.597968 | T87: =J87-R87 -> 0.0578319592
A88: 81 | B88: 2018-11-17 | C88: -0.02145 | D88: -0.02626 | E88: -0.01878 | F88: -0.0245 | G88: 0.01133 | H88: 0.02419 | I88: 0.0002 | J88: -0.0094776996 | K88: -0.01031103293 | L88: =L87*(1+J88) -> 1387.53635 | M88: =MAX(L88,M87) -> 1417.207143 | N88: =L88/M88-1 -> -0.02093610198 | O88: =IF(N88=0,0.2*(L88/M87-1),0) -> 0 | P88: =J88-O88 -> -0.0094776996 | Q88: =Q87*(1+P88) -> 1294.769217 | R88: 0.0178593818 | S88: =S87*(1+R88) -> 2035.309552 | T88: =J88-R88 -> -0.0273370814
A89: 82 | B89: 2018-12-17 | C89: 5e-05 | D89: -0.00637 | E89: 0.00507 | F89: -0.00501 | G89: -0.04232 | H89: -0.00303 | I89: 0 | J89: -0.0088500828 | K89: -0.009683416133 | L89: =L88*(1+J89) -> 1375.256538 | M89: =MAX(L89,M88) -> 1417.207143 | N89: =L89/M89-1 -> -0.02960089855 | O89: =IF(N89=0,0.2*(L89/M88-1),0) -> 0 | P89: =J89-O89 -> -0.0088500828 | Q89: =Q88*(1+P89) -> 1283.310402 | R89: -0.09177695577 | S89: =S88*(1+R89) -> 1848.515037 | T89: =J89-R89 -> 0.08292687297 | U89: =Q89/Q77-1 -> -0.01242640472
A90: 83 | B90: 2019-01-17 | C90: 0.00565 | D90: 0.01433 | E90: 0.01177 | F90: 0.02087 | G90: 0.05677 | H90: 0.04157 | I90: 0.0005 | J90: 0.0259723608 | L90: =L89*(1+J90) -> 1410.975197 | M90: =MAX(L90,M89) -> 1417.207143 | N90: =L90/M90-1 -> -0.004397342965 | O90: =IF(N90=0,0.2*(L90/M89-1),0) -> 0 | P90: =J90-O90 -> 0.0259723608 | Q90: =Q89*(1+P90) -> 1316.641003 | R90: 0.07868 | S90: =S89*(1+R90) -> 1993.9562 | T90: =J90-R90 -> -0.0527076392
A91: 84 | B91: 2019-02-17 | C91: 0.0031 | D91: 0.00608 | E91: 0.0023 | F91: 0.00504 | G91: 0.03475 | H91: 0.02369 | I91: 0.0026 | J91: 0.0132999888 | L91: =L90*(1+J91) -> 1429.741151 | M91: =MAX(L91,M90) -> 1429.741151 | N91: =L91/M91-1 -> 0 | O91: =IF(N91=0,0.2*(L91/M90-1),0) -> 0.001768832244 | P91: =J91-O91 -> 0.01153115656 | Q91: =Q90*(1+P91) -> 1331.823396 | R91: 0.02973 | S91: =S90*(1+R91) -> 2053.236518 | T91: =J91-R91 -> -0.0164300112
A92: 85 | B92: 2019-03-17 | C92: 0.00912 | D92: 0.01353 | E92: 0.00819 | F92: 0.02599 | G92: 0.02476 | H92: 0.02887 | I92: 0.00255 | J92: 0.0193789548 | L92: =L91*(1+J92) -> 1457.44804 | M92: =MAX(L92,M91) -> 1457.44804 | N92: =L92/M92-1 -> 0 | O92: =IF(N92=0,0.2*(L92/M91-1),0) -> 0.00387579096 | P92: =J92-O92 -> 0.01550316384 | Q92: =Q91*(1+P92) -> 1352.470873 | R92: 0.01792 | S92: =S91*(1+R92) -> 2090.030516 | T92: =J92-R92 -> 0.0014589548
A93: 86 | B93: 2019-04-17 | C93: 0.00066 | D93: 0.00374 | E93: 0.00376 | F93: 0.00531 | G93: 0.0338 | H93: -0.00795 | I93: 0.00344 | J93: 0.0073324848 | L93: =L92*(1+J93) -> 1468.134756 | M93: =MAX(L93,M92) -> 1468.134756 | N93: =L93/M93-1 -> 0 | O93: =IF(N93=0,0.2*(L93/M92-1),0) -> 0.00146649696 | P93: =J93-O93 -> 0.00586598784 | Q93: =Q92*(1+P93) -> 1360.40445 | R93: 0.03931 | S93: =S92*(1+R93) -> 2172.189616 | T93: =J93-R93 -> -0.0319775152
A94: 87 | B94: 2019-05-17 | C94: -0.00398 | D94: -0.00869 | E94: -0.00199 | F94: -0.01047 | G94: -0.05338 | H94: 0.01229 | I94: 0.00259 | J94: -0.0109112724 | K94: -0.01174460573 | L94: =L93*(1+J94) -> 1452.115538 | M94: =MAX(L94,M93) -> 1468.134756 | N94: =L94/M94-1 -> -0.0109112724 | O94: =IF(N94=0,0.2*(L94/M93-1),0) -> 0 | P94: =J94-O94 -> -0.0109112724 | Q94: =Q93*(1+P94) -> 1345.560707 | R94: -0.06578 | S94: =S93*(1+R94) -> 2029.302983 | T94: =J94-R94 -> 0.0548687276
A95: 88 | B95: 2019-06-17 | C95: 0.00101 | D95: 0.00169 | E95: -0.00443 | F95: 0.00252 | G95: 0.04986 | H95: 0.02689 | I95: 0.00233 | J95: =($L$169*C95+$M$169*D95+$N$169*E95+$O$169*F95+$P$169*G95+$Q$169*H95+$R$169*I95)*$S$169 -> 0.0136961076 | L95: =L94*(1+J95) -> 1472.003868 | M95: =MAX(L95,M94) -> 1472.003868 | N95: =L95/M95-1 -> 0 | O95: =IF(N95=0,0.2*(L95/M94-1),0) -> 0.0005270786478 | P95: =J95-O95 -> 0.01316902895 | Q95: =Q94*(1+P95) -> 1363.280435 | R95: 0.06893 | S95: =S94*(1+R95) -> 2169.182837 | T95: =J95-R95 -> -0.0552338924
A96: 89 | B96: 2019-07-17 | C96: -0.0021 | D96: -0.00173 | E96: -0.01023733333 | F96: 0.00023 | G96: 0.02671 | H96: 0.02207 | I96: 0.00337 | J96: 0.00656985608 | L96: =L95*(1+J96) -> 1481.674722 | M96: =MAX(L96,M95) -> 1481.674722 | N96: =L96/M96-1 -> 0 | O96: =IF(N96=0,0.2*(L96/M95-1),0) -> 0.001313971216 | P96: =J96-O96 -> 0.005255884864 | Q96: =Q95*(1+P96) -> 1370.44568 | R96: 0.06893 | S96: =S95*(1+R96) -> 2318.70461 | T96: =J96-R96 -> -0.06236014392
A97: 90 | B97: 2019-08-17 | C97: 0.00242 | D97: -0.00559 | E97: -0.000537 | F97: 0.01522 | G97: -0.04195 | H97: 0.02895 | I97: -0.00236 | J97: -0.00065968356 | K97: -0.001493016893 | L97: =L96*(1+J97) -> 1480.697286 | M97: =MAX(L97,M96) -> 1481.674722 | N97: =L97/M97-1 -> -0.00065968356 | O97: =IF(N97=0,0.2*(L97/M96-1),0) -> 0 | P97: =J97-O97 -> -0.00065968356 | Q97: =Q96*(1+P97) -> 1369.541619 | R97: -0.01809 | S97: =S96*(1+R97) -> 2276.759244 | T97: =J97-R97 -> 0.01743031644
A98: 91 | B98: 2019-09-17 | C98: 0.00608 | D98: 0.00983 | E98: 0.01933566667 | F98: 0.00851 | G98: 0.03348 | H98: -0.00579 | I98: 0.00394 | J98: 0.01292713412 | L98: =L97*(1+J98) -> 1499.838458 | M98: =MAX(L98,M97) -> 1499.838458 | N98: =L98/M98-1 -> 0 | O98: =IF(N98=0,0.2*(L98/M97-1),0) -> 0.002451784548 | P98: =J98-O98 -> 0.01047534957 | Q98: =Q97*(1+P98) -> 1383.888046 | R98: 0.01718 | S98: =S97*(1+R98) -> 2315.873968 | T98: =J98-R98 -> -0.00425286588
A99: 92 | B99: 2019-10-17 | C99: 0.00652 | D99: 0.00927 | E99: 0.002930666667 | F99: 0.00468 | G99: 0.04094 | H99: 0.02731 | I99: -0.00211 | J99: 0.01535443352 | L99: =L98*(1+J99) -> 1522.867628 | M99: =MAX(L99,M98) -> 1522.867628 | N99: =L99/M99-1 -> 0 | O99: =IF(N99=0,0.2*(L99/M98-1),0) -> 0.003070886704 | P99: =J99-O99 -> 0.01228354682 | Q99: =Q98*(1+P99) -> 1400.8871 | R99: 0.02043 | S99: =S98*(1+R99) -> 2363.187273 | T99: =J99-R99 -> -0.00507556648
A100: 93 | B100: 2019-11-17 | C100: 0.00531 | D100: 0.00467 | E100: 0.006036333333 | F100: 0.00794 | G100: 0.03508 | H100: -0.00288 | I100: -0.00494 | J100: 0.00878257684 | L100: =L99*(1+J100) -> 1536.24233 | M100: =MAX(L100,M99) -> 1536.24233 | N100: =L100/M100-1 -> 0 | O100: =IF(N100=0,0.2*(L100/M99-1),0) -> 0.001756515368 | P100: =J100-O100 -> 0.007026061472 | Q100: =Q99*(1+P100) -> 1410.729819 | R100: 0.03405 | S100: =S99*(1+R100) -> 2443.6538 | T100: =J100-R100 -> -0.02526742316
A101: 94 | B101: 2019-12-17 | C101: -0.00085 | D101: -0.00051 | E101: 0.001189 | F101: -0.00105 | G101: 0.01555 | H101: 0.02212 | I101: -0.01072 | J101: 0.00441200892 | L101: =L100*(1+J101) -> 1543.020245 | M101: =MAX(L101,M100) -> 1543.020245 | N101: =L101/M101-1 -> 0 | O101: =IF(N101=0,0.2*(L101/M100-1),0) -> 0.000882401784 | P101: =J101-O101 -> 0.003529607136 | Q101: =Q100*(1+P101) -> 1415.709141 | R101: 0.03405 | S101: =S100*(1+R101) -> 2526.860212 | T101: =J101-R101 -> -0.02963799108 | U101: =Q101/Q89-1 -> 0.103169692
A102: 95 | B102: 2020-01-17 | C102: -0.00649 | D102: -0.00981 | E102: -0.005439666667 | F102: -0.01171 | G102: -0.00709 | H102: 0.00656 | I102: 0.00237 | J102: -0.00542042564 | K102: -0.006253758973 | L102: =L101*(1+J102) -> 1534.656418 | M102: =MAX(L102,M101) -> 1543.020245 | N102: =L102/M102-1 -> -0.00542042564 | O102: =IF(N102=0,0.2*(L102/M101-1),0) -> 0 | P102: =J102-O102 -> -0.00542042564 | Q102: =Q101*(1+P102) -> 1408.035395 | R102: -0.00163 | S102: =S101*(1+R102) -> 2522.741429 | T102: =J102-R102 -> -0.00379042564
A103: 96 | B103: 2020-02-17 | C103: 0.00353 | D103: 0.00388 | E103: -0.0004016666667 | F103: 0.00146 | G103: -0.06386 | H103: 0.01434 | I103: 0.0491 | J103: 0.0013801282 | L103: =L102*(1+J103) -> 1536.774441 | M103: =MAX(L103,M102) -> 1543.020245 | N103: =L103/M103-1 -> -0.004047778322 | O103: =IF(N103=0,0.2*(L103/M102-1),0) -> 0 | P103: =J103-O103 -> 0.0013801282 | Q103: =Q102*(1+P103) -> 1409.978664 | R103: -0.08411 | S103: =S102*(1+R103) -> 2310.553648 | T103: =J103-R103 -> 0.0854901282
A104: 97 | B104: 2020-03-17 | C104: -0.06915 | D104: -0.11094 | E104: -0.091063 | G104: -0.04583 | H104: 0.00323 | I104: 0.02325 | J104: =($L$170*C104+$M$170*D104+$N$170*E104+$O$170*F104+$P$170*G104+$Q$170*H104+$R$170*I104)*$S$170 -> -0.05809827598 | K104: =IF(J104<$E$166/12,J104-$E$166/12,"") -> -0.05893160931 | L104: =L103*(1+J104) -> 1447.490495 | M104: =MAX(L104,M103) -> 1543.020245 | N104: =L104/M104-1 -> -0.06191088536 | O104: =IF(N104=0,0.2*(L104/M103-1),0) -> 0 | P104: =J104-O104 -> -0.05809827598 | Q104: =Q103*(1+P104) -> 1328.061335 | R104: -0.12512 | S104: =S103*(1+R104) -> 2021.457175 | T104: =J104-R104 -> 0.06702172402
A105: 98 | B105: 2020-04-17 | C105: 0.00707 | D105: 0.00608 | E105: 0.00051 | G105: 0.00042 | H105: 0.00601 | I105: -0.0084 | J105: 0.00233790648 | L105: =L104*(1+J105) -> 1450.874593 | M105: =MAX(L105,M104) -> 1543.020245 | N105: =L105/M105-1 -> -0.05971772074 | O105: =IF(N105=0,0.2*(L105/M104-1),0) -> 0 | P105: =J105-O105 -> 0.00233790648 | Q105: =Q104*(1+P105) -> 1331.166218 | R105: 0.12684 | S105: =S104*(1+R105) -> 2277.858803 | T105: =J105-R105 -> -0.1245020935
A106: 99 | B106: 2020-05-17 | C106: -0.00328 | D106: -0.00165 | E106: -0.00957 | G106: -0.00264 | H106: 0.02675 | I106: -0.00761 | J106: 0.000399984 | K106: -0.0004333493333 | L106: =L105*(1+J106) -> 1451.454919 | M106: =MAX(L106,M105) -> 1543.020245 | N106: =L106/M106-1 -> -0.05934162287 | O106: =IF(N106=0,0.2*(L106/M105-1),0) -> 0 | P106: =J106-O106 -> 0.000399984 | Q106: =Q105*(1+P106) -> 1331.698663 | R106: 0.04528 | S106: =S105*(1+R106) -> 2381.00025 | T106: =J106-R106 -> -0.044880016
A107: 100 | B107: 2020-06-17 | C107: 0.00576 | D107: 0.00233 | E107: -0.00439 | G107: -0.01892 | H107: -0.00927 | I107: 0.01567 | J107: -0.00176392944 | K107: -0.002597262773 | L107: =L106*(1+J107) -> 1448.894655 | M107: =MAX(L107,M106) -> 1543.020245 | N107: =L107/M107-1 -> -0.06100087787 | O107: =IF(N107=0,0.2*(L107/M106-1),0) -> 0 | P107: =J107-O107 -> -0.00176392944 | Q107: =Q106*(1+P107) -> 1329.34964 | R107: 0.01839 | S107: =S106*(1+R107) -> 2424.786845 | T107: =J107-R107 -> -0.02015392944
A108: 101 | B108: 2020-07-17 | C108: 0.00095 | D108: 0.00553 | E108: -0.01317 | G108: 0.01358 | H108: 0.01348 | I108: 0.00317 | J108: 0.00470781168 | L108: =L107*(1+J108) -> 1455.715778 | M108: =MAX(L108,M107) -> 1543.020245 | N108: =L108/M108-1 -> -0.05658024684 | O108: =IF(N108=0,0.2*(L108/M107-1),0) -> 0 | P108: =J108-O108 -> 0.00470781168 | Q108: =Q107*(1+P108) -> 1335.607968 | R108: 0.0551 | S108: =S107*(1+R108) -> 2558.3926 | T108: =J108-R108 -> -0.05039218832
A109: 102 | B109: 2020-08-17 | C109: 0.00298 | D109: 0.00273 | E109: -0.02934 | G109: 0.00057 | H109: -0.0003 | I109: 0.00027 | J109: -0.00461781528 | K109: -0.005451148613 | L109: =L108*(1+J109) -> 1448.993552 | M109: =MAX(L109,M108) -> 1543.020245 | N109: =L109/M109-1 -> -0.06093678499 | O109: =IF(N109=0,0.2*(L109/M108-1),0) -> 0 | P109: =J109-O109 -> -0.00461781528 | Q109: =Q108*(1+P109) -> 1329.440377 | R109: 0.07006 | S109: =S108*(1+R109) -> 2737.633585 | T109: =J109-R109 -> -0.07467781528
A110: 103 | B110: 2020-09-17 | C110: 0.0025 | D110: 0.00081 | E110: 0.05936 | G110: 0.01921 | H110: 0.00478 | I110: 0.00108 | J110: 0.01754729808 | L110: =L109*(1+J110) -> 1474.419474 | M110: =MAX(L110,M109) -> 1543.020245 | N110: =L110/M110-1 -> -0.04445876284 | O110: =IF(N110=0,0.2*(L110/M109-1),0) -> 0 | P110: =J110-O110 -> 0.01754729808 | Q110: =Q109*(1+P110) -> 1352.768464 | R110: -0.03923 | S110: =S109*(1+R110) -> 2630.23622 | T110: =J110-R110 -> 0.05677729808
A111: 104 | B111: 2020-10-17 | C111: 0.00995 | D111: 0.01225 | E111: 0.01717 | G111: -0.00793 | H111: 0.00071 | I111: -0.01708 | J111: 0.00301387944 | L111: =L110*(1+J111) -> 1478.863196 | M111: =MAX(L111,M110) -> 1543.020245 | N111: =L111/M111-1 -> -0.04157887675 | O111: =IF(N111=0,0.2*(L111/M110-1),0) -> 0 | P111: =J111-O111 -> 0.00301387944 | Q111: =Q110*(1+P111) -> 1356.845545 | R111: -0.02727 | S111: =S110*(1+R111) -> 2558.509678 | T111: =J111-R111 -> 0.03028387944
A112: 105 | B112: 2020-11-17 | C112: 0.00028 | D112: -0.00023 | E112: 0.00115 | G112: 0.05054 | H112: 0.01589 | I112: 0.00362 | J112: 0.01424943 | L112: =L111*(1+J112) -> 1499.936154 | M112: =MAX(L112,M111) -> 1543.020245 | N112: =L112/M112-1 -> -0.02792192205 | O112: =IF(N112=0,0.2*(L112/M111-1),0) -> 0 | P112: =J112-O112 -> 0.01424943 | Q112: =Q111*(1+P112) -> 1376.179821 | R112: 0.10755 | S112: =S111*(1+R112) -> 2833.677394 | T112: =J112-R112 -> -0.09330057
A113: 106 | B113: 2020-12-17 | C113: 0.00936 | D113: 0.01536 | E113: 0.00626 | G113: -0.00417 | H113: 0.01243 | I113: 0.00214 | J113: 0.00827566896 | L113: =L112*(1+J113) -> 1512.349129 | M113: =MAX(L113,M112) -> 1543.020245 | N113: =L113/M113-1 -> -0.01987732567 | O113: =IF(N113=0,0.2*(L113/M112-1),0) -> 0 | P113: =J113-O113 -> 0.00827566896 | Q113: =Q112*(1+P113) -> 1387.568629 | R113: 0.03712 | S113: =S112*(1+R113) -> 2938.863499 | T113: =J113-R113 -> -0.02884433104 | U113: =Q113/Q101-1 -> -0.01987732567
A114: 107 | B114: 2021-01-17 | C114: 0.0062 | D114: 0.00976 | E114: 0.00511 | G114: -0.04018 | H114: -0.01326 | I114: 0.00332 | J114: -0.0058097676 | K114: -0.006643100933 | L114: =L113*(1+J114) -> 1503.562732 | M114: =MAX(L114,M113) -> 1543.020245 | N114: =L114/M114-1 -> -0.02557161063 | O114: =IF(N114=0,0.2*(L114/M113-1),0) -> 0 | P114: =J114-O114 -> -0.0058097676 | Q114: =Q113*(1+P114) -> 1379.507178 | R114: -0.01114 | S114: =S113*(1+R114) -> 2906.124559 | T114: =J114-R114 -> 0.0053302324
A115: 108 | B115: 2021-02-17 | C115: 0.00019 | D115: 0.00051 | E115: -0.00095 | G115: 0.03193 | H115: -0.0137 | I115: 0.00477 | J115: 0.004549818 | L115: =L114*(1+J115) -> 1510.403669 | M115: =MAX(L115,M114) -> 1543.020245 | N115: =L115/M115-1 -> -0.0211381388 | O115: =IF(N115=0,0.2*(L115/M114-1),0) -> 0 | P115: =J115-O115 -> 0.004549818 | Q115: =Q114*(1+P115) -> 1385.783685 | R115: 0.02609 | S115: =S114*(1+R115) -> 2981.945349 | T115: =J115-R115 -> -0.021540182
A116: 109 | B116: 2021-03-17 | C116: -0.00116 | D116: -0.00013 | E116: -0.00598 | G116: 0.05093 | H116: 0.01291 | I116: 0.01264 | J116: 0.01384144632 | L116: =L115*(1+J116) -> 1531.30984 | M116: =MAX(L116,M115) -> 1543.020245 | N116: =L116/M116-1 -> -0.007589274894 | O116: =IF(N116=0,0.2*(L116/M115-1),0) -> 0 | P116: =J116-O116 -> 0.01384144632 | Q116: =Q115*(1+P116) -> 1404.964935 | R116: 0.05476 | S116: =S115*(1+R116) -> 3145.236677 | T116: =J116-R116 -> -0.04091855368
A117: 110 | B117: 2021-04-17 | C117: 0.00788 | D117: 0.01673 | E117: 0.00792 | G117: 0.02028 | H117: 0.00938 | I117: -0.00791 | J117: 0.01085556576 | L117: =L116*(1+J117) -> 1547.933075 | M117: =MAX(L117,M116) -> 1547.933075 | N117: =L117/M117-1 -> 0 | O117: =IF(N117=0,0.2*(L117/M116-1),0) -> 0.0006367809986 | P117: =J117-O117 -> 0.01021878476 | Q117: =Q116*(1+P117) -> 1419.321969 | R117: 0.04013 | S117: =S116*(1+R117) -> 3271.455024 | T117: =J117-R117 -> -0.02927443424
A118: 111 | B118: 2021-05-17 | C118: 0.00489 | D118: 0.0047 | E118: 0.0084 | G118: -0.00847 | H118: 0.01455 | I118: 0.00857 | J118: 0.00652773888 | L118: =L117*(1+J118) -> 1558.037577 | M118: =MAX(L118,M117) -> 1558.037577 | N118: =L118/M118-1 -> 0 | O118: =IF(N118=0,0.2*(L118/M117-1),0) -> 0.001305547776 | P118: =J118-O118 -> 0.005222191104 | Q118: =Q117*(1+P118) -> 1426.73394 | R118: 0.00549 | S118: =S117*(1+R118) -> 3289.415312 | T118: =J118-R118 -> 0.00103773888
A119: 112 | B119: 2021-06-17 | C119: 0.00544 | D119: 0.00745 | E119: 0.0023 | G119: 0.02127 | H119: -0.00675 | I119: 0.00406 | J119: 0.00675372984 | L119: =L118*(1+J119) -> 1568.560142 | M119: =MAX(L119,M118) -> 1568.560142 | N119: =L119/M119-1 -> 0 | O119: =IF(N119=0,0.2*(L119/M118-1),0) -> 0.001350745968 | P119: =J119-O119 -> 0.005402983872 | Q119: =Q118*(1+P119) -> 1434.44256 | R119: 0.02221 | S119: =S118*(1+R119) -> 3362.473227 | T119: =J119-R119 -> -0.01545627016
A120: 113 | B120: 2021-07-17 | C120: 0.00905 | D120: 0.00602 | E120: 0.00627 | G120: -0.01011 | H120: -0.00214 | I120: -0.02243 | J120: -0.00266789328 | K120: -0.003501226613 | L120: =L119*(1+J120) -> 1564.375391 | M120: =MAX(L120,M119) -> 1568.560142 | N120: =L120/M120-1 -> -0.00266789328 | O120: =IF(N120=0,0.2*(L120/M119-1),0) -> 0 | P120: =J120-O120 -> -0.00266789328 | Q120: =Q119*(1+P120) -> 1430.615621 | R120: 0.02275 | S120: =S119*(1+R120) -> 3438.969492 | T120: =J120-R120 -> -0.02541789328
A121: 114 | B121: 2021-08-17 | C121: 0.00526 | D121: 0.00438 | E121: 0.00134 | G121: 0.02313 | H121: 0.01596 | I121: -0.02488 | J121: 0.00503779848 | L121: =L120*(1+J121) -> 1572.256399 | M121: =MAX(L121,M120) -> 1572.256399 | N121: =L121/M121-1 -> 0 | O121: =IF(N121=0,0.2*(L121/M120-1),0) -> 0.0004712929783 | P121: =J121-O121 -> 0.004566505502 | Q121: =Q120*(1+P121) -> 1437.148535 | R121: 0.02899 | S121: =S120*(1+R121) -> 3538.665218 | T121: =J121-R121 -> -0.02395220152
A122: 115 | B122: 2021-09-17 | C122: 0.00301 | D122: -0.00035 | E122: 0.00303 | G122: -0.01993 | H122: -0.00415 | I122: 0.05332 | J122: 0.00698572056 | L122: =L121*(1+J122) -> 1583.239743 | M122: =MAX(L122,M121) -> 1583.239743 | N122: =L122/M122-1 -> 0 | O122: =IF(N122=0,0.2*(L122/M121-1),0) -> 0.001397144112 | P122: =J122-O122 -> 0.005588576448 | Q122: =Q121*(1+P122) -> 1445.180149 | R122: -0.04757 | S122: =S121*(1+R122) -> 3370.330914 | T122: =J122-R122 -> 0.05455572056
A123: 116 | B123: 2021-10-17 | C123: -0.00328 | D123: -0.00949 | E123: -0.00641 | G123: 0.04389 | H123: 0.00826 | I123: 0.00465 | J123: 0.00752369904 | L123: =L122*(1+J123) -> 1595.151562 | M123: =MAX(L123,M122) -> 1595.151562 | N123: =L123/M123-1 -> 0 | O123: =IF(N123=0,0.2*(L123/M122-1),0) -> 0.001504739808 | P123: =J123-O123 -> 0.006018959232 | Q123: =Q122*(1+P123) -> 1453.87863 | R123: 0.06914 | S123: =S122*(1+R123) -> 3603.355593 | T123: =J123-R123 -> -0.06161630096
A124: 117 | B124: 2021-11-17 | C124: -0.00387 | D124: -0.00512 | E124: 0.0041 | G124: -0.02919 | H124: 3e-05 | I124: -0.00565 | J124: -0.0079396824 | K124: -0.008773015733 | L124: =L123*(1+J124) -> 1582.486566 | M124: =MAX(L124,M123) -> 1595.151562 | N124: =L124/M124-1 -> -0.0079396824 | O124: =IF(N124=0,0.2*(L124/M123-1),0) -> 0 | P124: =J124-O124 -> -0.0079396824 | Q124: =Q123*(1+P124) -> 1442.335295 | R124: -0.00833 | S124: =S123*(1+R124) -> 3573.339641 | T124: =J124-R124 -> 0.0003903176
A125: 118 | B125: 2021-12-17 | C125: 0.00845 | D125: 0.01297 | E125: 0.00903 | G125: 0.03603 | H125: 0.02158 | I125: 0.01441 | J125: 0.02049318024 | L125: =L124*(1+J125) -> 1614.916748 | M125: =MAX(L125,M124) -> 1614.916748 | N125: =L125/M125-1 -> 0 | O125: =IF(N125=0,0.2*(L125/M124-1),0) -> 0.0024781577 | P125: =J125-O125 -> 0.01801502254 | Q125: =Q124*(1+P125) -> 1468.318998 | R125: 0.04361 | S125: =S124*(1+R125) -> 3729.172983 | T125: =J125-R125 -> -0.02311681976 | U125: =Q125/Q113-1 -> 0.05819558541
A126: 119 | B126: 2022-01-17 | C126: 0.00114 | D126: 0.00445 | E126: -0.00098 | G126: -0.04431 | H126: -0.01066 | I126: -0.01353 | J126: -0.01277748888 | K126: -0.01361082221 | L126: =L125*(1+J126) -> 1594.282167 | M126: =MAX(L126,M125) -> 1614.916748 | N126: =L126/M126-1 -> -0.01277748888 | O126: =IF(N126=0,0.2*(L126/M125-1),0) -> 0 | P126: =J126-O126 -> -0.01277748888 | Q126: =Q125*(1+P126) -> 1449.557568 | R126: -0.05259 | S126: =S125*(1+R126) -> 3533.055775 | T126: =J126-R126 -> 0.03981251112
A127: 120 | B127: 2022-02-17 | C127: 0.00969 | D127: 0.0125 | E127: 0.01033 | G127: -0.03935 | H127: 0.00473 | I127: 0.00378 | J127: 0.00033598656 | K127: -0.0004973467733 | L127: =L126*(1+J127) -> 1594.817825 | M127: =MAX(L127,M126) -> 1614.916748 | N127: =L127/M127-1 -> -0.01244579538 | O127: =IF(N127=0,0.2*(L127/M126-1),0) -> 0 | P127: =J127-O127 -> 0.00033598656 | Q127: =Q126*(1+P127) -> 1450.0446 | R127: -0.05259 | S127: =S126*(1+R127) -> 3347.252372 | T127: =J127-R127 -> 0.05292598656
A128: 121 | B128: 2022-03-17 | C128: -0.00211 | D128: -0.00305 | E128: 0.00125 | G128: -0.01361 | H128: -0.00505 | I128: 9e-05 | J128: -0.00449582016 | K128: -0.005329153493 | L128: =L127*(1+J128) -> 1587.647811 | M128: =MAX(L128,M127) -> 1614.916748 | N128: =L128/M128-1 -> -0.01688566149 | O128: =IF(N128=0,0.2*(L128/M127-1),0) -> 0 | P128: =J128-O128 -> -0.00449582016 | Q128: =Q127*(1+P128) -> 1443.52546 | R128: 0.03577 | S128: =S127*(1+R128) -> 3466.98359 | T128: =J128-R128 -> -0.04026582016
A129: 122 | B129: 2022-04-17 | C129: 0.00186 | D129: 0.00015 | E129: 0.00385 | G129: -0.05052 | H129: 0.00594 | I129: -0.01346 | J129: -0.01043558256 | K129: -0.01126891589 | L129: =L128*(1+J129) -> 1571.079781 | M129: =MAX(L129,M128) -> 1614.916748 | N129: =L129/M129-1 -> -0.02714503233 | O129: =IF(N129=0,0.2*(L129/M128-1),0) -> 0 | P129: =J129-O129 -> -0.01043558256 | Q129: =Q128*(1+P129) -> 1428.461431 | R129: -0.08796 | S129: =S128*(1+R129) -> 3162.027713 | T129: =J129-R129 -> 0.07752441744
A130: 123 | B130: 2022-05-17 | C130: 0.00622 | D130: 0.01001 | E130: 0.00529 | G130: 0.00745 | H130: -0.00629 | I130: 0.02306 | J130: 0.00914763408 | L130: =L129*(1+J130) -> 1585.451444 | M130: =MAX(L130,M129) -> 1614.916748 | N130: =L130/M130-1 -> -0.01824571108 | O130: =IF(N130=0,0.2*(L130/M129-1),0) -> 0 | P130: =J130-O130 -> 0.00914763408 | Q130: =Q129*(1+P130) -> 1441.528474 | R130: 5e-05 | S130: =S129*(1+R130) -> 3162.185814 | T130: =J130-R130 -> 0.00909763408
A131: 124 | B131: 2022-06-17 | C131: 0.00961 | D131: 0.01045 | E131: 0.01222 | G131: -0.0205 | H131: -0.017 | I131: -0.01131 | J131: -0.00330586776 | K131: -0.004139201093 | L131: =L130*(1+J131) -> 1580.210151 | M131: =MAX(L131,M130) -> 1614.916748 | N131: =L131/M131-1 -> -0.02149126093 | O131: =IF(N131=0,0.2*(L131/M130-1),0) -> 0 | P131: =J131-O131 -> -0.00330586776 | Q131: =Q130*(1+P131) -> 1436.762971 | R131: -0.08392 | S131: =S130*(1+R131) -> 2896.815181 | T131: =J131-R131 -> 0.08061413224
A132: 125 | B132: 2022-07-17 | C132: 0.01053 | D132: 0.01261 | E132: 0.00853 | G132: 0.05163 | H132: -0.00373 | I132: -0.00167 | J132: 0.0155793768 | L132: =L131*(1+J132) -> 1604.82884 | M132: =MAX(L132,M131) -> 1614.916748 | N132: =L132/M132-1 -> -0.006246704579 | O132: =IF(N132=0,0.2*(L132/M131-1),0) -> 0 | P132: =J132-O132 -> 0.0155793768 | Q132: =Q131*(1+P132) -> 1459.146843 | R132: 0.09112 | S132: =S131*(1+R132) -> 3160.77298 | T132: =J132-R132 -> -0.0755406232
A133: 126 | B133: 2022-08-17 | C133: 0.0083 | D133: 0.01474 | E133: 0.008 | G133: -0.0103 | H133: -0.01445 | I133: -0.01994 | J133: -0.0027298908 | K133: -0.003563224133 | L133: =L132*(1+J133) -> 1600.447833 | M133: =MAX(L133,M132) -> 1614.916748 | N133: =L133/M133-1 -> -0.008959542558 | O133: =IF(N133=0,0.2*(L133/M132-1),0) -> 0 | P133: =J133-O133 -> -0.0027298908 | Q133: =Q132*(1+P133) -> 1455.163531 | R133: -0.04244 | S133: =S132*(1+R133) -> 3026.629775 | T133: =J133-R133 -> 0.0397101092
A134: 127 | B134: 2022-09-17 | C134: -0.01309 | D134: -0.01991 | E134: -0.00305 | G134: -0.04462 | H134: -0.00601 | I134: -0.02218 | J134: -0.02177112912 | K134: -0.02260446245 | L134: =L133*(1+J134) -> 1565.604276 | M134: =MAX(L134,M133) -> 1614.916748 | N134: =L134/M134-1 -> -0.03053561232 | O134: =IF(N134=0,0.2*(L134/M133-1),0) -> 0 | P134: =J134-O134 -> -0.02177112912 | Q134: =Q133*(1+P134) -> 1423.482978 | R134: -0.0934 | S134: =S133*(1+R134) -> 2743.942554 | T134: =J134-R134 -> 0.07162887088
A135: 128 | B135: 2022-10-17 | C135: 0.02035 | D135: 0.03101 | E135: 0.02006 | G135: 0.03077 | H135: 0.00046 | I135: 0.03087 | J135: 0.02670293184 | L135: =L134*(1+J135) -> 1607.410501 | M135: =MAX(L135,M134) -> 1614.916748 | N135: =L135/M135-1 -> -0.004648070854 | O135: =IF(N135=0,0.2*(L135/M134-1),0) -> 0 | P135: =J135-O135 -> 0.02670293184 | Q135: =Q134*(1+P135) -> 1461.494147 | R135: 0.07986 | S135: =S134*(1+R135) -> 2963.073806 | T135: =J135-R135 -> -0.05315706816
A136: 129 | B136: 2022-11-17 | C136: 0.00485 | D136: 0.00488 | E136: 0.00468 | G136: 0.0423 | H136: 0.00743 | I136: 0.0324 | J136: 0.01930722768 | K136: =IF(J136<$E$166/12,J136-$E$166/12,"") ->  | L136: =L135*(1+J136) -> 1638.445141 | M136: =MAX(L136,M135) -> 1638.445141 | N136: =L136/M136-1 -> 0 | O136: =IF(N136=0,0.2*(L136/M135-1),0) -> 0.002913883093 | P136: =J136-O136 -> 0.01639334459 | Q136: 1485.452924 | R136: 0.05375 | S136: =S135*(1+R136) -> 3122.339023 | T136: =J136-R136 -> -0.03444277232
A137: 130 | B137: 2022-12-17 | C137: 0.00176 | D137: -0.00027 | E137: 0.00862 | G137: 0.00264 | H137: -0.02076 | I137: 0.00181 | J137: -0.0012399504 | K137: -0.002073283733 | L137: =L136*(1+J137) -> 1636.41355 | M137: =MAX(L137,M136) -> 1638.445141 | N137: =L137/M137-1 -> -0.0012399504 | O137: =IF(N137=0,0.2*(L137/M136-1),0) -> 0 | P137: =J137-O137 -> -0.0012399504 | Q137: =Q136*(1+P137) -> 1483.611036 | R137: -0.05897 | S137: =S136*(1+R137) -> 2938.214691 | T137: =J137-R137 -> 0.0577300496 | U137: =Q137/Q125-1 -> 0.01041465683
A138: 131 | B138: 2023-01-17 | C138: 0.01507 | D138: 0.02069 | E138: 0.00893 | G138: 0.00512 | H138: 0 | I138: 0.00603 | J138: 0.01116755328 | L138: =L137*(1+J138) -> 1654.688286 | M138: =MAX(L138,M137) -> 1654.688286 | N138: =L138/M138-1 -> 0 | O138: =IF(N138=0,0.2*(L138/M137-1),0) -> 0.001982751134 | P138: =J138-O138 -> 0.009184802146 | Q138: =Q137*(1+P138) -> 1497.23771 | R138: 0.06175 | S138: =S137*(1+R138) -> 3119.649448 | T138: =J138-R138 -> -0.05058244672
A139: 132 | B139: 2023-02-17 | C139: 0.00915 | D139: 0.01192 | E139: 0.00901 | G139: -0.00246 | H139: -0.01364 | I139: -0.00671 | J139: 0.00145394184 | L139: =L138*(1+J139) -> 1657.094106 | M139: =MAX(L139,M138) -> 1657.094106 | N139: =L139/M139-1 -> 0 | O139: =IF(N139=0,0.2*(L139/M138-1),0) -> 0.000290788368 | P139: =J139-O139 -> 0.001163153472 | Q139: =Q138*(1+P139) -> 1498.979227 | R139: -0.02611 | S139: =S138*(1+R139) -> 3038.195401 | T139: =J139-R139 -> 0.02756394184
A140: 133 | B140: 2023-03-17 | C140: 0.00539 | D140: 0.00828 | E140: 0.00372 | G140: -0.00551 | H140: 0.01134 | I140: 0.00983 | J140: 0.0066097356 | L140: =L139*(1+J140) -> 1668.04706 | M140: =MAX(L140,M139) -> 1668.04706 | N140: =L140/M140-1 -> 0 | O140: =IF(N140=0,0.2*(L140/M139-1),0) -> 0.00132194712 | P140: =J140-O140 -> 0.00528778848 | Q140: =Q139*(1+P140) -> 1506.905513 | R140: 0.03505 | S140: =S139*(1+R140) -> 3144.68415 | T140: =J140-R140 -> -0.0284402644
A141: 134 | B141: 2023-04-17 | C141: -0.00109 | D141: -0.00073 | E141: -0.00761 | G141: 0.03101 | H141: 0.00455 | I141: 0.00551 | J141: 0.00632774688 | L141: =L140*(1+J141) -> 1678.60204 | M141: =MAX(L141,M140) -> 1678.60204 | N141: =L141/M141-1 -> 0 | O141: =IF(N141=0,0.2*(L141/M140-1),0) -> 0.001265549376 | P141: =J141-O141 -> 0.005062197504 | Q141: =Q140*(1+P141) -> 1514.533766 | R141: 0.01464 | S141: =S140*(1+R141) -> 3190.722326 | T141: =J141-R141 -> -0.00831225312
A142: 135 | B142: 2023-05-17 | C142: 0.00274 | D142: 0.00077 | E142: 0.01016 | G142: 0.00991 | H142: -0.02597 | I142: 0.00977 | J142: 0.00147594096 | L142: =L141*(1+J142) -> 1681.079557 | M142: =MAX(L142,M141) -> 1681.079557 | N142: =L142/M142-1 -> 0 | O142: =IF(N142=0,0.2*(L142/M141-1),0) -> 0.000295188192 | P142: =J142-O142 -> 0.001180752768 | Q142: =Q141*(1+P142) -> 1516.322056 | R142: 0.00248 | S142: =S141*(1+R142) -> 3198.635317 | T142: =J142-R142 -> -0.00100405904
A143: 136 | B143: 2023-06-17 | C143: 0.00514 | D143: 0.01319 | E143: 0.00581 | G143: 0.05299 | H143: 0.05063 | I143: -1e-05 | J143: 0.025548978 | L143: =L142*(1+J143) -> 1724.029422 | M143: =MAX(L143,M142) -> 1724.029422 | N143: =L143/M143-1 -> 0 | O143: =IF(N143=0,0.2*(L143/M142-1),0) -> 0.0051097956 | P143: =J143-O143 -> 0.0204391824 | Q143: =Q142*(1+P143) -> 1547.314439 | R143: 0.06473 | S143: =S142*(1+R143) -> 3405.682981 | T143: =J143-R143 -> -0.039181022
A144: 137 | B144: 2023-07-17 | C144: 0.00059 | D144: -0.00535 | E144: -0.00136 | G144: 0.01417 | H144: -0.01169 | I144: 0.00107 | J144: -0.00051397944 | K144: -0.001347312773 | L144: =L143*(1+J144) -> 1723.143306 | M144: =MAX(L144,M143) -> 1724.029422 | N144: =L144/M144-1 -> -0.00051397944 | O144: =IF(N144=0,0.2*(L144/M143-1),0) -> 0 | P144: =J144-O144 -> -0.00051397944 | Q144: =Q143*(1+P144) -> 1546.519151 | R144: 0.03114 | S144: =S143*(1+R144) -> 3511.73595 | T144: =J144-R144 -> -0.03165397944
A145: 138 | B145: 2023-08-17 | C145: 0.00497 | D145: 0.00546 | E145: 0.00875 | G145: 0.00139 | H145: 0.01231 | I145: 0.00218 | J145: 0.00701171952 | L145: =L144*(1+J145) -> 1735.225504 | M145: =MAX(L145,M144) -> 1735.225504 | N145: =L145/M145-1 -> 0 | O145: =IF(N145=0,0.2*(L145/M144-1),0) -> 0.00129882724 | P145: =J145-O145 -> 0.00571289228 | Q145: =Q144*(1+P145) -> 1555.354248 | R145: -0.01771643248 | S145: =S144*(1+R145) -> 3449.520517 | T145: =J145-R145 -> 0.024728152
A146: 139 | B146: 2023-09-17 | C146: -0.00719 | D146: -0.01246 | E146: -0.00643 | G146: -0.01147 | H146: -0.01159 | I146: -0.00771 | J146: -0.0113695452 | K146: -0.01220287853 | L146: =L145*(1+J146) -> 1715.496779 | M146: =MAX(L146,M145) -> 1735.225504 | N146: =L146/M146-1 -> -0.0113695452 | O146: =IF(N146=0,0.2*(L146/M145-1),0) -> 0 | P146: =J146-O146 -> -0.0113695452 | Q146: =Q145*(1+P146) -> 1537.670578 | R146: -0.04871929116 | S146: =S145*(1+R146) -> 3281.462322 | T146: =J146-R146 -> 0.03734974596
A147: 140 | B147: 2023-10-17 | C147: 0.00347 | D147: 0.00717 | E147: 0.00915 | G147: -0.00747 | H147: 0.01242 | I147: -0.00483 | J147: 0.00398184072 | L147: =L146*(1+J147) -> 1722.327614 | M147: =MAX(L147,M146) -> 1735.225504 | N147: =L147/M147-1 -> -0.007432976198 | O147: =IF(N147=0,0.2*(L147/M146-1),0) -> 0 | P147: =J147-O147 -> 0.00398184072 | Q147: =Q146*(1+P147) -> 1543.793337 | R147: -0.02197968774 | S147: =S146*(1+R147) -> 3209.336805 | T147: =J147-R147 -> 0.02596152846
A148: 141 | B148: 2023-11-17 | C148: 0.00148 | D148: 0.00502 | E148: 0.00183 | G148: 0.04885 | H148: 0.03806 | I148: -0.01115 | J148: 0.01681732728 | L148: =L147*(1+J148) -> 1751.292561 | M148: =MAX(L148,M147) -> 1751.292561 | N148: =L148/M148-1 -> 0 | O148: =IF(N148=0,0.2*(L148/M147-1),0) -> 0.001851869658 | P148: =J148-O148 -> 0.01496545762 | Q148: =Q147*(1+P148) -> 1566.896911 | R148: 0.08917926463 | S148: =S147*(1+R148) -> 3495.543101 | T148: =J148-R148 -> -0.07236193735
A149: 142 | B149: 2023-12-17 | C149: -0.0016 | D149: -0.00255 | E149: -0.00066 | G149: 0.02092 | H149: 0.00014 | I149: -0.00041 | J149: 0.00316787328 | L149: =L148*(1+J149) -> 1756.840434 | M149: =MAX(L149,M148) -> 1756.840434 | N149: =L149/M149-1 -> 0 | O149: =IF(N149=0,0.2*(L149/M148-1),0) -> 0.000633574656 | P149: =J149-O149 -> 0.002534298624 | Q149: =Q148*(1+P149) -> 1570.867896 | R149: 0.0442291694 | S149: =S148*(1+R149) -> 3650.148069 | T149: =J149-R149 -> -0.04106129612 | U149: =Q149/Q137-1 -> 0.05881383814
A150: 143 | B150: 2024-01-17 | C150: 0.00912 | D150: 0.00785 | E150: 0.00775 | G150: 0.00505 | H150: -0.00725 | I150: 0.0016 | J150: =($L$170*C150+$M$170*D150+$N$170*E150+$O$170*F150+$P$170*G150+$Q$170*H150+$R$170*I150)*$S$170 -> 0.00482380704 | K150: =IF(J150<$E$166/12,J150-$E$166/12,"") ->  | L150: =L149*(1+J150) -> 1765.315093 | M150: =MAX(L150,M149) -> 1765.315093 | N150: =L150/M150-1 -> 0 | O150: =IF(N150=0,0.2*(L150/M149-1),0) -> 0.000964761408 | P150: =J150-O150 -> 0.003859045632 | Q150: =Q149*(1+P150) -> 1576.929947 | R150: 0.0159 | S150: =S149*(1+R150) -> 3708.185424 | T150: =J150-R150 -> -0.01107619296
A151: 144 | B151: 2024-02-17 | C151: 0.00387 | D151: -0.00026 | E151: 0.00222 | G151: 0.01295 | H151: 0 | I151: 0.00444 | J151: =($L$170*C151+$M$170*D151+$N$170*E151+$O$170*F151+$P$170*G151+$Q$170*H151+$R$170*I151)*$S$170 -> 0.00464381424 | K151: =IF(J151<$E$166/12,J151-$E$166/12,"") ->  | L151: =L150*(1+J151) -> 1773.512889 | M151: =MAX(L151,M150) -> 1773.512889 | N151: =L151/M151-1 -> 0 | O151: =IF(N151=0,0.2*(L151/M150-1),0) -> 0.000928762848 | P151: =J151-O151 -> 0.003715051392 | Q151: =Q150*(1+P151) -> 1582.788322 | R151: 0.0517206154 | S151: =S150*(1+R151) -> 3899.975056 | T151: =J151-R151 -> -0.04707680116
A152: 145 | B152: 2024-03-17 | C152: -0.00388 | D152: -0.01099 | E152: -0.00299 | G152: 0.00807 | H152: -0.00234 | I152: 0.00381 | J152: =($L$170*C152+$M$170*D152+$N$170*E152+$O$170*F152+$P$170*G152+$Q$170*H152+$R$170*I152)*$S$170 -> -0.00166393344 | K152: =IF(J152<$E$166/12,J152-$E$166/12,"") -> -0.002497266773 | L152: =L151*(1+J152) -> 1770.561881 | M152: =MAX(L152,M151) -> 1773.512889 | N152: =L152/M152-1 -> -0.00166393344 | O152: =IF(N152=0,0.2*(L152/M151-1),0) -> 0 | P152: =J152-O152 -> -0.00166393344 | Q152: =Q151*(1+P152) -> 1580.154668 | R152: 0.0310187647 | S152: =S151*(1+R152) -> 4020.947464 | T152: =J152-R152 -> -0.03268269814
A153: 146 | B153: 2024-04-17 | C153: 0.00259 | D153: -0.00093 | E153: -0.00181 | G153: -0.00809 | H153: -0.00194 | I153: -0.00171 | J153: =($L$170*C153+$M$170*D153+$N$170*E153+$O$170*F153+$P$170*G153+$Q$170*H153+$R$170*I153)*$S$170 -> -0.00237790488 | K153: =IF(J153<$E$166/12,J153-$E$166/12,"") -> -0.003211238213 | L153: =L152*(1+J153) -> 1766.351654 | M153: =MAX(L153,M152) -> 1773.512889 | N153: =L153/M153-1 -> -0.004037881645 | O153: =IF(N153=0,0.2*(L153/M152-1),0) -> 0 | P153: =J153-O153 -> -0.00237790488 | Q153: =Q152*(1+P153) -> 1576.397211 | R153: -0.04161504277 | S153: =S152*(1+R153) -> 3853.615564 | T153: =J153-R153 -> 0.03923713789
A154: 147 | B154: 2024-05-17 | C154: 0.00107 | D154: 0.00095 | E154: 0.00678 | G154: 0.03282 | H154: 0.01719 | I154: 8e-05 | J154: =($L$170*C154+$M$170*D154+$N$170*E154+$O$170*F154+$P$170*G154+$Q$170*H154+$R$170*I154)*$S$170 -> 0.01177752888 | K154: =IF(J154<$E$166/12,J154-$E$166/12,"") ->  | L154: =L153*(1+J154) -> 1787.154911 | M154: =MAX(L154,M153) -> 1787.154911 | N154: =L154/M154-1 -> 0 | O154: =IF(N154=0,0.2*(L154/M153-1),0) -> 0.001538418194 | P154: =J154-O154 -> 0.01023911069 | Q154: =Q153*(1+P154) -> 1592.538116 | R154: 0.04802 | S154: =S153*(1+R154) -> 4038.666183 | T154: =J154-R154 -> -0.03624247112
A155: 148 | B155: 2024-06-17 | C155: 0.00407 | D155: 0.00676 | E155: 0.00397 | G155: 0.0123 | H155: -0.00109 | I155: -0.00248 | J155: =($L$170*C155+$M$170*D155+$N$170*E155+$O$170*F155+$P$170*G155+$Q$170*H155+$R$170*I155)*$S$170 -> 0.00470581176 | K155: =IF(J155<$E$166/12,J155-$E$166/12,"") ->  | L155: =L154*(1+J155) -> 1795.564926 | M155: =MAX(L155,M154) -> 1795.564926 | N155: =L155/M155-1 -> 0 | O155: =IF(N155=0,0.2*(L155/M154-1),0) -> 0.000941162352 | P155: =J155-O155 -> 0.003764649408 | Q155: =Q154*(1+P155) -> 1598.533464 | R155: 0.03467 | S155: =S154*(1+R155) -> 4178.68674 | T155: =J155-R155 -> -0.02996418824
A156: 149 | B156: 2024-07-17
A157: 150 | B157: 2024-08-17
A158: 151 | B158: 2024-09-17
A159: 152 | B159: 2024-10-17
A160: 153 | B160: 2024-11-17
A161: 154 | B161: 2024-12-17
B163: Str: | C163: FXQ | D163: FXIA | E163: FXBQ | F163: FXC | G163: V4* | H163: V1 | I163: SPQ** | L163: Strategy weightings
B164: Performance Statistics, Before Fees, Monthly | G164: Performance Statistics, Net of Fees, Monthly | L164: FXQ | M164: FXIA | N164: FXBQ | O164: FXC | P164: V4 | Q164: V1 | R164: SPQ | S164: Overlever. | T164: Period
B165: Trading period, months: | E165: =A155 -> 148 | F165: < Change monthly | L165: 0.3333 | P165: 0.3333 | Q165: 0.3333 | S165: 1.2 | T165: 1/Mar/2012-31/Aug/2012
B166: RF rate: | E166: 0.01 | L166: 0.25 | M166: 0.25 | P166: 0.25 | Q166: 0.25 | S166: 1.2 | T166: 1/Sep/2012-31/Jan/2013
B167: VAMI - hyp. growth of $1,000 | E167: =INDIRECT(ADDRESS(NM+7,12)) -> 1795.564926 | G167: VAMI - hyp. growth of $1,000 | J167: =INDIRECT(ADDRESS(NM+7,17)) -> 1598.533464 | L167: 0.2 | M167: 0.2 | N167: 0.2 | P167: 0.2 | Q167: 0.2 | S167: 1.2 | T167: 1/Feb/2013-31/Jul/2013
B168: Total return since inception: | E168: =$E$167/1000-1 -> 0.7955649259 | G168: Total return since inception: | J168: =$J$167/1000-1 -> 0.5985334637 | L168: 0.1667 | M168: 0.1667 | N168: 0.1667 | O168: 0.1667 | P168: 0.1667 | Q168: 0.1667 | S168: 1.2 | T168: 1/Aug/2013-31/Jan/2014
B169: YTD return: | E169: =$E$167/$L$149-1 -> 0.02204212229 | F169: < Change > | G169: YTD return: | J169: =$J$167/$Q$149-1 -> 0.01761164516 | L169: 0.1429 | M169: 0.1429 | N169: 0.1429 | O169: 0.1429 | P169: 0.1429 | Q169: 0.1429 | R169: 0.1429 | S169: 1.2 | T169: 1/Feb/2014 - 28/Feb/2020
B170: Return last 12 months: | E170: =INDIRECT(ADDRESS(NM+7,12))/INDIRECT(ADDRESS(NM-5,12))-1 -> 0.04149320358 | G170: Return last 12 months: | J170: =INDIRECT(ADDRESS(NM+7,17))/INDIRECT(ADDRESS(NM-5,17))-1 -> 0.03310188514 | L170: 0.16666 | M170: 0.16666 | N170: 0.16666 | P170: 0.16666 | Q170: 0.16666 | R170: 0.16666 | S170: 1.2 | T170: 1/Mar/2020 Forward
B171: Compound avg. annual. ROR: | E171: =POWER($E$167/1000,12/NM)-1 -> 0.04860252969 | G171: Compound avg. annualized ROR: | J171: =POWER($J$167/1000,12/NM)-1 -> 0.03876660288
B172: Annualized ROR volatility: | E172: =STDEV(OFFSET(J8,0,0,NM,1))*SQRT(12) -> 0.04240925678 | G172: Annualized ROR volatility: | J172: =STDEV(OFFSET(P8,0,0,NM,1))*SQRT(12) -> 0.04015857594
B173: Annualized downside deviation: | E173: =STDEV(OFFSET(K8,0,0,NM,1))*SQRT(12) -> 0.03295022351 | G173: Annualized downside deviation: | J173: =$E$173 -> 0.03295022351 | N173: FXQ | O173: FXIA | P173: FXBQ | Q173: FXC | R173: V4* | S173: V1 | T173: SPQ**
B174: Worst drawdown: | E174: =MIN(OFFSET(N8,0,0,NM,1)) -> -0.06191088536 | G174: Worst drawdown: | J174: =$E$174 -> -0.06191088536 | L174: Mean annual returns: | N174: =12*AVERAGE(OFFSET(C53,0,0,NM-45,1)) -> 0.02457549515 | O174: 0.02403961165 | P174: 0.03200306796 | Q174: 0.01957176471 | R174: 0.0694776699 | S174: 0.08263805825 | T174: 0.02759221316
B175: Sharpe ratio: | E175: =($E$171-$E$166)/$E$172 -> 0.9102382974 | G175: Sharpe ratio: | J175: =($J$171-$E$166)/$J$172 -> 0.7163252731 | L175: Variance/covariance: | N175: =12*VAR(OFFSET(C53,0,0,NM-45,1)) -> 0.001160155311 | O175: =12*COVAR(OFFSET(C53,0,0,NM-45,1),OFFSET(D53,0,0,NM-45,1)) -> 0.001623819559 | P175: =12*COVAR(OFFSET(C53,0,0,NM-45,1),OFFSET(E53,0,0,NM-45,1)) -> 0.001211305017 | Q175: =12*COVAR(OFFSET(C53,0,0,NM-45,1),OFFSET(F53,0,0,NM-45,1)) -> 0.0008248255294 | R175: =12*COVAR(OFFSET(C53,0,0,NM-45,1),OFFSET(G53,0,0,NM-45,1)) -> 0.0005583186057 | S175: =12*COVAR(OFFSET(C53,0,0,NM-45,1),OFFSET(H53,0,0,NM-45,1)) -> 3.817263047e-05 | T175: =12*COVAR(OFFSET(C53,0,0,NM-45,1),OFFSET(I53,0,0,NM-45,1)) -> -4.400141931e-05
B176: Sortino Ratio: | E176: =($E$171-$E$166)/$E$173 -> 1.171540754 | G176: Sortino Ratio: | J176: =($J$171-$E$166)/$J$173 -> 0.8730321016 | O176: =12*VAR(OFFSET(D53,0,0,NM-45,1)) -> 0.002532156197 | P176: =12*COVAR(OFFSET(D53,0,0,NM-45,1),OFFSET(E53,0,0,NM-45,1)) -> 0.001811048006 | Q176: =12*COVAR(OFFSET(D53,0,0,NM-45,1),OFFSET(F53,0,0,NM-45,1)) -> 0.001112829051 | R176: =12*COVAR(OFFSET(D53,0,0,NM-45,1),OFFSET(G53,0,0,NM-45,1)) -> 0.001042721239 | S176: =12*COVAR(OFFSET(D53,0,0,NM-45,1),OFFSET(H53,0,0,NM-45,1)) -> 0.0001275079443 | T176: =12*COVAR(OFFSET(D53,0,0,NM-45,1),OFFSET(I53,0,0,NM-45,1)) -> -0.0001792490471
B177: Calmar Ratio: | E177: =-$E$171/$E$174 -> 0.7850401332 | G177: Calmar Ratio: | J177: =-$J$171/$J$174 -> 0.6261678 | P177: =12*VAR(OFFSET(E53,0,0,NM-45,1)) -> 0.003728351506 | Q177: =12*COVAR(OFFSET(E53,0,0,NM-45,1),OFFSET(F53,0,0,NM-45,1)) -> 0.0002899704299 | R177: =12*COVAR(OFFSET(E53,0,0,NM-45,1),OFFSET(G53,0,0,NM-45,1)) -> 0.000507470801 | S177: =12*COVAR(OFFSET(E53,0,0,NM-45,1),OFFSET(H53,0,0,NM-45,1)) -> -3.056816403e-05 | T177: =12*COVAR(OFFSET(E53,0,0,NM-45,1),OFFSET(I53,0,0,NM-45,1)) -> -0.0001828041312
B178: Efficiency index: | E178: =$E$171/$E$172 -> 1.146035875 | G178: Efficiency index: | J178: =$J$171/$J$172 -> 0.965338087 | Q178: =12*VAR(OFFSET(F53,0,0,NM-45,1)) -> 0.001618010604 | R178: =12*COVAR(OFFSET(F53,0,0,NM-45,1),OFFSET(G53,0,0,NM-45,1)) -> 0.0006172303419 | S178: =12*COVAR(OFFSET(F53,0,0,NM-45,1),OFFSET(H53,0,0,NM-45,1)) -> 0.0004355584761 | T178: =12*COVAR(OFFSET(F53,0,0,NM-45,1),OFFSET(I53,0,0,NM-45,1)) -> 0.0001041654805
B179: Max. monthly ROR: | E179: =MAX(OFFSET(J8,0,0,NM,1)) -> 0.0352014144 | G179: Max. monthly ROR: | J179: =MAX(OFFSET(P8,0,0,NM,1)) -> 0.03161209643 | R179: =12*VAR(OFFSET(G53,0,0,NM-45,1)) -> 0.0114116808 | S179: =12*COVAR(OFFSET(G53,0,0,NM-45,1),OFFSET(H53,0,0,NM-45,1)) -> 0.00223495819 | T179: =12*COVAR(OFFSET(G53,0,0,NM-45,1),OFFSET(I53,0,0,NM-45,1)) -> 0.0008456740227
B180: Min. monthly ROR: | E180: =MIN(OFFSET(J8,0,0,NM,1)) -> -0.05809827598 | G180: Min. monthly ROR: | J180: =MIN(OFFSET(P8,0,0,NM,1)) -> -0.05809827598 | S180: =12*VAR(OFFSET(H53,0,0,NM-45,1)) -> 0.003586251311 | T180: =12*COVAR(OFFSET(H53,0,0,NM-45,1),OFFSET(I53,0,0,NM-45,1)) -> 0.0002971766606
B181: Annual. Alpha, rel. to SPY: | E181: =12*INTERCEPT(OFFSET(J8,0,0,NM,1),OFFSET(R8,0,0,NM,1)) -> 0.02588532013 | G181: Annual. Alpha, rel. to SPY: | J181: =12*INTERCEPT(OFFSET(P8,0,0,NM,1),OFFSET(R8,0,0,NM,1)) -> 0.01735233274 | T181: =12*VAR(OFFSET(I53,0,0,NM-45,1)) -> 0.002274554807
B182: Beta, rel. to SPX: | E182: =SLOPE(OFFSET(J8,0,0,NM,1),OFFSET(R8,0,0,NM,1)) -> 0.1776827963 | G182: Beta, rel. to SPX: | J182: =SLOPE(OFFSET(P8,0,0,NM,1),OFFSET(R8,0,0,NM,1)) -> 0.1696806091
B183: Correlation, rel. to SPX: | E183: =CORREL(OFFSET(J8,0,0,NM,1),OFFSET(R8,0,0,NM,1)) -> 0.6071239027 | G183: Correlation, rel. to SPX: | J183: =CORREL(OFFSET(P8,0,0,NM,1),OFFSET(R8,0,0,NM,1)) -> 0.6122749949 | L183: Variances/covariances are for the latest (current) strategy versions (Dec 2015 to present)
B184: Kurtosis of monthly ROR: | E184: =KURT(OFFSET(J8,0,0,NM,1)) -> 4.215845615 | G184: Kurtosis of monthly ROR: | J184: =KURT(OFFSET(P8,0,0,NM,1)) -> 5.157047415
B185: Skewness of monthly ROR: | E185: =SKEW(OFFSET(J8,0,0,NM,1)) -> -0.8126517244 | G185: Skewness of monthly ROR: | J185: =SKEW(OFFSET(P8,0,0,NM,1)) -> -0.9752292844
B186: # Profitable months | E186: =COUNTIF(OFFSET(J8,0,0,NM,1),">=0") -> 98 | G186: # Profitable months | J186: =COUNTIF(OFFSET(P8,0,0,NM,1),">=0") -> 98 | L186: Histogram ROR ranges (BIN range)
B187: # Unprofitable months | E187: =COUNTIF(OFFSET(J8,0,0,NM,1),"<0") -> 50 | G187: # Unprofitable months | J187: =COUNTIF(OFFSET(P8,0,0,NM,1),"<0") -> 50 | L187: -0.02
B188: % Profitable months: | E188: =$E$186/($E$186+$E$187) -> 0.6621621622 | G188: % Profitable months: | J188: =$J$186/($J$186+$J$187) -> 0.6621621622 | L188: -0.01
B189: Average positive monthly ROR: | E189: =SUMIF(OFFSET(J8,0,0,NM,1),">0")/$E$186 -> 0.01033442438 | G189: Average positive monthly ROR: | J189: =SUMIF(OFFSET(P8,0,0,NM,1),">0")/$J$186 -> 0.009132662356 | L189: 0
B190: Average negative monthly ROR: | E190: =SUMIF(OFFSET(J8,0,0,NM,1),"<0")/$E$187 -> -0.008304923249 | G190: Average negative monthly ROR: | J190: =SUMIF(OFFSET(P8,0,0,NM,1),"<0")/$J$187 -> -0.008304923249 | L190: 0.01
B191: Avg. pos. / avg. neg. mon. ROR: | E191: =-$E$189/$E$190 -> 1.244373256 | G191: Avg. pos. / avg. neg. mon. ROR: | J191: =-$J$189/$J$190 -> 1.099668484 | L191: 0.02
B192: Sum positive RORs: | E192: =SUMIF(OFFSET(J8,0,0,NM,1),">0") -> 1.01277359 | G192: Sum positive RORs: | J192: =SUMIF(OFFSET(P8,0,0,NM,1),">0") -> 0.8950009109 | L192: 0.03
B193: Sum negative RORs: | E193: =SUMIF(OFFSET(J8,0,0,NM,1),"<0") -> -0.4152461625 | G193: Sum negative RORs: | J193: =SUMIF(OFFSET(P8,0,0,NM,1),"<0") -> -0.4152461625
B194: Profit-to-loss ratio (Profit Fact.): | E194: =-SUMIF(OFFSET(J8,0,0,NM,1),">0")/SUMIF(OFFSET(J8,0,0,NM,1),"<0") -> 2.438971581 | G194: Profit-to-loss ratio (Profit Factor): | J194: =-SUMIF(OFFSET(P8,0,0,NM,1),">0")/SUMIF(OFFSET(P8,0,0,NM,1),"<0") -> 2.155350228
B195: Tracking error, rel. to SPX: | E195: =STDEV(OFFSET(T8,0,0,NM,1))*SQRT(12) -> 0.1238337825 | G195: Tracking error, rel. to SPX: | J195: N/A
B196: Information Ratio, rel. to SPX: | E196: =12*AVERAGE(OFFSET(T8,0,0,NM,1))/$E$195 -> -0.6342025707 | G196: Information Ratio, rel. to SPX: | J196: N/A
B197: R-Squared, rel to SPX: | E197: =RSQ(OFFSET(J8,0,0,NM,1),OFFSET(R8,0,0,NM,1)) -> 0.3685994332 | G197: R-Squared, rel to SPX: | J197: =RSQ(OFFSET(P8,0,0,NM,1),OFFSET(R8,0,0,NM,1)) -> 0.3748806694
B198: SPX ROR, annualized: | E198: =POWER(INDIRECT(ADDRESS(NM+7,19))/1000,12/NM)-1 -> 0.1229349 | G198: SPX ROR, annualized: | J198: =$E$198 -> 0.1229349
B199: Active Premium, rel. SPX: | E199: =$E$171-$E$198 -> -0.07433237028 | G199: Active Premium, rel. SPX: | J199: =$J$171-$J$198 -> -0.08416829709
B200: Treynor Ratio: | E200: =($E$171-$E$166)/$E$182 -> 0.2172553027 | G200: Treynor Ratio: | J200: =($J$171-$E$166)/$J$182 -> 0.1695338261
B201: Jensen Alpha, annualized: | E201: =$E$171-($E$166+$E$182*($E$198-$E$166)) -> 0.01853594086 | G201: Jensen Alpha, annualized: | J201: =$J$171-($E$166+$J$182*($J$198-$E$166)) -> 0.009603740258

Sheet Sharpe Ratio (monthly)
B1: Modern Portfolio Theory (MPT) | AD1: Ngran = | AE1: 10 | AG1: Ncomb= | AH1: =SUM(AL4:AL25003) -> 8008.000045 | AP1: Max. Sharpe
B2: Sharpe Ratio Optimization | E2: Mean returns and variances are automatically imported from the "MultiStrategy-Monthly" worksheet | AA2: Frontier | AP2: =MAX(AP4:AP8011) -> 1.312601755 | AQ2: < Change Ncomb if Ngran is changed
S3: C^-1 - Inverse of the variance/covariance matrix | AA3: mu | AB3: SD | AD3: Comb. | AE3: p1 | AF3: p2 | AG3: p3 | AH3: p4 | AI3: p5 | AJ3: p6 | AK3: p7 | AL3: Sum | AN3: mu | AO3: SD | AP3: Sharpe ratio
B4: Mean Monthly Returns (μ) | E4: Variance - Covariance Matrix ( C ) | M4: Standard Deviations (σ) | P4: Correlations ( r ) | S4: =MINVERSE(E5:K11) -> 10093.35747 | T4: -5679.293315 | U4: -450.1602198 | V4: -1230.77727 | W4: 93.02567976 | X4: 206.4965202 | Y4: -293.6872956 | AA4: -0.05 | AB4: =SQRT(($S$14*AA4*AA4-2*$T$14*AA4+$U$14)/$V$14) -> 0.08637850404 | AD4: 1 | AE4: =Pcomb7($AE$1) -> 0 | AF4: 0 | AG4: 0 | AH4: 0 | AI4: 0 | AJ4: 0 | AK4: 1 | AL4: =SUM(AE4:AK4) -> 1 | AN4: =AE4*$C$5+AF4*$C$6+AG4*$C$7+AH4*$C$8+AI4*$C$9+AJ4*$C$10+AK4*$C$11 -> 0.02759221316 | AO4: =SDP(7,$E$5:$K$11,AE4:AK4) -> 0.04769229516 | AP4: =(AN4-RFR)/AO4 -> 0.3688690825 | AQ4: =IF(AP4>=0.9999*$AP$2,"Max. Sharpe","") -> 
B5: 1.) FXQ | C5: ='MultiStrategy-Monthly'!N174 -> 0.02457549515 | E5: ='MultiStrategy-Monthly'!N175 -> 0.001160155311 | F5: ='MultiStrategy-Monthly'!O175 -> 0.001623819559 | G5: ='MultiStrategy-Monthly'!P175 -> 0.001211305017 | H5: ='MultiStrategy-Monthly'!Q175 -> 0.0008248255294 | I5: ='MultiStrategy-Monthly'!R175 -> 0.0005583186057 | J5: ='MultiStrategy-Monthly'!S175 -> 3.817263047e-05 | K5: ='MultiStrategy-Monthly'!T175 -> -4.400141931e-05 | M5: SD(R1) | N5: =SQRT(E5) -> 0.0340610527 | P5: Corr(1,2) | Q5: =F5/(N5*N6) -> 0.9474023464 | S5: -5679.293315 | T5: 4183.347636 | U5: -166.9533548 | V5: 87.88778781 | W5: -109.9501895 | X5: -52.58816599 | Y5: 250.1146453 | AA5: -0.04 | AB5: 0.07664291772 | AD5: 2 | AE5: 0 | AF5: 0 | AG5: 0 | AH5: 0 | AI5: 0 | AJ5: 0.1000000015 | AK5: 0.8999999762 | AL5: =SUM(AE5:AK5) -> 0.9999999776 | AN5: =AE5*$C$5+AF5*$C$6+AG5*$C$7+AH5*$C$8+AI5*$C$9+AJ5*$C$10+AK5*$C$11 -> 0.03309679713 | AO5: =SDP(7,$E$5:$K$11,AE5:AK5) -> 0.04395160452 | AP5: 0.5255052094 | AQ5: =IF(AP5>=0.9999*$AP$2,"Max. Sharpe","") -> 
B6: 2.) FXIA | C6: ='MultiStrategy-Monthly'!O174 -> 0.02403961165 | E6: =F5 -> 0.001623819559 | F6: ='MultiStrategy-Monthly'!O176 -> 0.002532156197 | G6: ='MultiStrategy-Monthly'!P176 -> 0.001811048006 | H6: ='MultiStrategy-Monthly'!Q176 -> 0.001112829051 | I6: ='MultiStrategy-Monthly'!R176 -> 0.001042721239 | J6: ='MultiStrategy-Monthly'!S176 -> 0.0001275079443 | K6: ='MultiStrategy-Monthly'!T176 -> -0.0001792490471 | M6: SD(R2) | N6: =SQRT(F6) -> 0.05032053455 | P6: Corr(1,3) | Q6: =G5/(N5*N7) -> 0.5824209982 | S6: -450.1602198 | T6: -166.9533548 | U6: 474.4350896 | V6: 262.4520216 | W6: 5.757078865 | X6: -21.0945366 | Y6: 4.860963092 | AA6: -0.03 | AB6: 0.06701722635 | AD6: 3 | AE6: 0 | AF6: 0 | AG6: 0 | AH6: 0 | AI6: 0 | AJ6: 0.200000003 | AK6: 0.8000000119 | AL6: 1.000000015 | AN6: 0.03860138275 | AO6: 0.04116141051 | AP6: 0.6948591508
B7: 3.) FXBQ | C7: ='MultiStrategy-Monthly'!P174 -> 0.03200306796 | E7: =G5 -> 0.001211305017 | F7: =G6 -> 0.001811048006 | G7: ='MultiStrategy-Monthly'!P177 -> 0.003728351506 | H7: ='MultiStrategy-Monthly'!Q177 -> 0.0002899704299 | I7: ='MultiStrategy-Monthly'!R177 -> 0.000507470801 | J7: ='MultiStrategy-Monthly'!S177 -> -3.056816403e-05 | K7: ='MultiStrategy-Monthly'!T177 -> -0.0001828041312 | M7: SD(R3) | N7: =SQRT(G7) -> 0.06106022851 | P7: Corr(1,4) | Q7: =H5/(N5*N8) -> 0.6020233643 | S7: -1230.77727 | T7: 87.88778781 | U7: 262.4520216 | V7: 1173.396261 | W7: 5.190432357 | X7: -130.6843905 | Y7: -34.38267518 | AA7: -0.02 | AB7: 0.05755659243 | AD7: 4 | AE7: 0 | AF7: 0 | AG7: 0 | AH7: 0 | AI7: 0 | AJ7: 0.3000000119 | AK7: 0.6999999881 | AL7: 1 | AN7: 0.04410596734 | AO7: 0.03952351958 | AP7: 0.8629283958
B8: 4.) FXC | C8: ='MultiStrategy-Monthly'!Q174 -> 0.01957176471 | E8: =H5 -> 0.0008248255294 | F8: =H6 -> 0.001112829051 | G8: =H7 -> 0.0002899704299 | H8: ='MultiStrategy-Monthly'!Q178 -> 0.001618010604 | I8: ='MultiStrategy-Monthly'!R178 -> 0.0006172303419 | J8: ='MultiStrategy-Monthly'!S178 -> 0.0004355584761 | K8: ='MultiStrategy-Monthly'!T178 -> 0.0001041654805 | M8: SD(R4) | N8: =SQRT(H8) -> 0.04022450254 | P8: Corr(1,5) | Q8: =I5/(N5*N9) -> 0.1534437582 | S8: 93.02567976 | T8: -109.9501895 | U8: 5.757078865 | V8: 5.190432357 | W8: 107.4809726 | X8: -61.4482197 | Y8: -38.57297273 | AA8: -0.01 | AB8: 0.04835798747 | AD8: 5 | AE8: 0 | AF8: 0 | AG8: 0 | AH8: 0 | AI8: 0 | AJ8: 0.400000006 | AK8: 0.6000000238 | AL8: 1.00000003 | AN8: 0.04961055235 | AO8: 0.03918271139 | AP8: 1.010919126
B9: 5.) V4 | C9: ='MultiStrategy-Monthly'!R174 -> 0.0694776699 | E9: =I5 -> 0.0005583186057 | F9: =I6 -> 0.001042721239 | G9: =I7 -> 0.000507470801 | H9: =I8 -> 0.0006172303419 | I9: ='MultiStrategy-Monthly'!R179 -> 0.0114116808 | J9: ='MultiStrategy-Monthly'!S179 -> 0.00223495819 | K9: ='MultiStrategy-Monthly'!T179 -> 0.0008456740227 | M9: SD(R5) | N9: =SQRT(I9) -> 0.1068254689 | P9: Corr(1,6) | Q9: =J5/(N5*N10) -> 0.01871430322 | S9: 206.4965202 | T9: -52.58816599 | U9: -21.0945366 | V9: -130.6843905 | W9: -61.4482197 | X9: 333.8797884 | Y9: -16.63610042 | AA9: 0 | AB9: 0.03960441245 | AD9: 6 | AE9: 0 | AF9: 0 | AG9: 0 | AH9: 0 | AI9: 0 | AJ9: 0.5 | AK9: 0.5 | AL9: 1 | AN9: 0.05511513571 | AO9: 0.04017200321 | AP9: 1.123049191
B10: 6.) V1 | C10: ='MultiStrategy-Monthly'!S174 -> 0.08263805825 | E10: =J5 -> 3.817263047e-05 | F10: =J6 -> 0.0001275079443 | G10: =J7 -> -3.056816403e-05 | H10: =J8 -> 0.0004355584761 | I10: =J9 -> 0.00223495819 | J10: ='MultiStrategy-Monthly'!S180 -> 0.003586251311 | K10: ='MultiStrategy-Monthly'!T180 -> 0.0002971766606 | M10: SD(R6) | N10: =SQRT(J10) -> 0.05988531799 | P10: Corr(1,7) | Q10: =K5/(N5*N11) -> -0.02708696934 | S10: -293.6872956 | T10: 250.1146453 | U10: 4.860963092 | V10: -34.38267518 | W10: -38.57297273 | X10: -16.63610042 | Y10: 472.1558102 | AA10: 0.01 | AB10: 0.03166709545 | AD10: 7 | AE10: 0 | AF10: 0 | AG10: 0 | AH10: 0 | AI10: 0 | AJ10: 0.6000000238 | AK10: 0.3999999762 | AL10: 1 | AN10: 0.06061972153 | AO10: 0.04239839688 | AP10: 1.193906498
B11: 7.) SPQ | C11: ='MultiStrategy-Monthly'!T174 -> 0.02759221316 | E11: =K5 -> -4.400141931e-05 | F11: =K6 -> -0.0001792490471 | G11: =K7 -> -0.0001828041312 | H11: =K8 -> 0.0001041654805 | I11: =K9 -> 0.0008456740227 | J11: =K10 -> 0.0002971766606 | K11: ='MultiStrategy-Monthly'!T181 -> 0.002274554807 | M11: SD(R7) | N11: =SQRT(K11) -> 0.04769229295 | P11: Corr(2,3) | Q11: =G6/(N6*N7) -> 0.5894219314 | AA11: 0.02 | AB11: 0.02532550684 | AD11: 8 | AE11: 0 | AF11: 0 | AG11: 0 | AH11: 0 | AI11: 0 | AJ11: 0.6999999881 | AK11: 0.3000000119 | AL11: 1 | AN11: 0.06612430407 | AO11: 0.04568136483 | AP11: 1.228603924
B12: Risk-Free Rate | C12: 0.01 | P12: Corr(2,4) | Q12: =H6/(N6*N8) -> 0.5497845448 | S12: Efficient frontier parabola coefficients | AA12: 0.03 | AB12: 0.02200542146 | AD12: 9 | AE12: 0 | AF12: 0 | AG12: 0 | AH12: 0 | AI12: 0 | AJ12: 0.8000000119 | AK12: 0.1999999881 | AL12: 1 | AN12: 0.07162888989 | AO12: 0.04981244355 | AP12: 1.237218765
M13: Tangent Portfolio | P13: Corr(2,5) | Q13: =I6/(N6*N9) -> 0.1939760744 | S13: a | T13: b | U13: c | V13: Delta | AA13: 0.04 | AB13: 0.0230516109 | AD13: 10 | AE13: 0 | AF13: 0 | AG13: 0 | AH13: 0 | AI13: 0 | AJ13: 0.9000000358 | AK13: 0.09999996424 | AL13: 1 | AN13: 0.07713347571 | AO13: 0.05459946021 | AP13: 1.229562993
M14: p1 | N14: 0.200000003 | P14: Corr(2,6) | Q14: =J6/(N6*N10) -> 0.04231278761 | S14: =FrontierCoef(7,S4:Y10,C5:C11) -> 2097.165771 | T14: 68.56155396 | U14: 3.220491171 | V14: 2053.217529 | AA14: 0.05 | AB14: 0.02797848943 | AD14: 11 | AE14: 0 | AF14: 0 | AG14: 0 | AH14: 0 | AI14: 0 | AJ14: 1 | AK14: 0 | AL14: 1 | AN14: 0.08263805825 | AO14: =SDP(7,$E$5:$K$11,AE14:AK14) -> 0.05988531932 | AP14: =(AN14-RFR)/AO14 -> 1.212952675
M15: p2 | N15: 0 | P15: Corr(2,7) | Q15: =K6/(N6*N11) -> -0.0746901629 | AA15: 0.06 | AB15: 0.03519227033 | AD15: 12 | AE15: 0 | AF15: 0 | AG15: 0 | AH15: 0 | AI15: 0.1000000015 | AJ15: 0 | AK15: 0.8999999762 | AL15: 0.9999999776 | AN15: 0.03178075828 | AO15: 0.04592088237 | AP15: 0.4743105349
M16: p3 | N16: 0.1000000015 | P16: Corr(3,4) | Q16: =H7/(N7*N8) -> 0.1180604965 | AA16: 0.07 | AB16: 0.04357151392 | AD16: 13 | AE16: 0 | AF16: 0 | AG16: 0 | AH16: 0 | AI16: 0.1000000015 | AJ16: 0.1000000015 | AK16: 0.8000000119 | AL16: 1.000000015 | AN16: 0.0372853439 | AO16: 0.04281646386 | AP16: 0.6372628994
M17: p4 | N17: 0 | P17: Corr(3,5) | Q17: =I7/(N7*N9) -> 0.07779968271 | AA17: 0.08 | AB17: 0.05256176057 | AD17: 14 | AE17: 0 | AF17: 0 | AG17: 0 | AH17: 0 | AI17: 0.1000000015 | AJ17: 0.200000003 | AK17: 0.6999999881 | AL17: 0.9999999925 | AN17: 0.04278992787 | AO17: 0.04078113288 | AP17: 0.8040465176
M18: p5 | N18: 0 | P18: Corr(3,6) | Q18: =J7/(N7*N10) -> -0.008359697642 | AA18: 0.09 | AB18: 0.06189734597 | AD18: 15 | AE18: 0 | AF18: 0 | AG18: 0 | AH18: 0 | AI18: 0.1000000015 | AJ18: 0.3000000119 | AK18: 0.6000000238 | AL18: 1.000000037 | AN18: 0.04829451411 | AO18: 0.03997850791 | AP18: 0.9578775226
M19: p6 | N19: 0.5 | P19: Corr(3,7) | Q19: =K7/(N7*N11) -> -0.06277393854 | AA19: 0.1 | AB19: 0.07144302006 | AD19: 16 | AE19: 0 | AF19: 0 | AG19: 0 | AH19: 0 | AI19: 0.1000000015 | AJ19: 0.400000006 | AK19: 0.5 | AL19: 1.000000007 | AN19: 0.05379909747 | AO19: 0.04048197716 | AP19: 1.081940669
M20: p7 | N20: 0.1999999881 | P20: Corr(4,5) | Q20: =I8/(N8*N9) -> 0.1436421105 | AA20: 0.11 | AB20: 0.08112465536 | AD20: 17 | AE20: 0 | AF20: 0 | AG20: 0 | AH20: 0 | AI20: 0.1000000015 | AJ20: 0.5 | AK20: 0.3999999762 | AL20: 0.9999999776 | AN20: 0.05930368083 | AO20: 0.04224486649 | AP20: 1.167092831
M21: Overlev. | N21: 1 | P21: Corr(4,6) | Q21: =J8/(N8*N10) -> 0.1808154048 | AA21: 0.12 | AB21: 0.09089881855 | AD21: 18 | AE21: 0 | AF21: 0 | AG21: 0 | AH21: 0 | AI21: 0.1000000015 | AJ21: 0.6000000238 | AK21: 0.3000000119 | AL21: 1.000000037 | AN21: 0.06480826829 | AO21: 0.04511979967 | AP21: 1.214727651
M22: E(Rp) | N22: =(1-N21)*RFR+(N14*C5+N15*C6+N16*C7+N17*C8+N18*C9+N19*C10+N20*C11)*N21 -> 0.05495287738 | P22: Corr(4,7) | Q22: =K8/(N8*N11) -> 0.05429813798 | AA22: 0.13 | AB22: 0.1007385807 | AD22: 19 | AE22: 0 | AF22: 0 | AG22: 0 | AH22: 0 | AI22: 0.1000000015 | AJ22: 0.6999999881 | AK22: 0.1999999881 | AL22: 0.9999999776 | AN22: 0.07031284919 | AO22: 0.04891106859 | AP22: 1.233112482
M23: Var(Rp) | N23: =(N14*N21)^2*E5+(N15*N21)^2*F6+(N16*N21)^2*G7+(N17*N21)^2*H8+(N18*N21)^2*I9+(N19*N21)^2*J10+(N20*N21)^2*K11+2*(N14*N15*N21*N21)*F5+2*(N14*N16*N21*N21)*G5+2*(N14*N17*N21*N21)*H5+2*(N14*N18*N21*N21)*I5+2*(N14*N19*N21*N21)*J5+2*(N14*N20*N21*N21)*K5+2*(N15*N16*N21*N21)*G6+2*(N15*N17*N21*N21)*H6+2*(N15*N18*N21*N21)*I6+2*(N15*N19*N21*N21)*J6+2*(N15*N20*N21*N21)*K6+2*(N16*N17*N21*N21)*H7+2*(N16*N18*N21*N21)*I7+2*(N16*N19*N21*N21)*J7+2*(N16*N20*N21*N21)*K7+2*(N17*N18*N21*N21)*I8+2*(N17*N19*N21*N21)*J8+2*(N17*N20*N21*N21)*K8+2*(N18*N19*N21*N21)*J9+2*(N18*N20*N21*N21)*K9+2*(N19*N20*N21*N21)*K10 -> 0.001172867701 | P23: Corr(5,6) | Q23: =J9/(N9*N10) -> 0.3493608499 | AA23: 0.14 | AB23: 0.1106264388 | AD23: 20 | AE23: 0 | AF23: 0 | AG23: 0 | AH23: 0 | AI23: 0.1000000015 | AJ23: 0.8000000119 | AK23: 0.09999996424 | AL23: 0.9999999776 | AN23: 0.07581743501 | AO23: 0.05342394859 | AP23: 1.231983722
M24: SD(Rp) | N24: =SQRT(N23) -> 0.0342471561 | P24: Corr(5,7) | Q24: =K9/(N9*N11) -> 0.1659892565 | AA24: 0.15 | AB24: 0.1205505588 | AD24: 21 | AE24: 0 | AF24: 0 | AG24: 0 | AH24: 0 | AI24: 0.1000000015 | AJ24: 0.9000000358 | AK24: 0 | AL24: 1.000000037 | AN24: 0.08132202248 | AO24: 0.05849165097 | AP24: 1.219353896
M25: Sharpe Ratio | N25: =(N22-RFR)/N24 -> 1.31260176 | P25: Corr(6,7) | Q25: =K10/(N10*N11) -> 0.1040509705 | AA25: 0.16 | AB25: 0.1305026681 | AD25: 22 | AE25: 0 | AF25: 0 | AG25: 0 | AH25: 0 | AI25: 0.200000003 | AJ25: 0 | AK25: 0.8000000119 | AL25: 1.000000015 | AN25: 0.03596930504 | AO25: 0.0467204228 | AP25: 0.5558448209
AA26: 0.17 | AB26: 0.1404768182 | AD26: 23 | AE26: 0 | AF26: 0 | AG26: 0 | AH26: 0 | AI26: 0.200000003 | AJ26: 0.1000000015 | AK26: 0.6999999881 | AL26: 0.9999999925 | AN26: 0.04147388902 | AO26: 0.04443707317 | AP26: 0.7082799737
M27: Selected Portfolio | P27: Minimum pi | Q27: 0 | AA27: 0.18 | AB27: 0.1504686261 | AD27: 24 | AE27: 0 | AF27: 0 | AG27: 0 | AH27: 0 | AI27: 0.200000003 | AJ27: 0.200000003 | AK27: 0.6000000238 | AL27: 1.00000003 | AN27: 0.04697847464 | AO27: 0.04326474294 | AP27: 0.8547022847
M28: p1 | N28: =1/7 -> 0.1428571429 | AA28: 0.19 | AB28: 0.1604747935 | AD28: 25 | AE28: 0 | AF28: 0 | AG28: 0 | AH28: 0 | AI28: 0.200000003 | AJ28: 0.3000000119 | AK28: 0.5 | AL28: 1.000000015 | AN28: 0.05248305923 | AO28: 0.04329377785 | AP28: 0.9812740152
M29: p2 | N29: =1/7 -> 0.1428571429 | P29: Capital Market Line | AA29: 0.2 | AB29: 0.1704927922 | AD29: 26 | AE29: 0 | AF29: 0 | AG29: 0 | AH29: 0 | AI29: 0.200000003 | AJ29: 0.400000006 | AK29: 0.3999999762 | AL29: 0.9999999851 | AN29: 0.05798764259 | AO29: 0.0445218347 | AP29: 1.077845127
H30: . | M30: p3 | N30: 0.1428571429 | P30: X | Q30: Y | AA30: 0.21 | AB30: 0.1805206523 | AD30: 27 | AE30: 0 | AF30: 0 | AG30: 0 | AH30: 0 | AI30: 0.200000003 | AJ30: 0.5 | AK30: 0.3000000119 | AL30: 1.000000015 | AN30: 0.06349222759 | AO30: 0.0468547307 | AP30: 1.14166119
M31: p4 | N31: 0.1428571429 | P31: 0 | Q31: =C12 -> 0.01 | AA31: 0.22 | AB31: 0.1905568172 | AD31: 28 | AE31: 0 | AF31: 0 | AG31: 0 | AH31: 0 | AI31: 0.200000003 | AJ31: 0.6000000238 | AK31: 0.1999999881 | AL31: 1.000000015 | AN31: 0.06899681341 | AO31: 0.05013847351 | AP31: 1.176677495
M32: p5 | N32: 0.1428571429 | P32: =N38 -> 0.03939256206 | Q32: =N36 -> 0.04598249385 | AA32: 0.23 | AB32: 0.2006000402 | AD32: 29 | AE32: 0 | AF32: 0 | AG32: 0 | AH32: 0 | AI32: 0.200000003 | AJ32: 0.6999999881 | AK32: 0.09999996424 | AL32: 0.9999999553 | AN32: 0.07450139431 | AO32: 0.05420051143 | AP32: 1.190051396
M33: p6 | N33: 0.1428571429 | P33: =MAX(N5:N11) -> 0.1068254689 | Q33: =P33*(Q32-Q31)/(P32-P31)+Q31 -> 0.1075779836 | AA33: 0.24 | AB33: 0.2106493119 | AD33: 30 | AE33: 0 | AF33: 0 | AG33: 0 | AH33: 0 | AI33: 0.200000003 | AJ33: 0.8000000119 | AK33: 0 | AL33: 1.000000015 | AN33: 0.08000598177 | AO33: 0.05888000503 | AP33: 1.188960187
M34: p7 | N34: 0.1428571429 | AA34: 0.25 | AB34: 0.2207038061 | AD34: 31 | AE34: 0 | AF34: 0 | AG34: 0 | AH34: 0 | AI34: 0.3000000119 | AJ34: 0 | AK34: 0.6999999881 | AL34: 1 | AN34: 0.04015785068 | AO34: 0.04996765405 | AP34: 0.60354746
M35: Overlev. | N35: 1.2 | AA35: 0.26 | AB35: 0.23076284 | AD35: 32 | AE35: 0 | AF35: 0 | AG35: 0 | AH35: 0 | AI35: 0.3000000119 | AJ35: 0.1000000015 | AK35: 0.6000000238 | AL35: 1.000000037 | AN35: 0.0456624363 | AO35: 0.04853818193 | AP35: 0.7347295445
M36: E(Rp) | N36: =(1-N35)*RFR+(N28*C5+N29*C6+N30*C7+N31*C8+N32*C9+N33*C10+N34*C11)*N35 -> 0.04598249385 | AA36: 0.27 | AB36: 0.2408258448 | AD36: 33 | AE36: 0 | AF36: 0 | AG36: 0 | AH36: 0 | AI36: 0.3000000119 | AJ36: 0.200000003 | AK36: 0.5 | AL36: 1.000000015 | AN36: 0.05116702028 | AO36: 0.04817128554 | AP36: 0.8545966713
M37: Var(Rp) | N37: =(N28*N35)^2*E5+(N29*N35)^2*F6+(N30*N35)^2*G7+(N31*N35)^2*H8+(N32*N35)^2*I9+(N33*N35)^2*J10+(N34*N35)^2*K11+2*(N28*N29*N35*N35)*F5+2*(N28*N30*N35*N35)*G5+2*(N28*N31*N35*N35)*H5+2*(N28*N32*N35*N35)*I5+2*(N28*N33*N35*N35)*J5+2*(N28*N34*N35*N35)*K5+2*(N29*N30*N35*N35)*G6+2*(N29*N31*N35*N35)*H6+2*(N29*N32*N35*N35)*I6+2*(N29*N33*N35*N35)*J6+2*(N29*N34*N35*N35)*K6+2*(N30*N31*N35*N35)*H7+2*(N30*N32*N35*N35)*I7+2*(N30*N33*N35*N35)*J7+2*(N30*N34*N35*N35)*K7+2*(N31*N32*N35*N35)*I8+2*(N31*N33*N35*N35)*J8+2*(N31*N34*N35*N35)*K8+2*(N32*N33*N35*N35)*J9+2*(N32*N34*N35*N35)*K9+2*(N33*N34*N35*N35)*K10 -> 0.001551773946 | AA37: 0.28 | AB37: 0.2508923428 | AD37: 34 | AE37: 0 | AF37: 0 | AG37: 0 | AH37: 0 | AI37: 0.3000000119 | AJ37: 0.3000000119 | AK37: 0.3999999762 | AL37: 1 | AN37: 0.05667160487 | AO37: 0.04889089242 | AP37: 0.9546073422
M38: SD(Rp) | N38: =SQRT(N37) -> 0.03939256206 | AA38: 0.29 | AB38: 0.2609619296 | AD38: 35 | AE38: 0 | AF38: 0 | AG38: 0 | AH38: 0 | AI38: 0.3000000119 | AJ38: 0.400000006 | AK38: 0.3000000119 | AL38: 1.00000003 | AN38: 0.06217618987 | AO38: 0.05065071955 | AP38: 1.030117446
M39: Sharpe Ratio | N39: =(N36-RFR)/N38 -> 0.9134337034 | AA39: 0.3 | AB39: 0.2710342611 | AD39: 36 | AE39: 0 | AF39: 0 | AG39: 0 | AH39: 0 | AI39: 0.3000000119 | AJ39: 0.5 | AK39: 0.1999999881 | AL39: 1 | AN39: 0.06768077323 | AO39: 0.05334791541 | AP39: 1.081218878
AA40: 0.31 | AB40: 0.2811090421 | AD40: 37 | AE40: 0 | AF40: 0 | AG40: 0 | AH40: 0 | AI40: 0.3000000119 | AJ40: 0.6000000238 | AK40: 0.09999996424 | AL40: 1 | AN40: 0.07318535905 | AO40: 0.05684922263 | AP40: 1.111455111
AA41: 0.32 | AB41: 0.2911860185 | AD41: 38 | AE41: 0 | AF41: 0 | AG41: 0 | AH41: 0 | AI41: 0.3000000119 | AJ41: 0.6999999881 | AK41: 0 | AL41: 1 | AN41: 0.07868994159 | AO41: 0.06101636589 | AP41: 1.125762582
AA42: 0.33 | AB42: 0.3012649699 | AD42: 39 | AE42: 0 | AF42: 0 | AG42: 0 | AH42: 0 | AI42: 0.400000006 | AJ42: 0 | AK42: 0.6000000238 | AL42: 1.00000003 | AN42: 0.04434639693 | AO42: 0.0552325286 | AP42: 0.6218508875
AA43: 0.34 | AB43: 0.3113457045 | AD43: 40 | AE43: 0 | AF43: 0 | AG43: 0 | AH43: 0 | AI43: 0.400000006 | AJ43: 0.1000000015 | AK43: 0.5 | AL43: 1.000000007 | AN43: 0.0498509809 | AO43: 0.05456330255 | AP43: 0.7303623323
AA44: 0.35 | AB44: 0.3214280545 | AD44: 41 | AE44: 0 | AF44: 0 | AG44: 0 | AH44: 0 | AI44: 0.400000006 | AJ44: 0.200000003 | AK44: 0.3999999762 | AL44: 0.9999999851 | AN44: 0.05535556488 | AO44: 0.05485439673 | AP44: 0.8268355425
AD45: 42 | AE45: 0 | AF45: 0 | AG45: 0 | AH45: 0 | AI45: 0.400000006 | AJ45: 0.3000000119 | AK45: 0.3000000119 | AL45: 1.00000003 | AN45: 0.06086015111 | AO45: 0.05609086528 | AP45: 0.9067457037
AD46: 43 | AE46: 0 | AF46: 0 | AG46: 0 | AH46: 0 | AI46: 0.400000006 | AJ46: 0.400000006 | AK46: 0.1999999881 | AL46: 1 | AN46: 0.06636473447 | AO46: 0.05821248889 | AP46: 0.9682584536
AD47: 44 | AE47: 0 | AF47: 0 | AG47: 0 | AH47: 0 | AI47: 0.400000006 | AJ47: 0.5 | AK47: 0.09999996424 | AL47: 0.9999999702 | AN47: 0.07186931783 | AO47: 0.06112717837 | AP47: 1.012140908
AD48: 45 | AE48: 0 | AF48: 0 | AG48: 0 | AH48: 0 | AI48: 0.400000006 | AJ48: 0.6000000238 | AK48: 0 | AL48: 1.00000003 | AN48: 0.0773739053 | AO48: 0.06472788751 | AP48: 1.0408791
AD49: 46 | AE49: 0 | AF49: 0 | AG49: 0 | AH49: 0 | AI49: 0.5 | AJ49: 0 | AK49: 0.5 | AL49: 1 | AN49: 0.04853494153 | AO49: 0.06200319529 | AP49: 0.6214992849
AD50: 47 | AE50: 0 | AF50: 0 | AG50: 0 | AH50: 0 | AI50: 0.5 | AJ50: 0.1000000015 | AK50: 0.3999999762 | AL50: 0.9999999776 | AN50: 0.05403952551 | AO50: 0.06195361912 | AP50: 0.7108466968
AD51: 48 | AE51: 0 | AF51: 0 | AG51: 0 | AH51: 0 | AI51: 0.5 | AJ51: 0.200000003 | AK51: 0.3000000119 | AL51: 1.000000015 | AN51: 0.05954411113 | AO51: 0.0627489835 | AP51: 0.7895603779
AD52: 49 | AE52: 0 | AF52: 0 | AG52: 0 | AH52: 0 | AI52: 0.5 | AJ52: 0.3000000119 | AK52: 0.1999999881 | AL52: 1 | AN52: 0.06504869572 | AO52: 0.06435797364 | AP52: 0.8553515999
AD53: 50 | AE53: 0 | AF53: 0 | AG53: 0 | AH53: 0 | AI53: 0.5 | AJ53: 0.400000006 | AK53: 0.09999996424 | AL53: 0.9999999702 | AN53: 0.07055327907 | AO53: 0.06672174484 | AP53: 0.9075493937
AD54: 51 | AE54: 0 | AF54: 0 | AG54: 0 | AH54: 0 | AI54: 0.5 | AJ54: 0.5 | AK54: 0 | AL54: 1 | AN54: 0.07605786408 | AO54: 0.06976361573 | AP54: 0.9468813133
AD55: 52 | AE55: 0 | AF55: 0 | AG55: 0 | AH55: 0 | AI55: 0.6000000238 | AJ55: 0 | AK55: 0.3999999762 | AL55: 1 | AN55: 0.0527234882 | AO55: 0.06984309107 | AP55: 0.6117067207
AD56: 53 | AE56: 0 | AF56: 0 | AG56: 0 | AH56: 0 | AI56: 0.6000000238 | AJ56: 0.1000000015 | AK56: 0.3000000119 | AL56: 1.000000037 | AN56: 0.05822807382 | AO56: 0.0702797696 | AP56: 0.6862298226
AD57: 54 | AE57: 0 | AF57: 0 | AG57: 0 | AH57: 0 | AI57: 0.6000000238 | AJ57: 0.200000003 | AK57: 0.1999999881 | AL57: 1.000000015 | AN57: 0.0637326578 | AO57: 0.0714546293 | AP57: 0.7519828781
AD58: 55 | AE58: 0 | AF58: 0 | AG58: 0 | AH58: 0 | AI58: 0.6000000238 | AJ58: 0.3000000119 | AK58: 0.09999996424 | AL58: 1 | AN58: 0.06923724239 | AO58: 0.07333219051 | AP58: 0.8077931666
AD59: 56 | AE59: 0 | AF59: 0 | AG59: 0 | AH59: 0 | AI59: 0.6000000238 | AJ59: 0.400000006 | AK59: 0 | AL59: 1.00000003 | AN59: 0.07474182739 | AO59: 0.07586030662 | AP59: 0.8534348235
AD60: 57 | AE60: 0 | AF60: 0 | AG60: 0 | AH60: 0 | AI60: 0.6999999881 | AJ60: 0 | AK60: 0.3000000119 | AL60: 1 | AN60: 0.05691203238 | AO60: 0.07843223959 | AP60: 0.5981218007
AD61: 58 | AE61: 0 | AF61: 0 | AG61: 0 | AH61: 0 | AI61: 0.6999999881 | AJ61: 0.1000000015 | AK61: 0.1999999881 | AL61: 0.9999999776 | AN61: 0.06241661636 | AO61: 0.07924732566 | AP61: 0.6614307287
AD62: 59 | AE62: 0 | AF62: 0 | AG62: 0 | AH62: 0 | AI62: 0.6999999881 | AJ62: 0.200000003 | AK62: 0.09999996424 | AL62: 0.9999999553 | AN62: 0.06792120033 | AO62: 0.08070929348 | AP62: 0.7176521789
AD63: 60 | AE63: 0 | AF63: 0 | AG63: 0 | AH63: 0 | AI63: 0.6999999881 | AJ63: 0.3000000119 | AK63: 0 | AL63: 1 | AN63: 0.07342578656 | AO63: 0.0827838704 | AP63: 0.7661611647
AD64: 61 | AE64: 0 | AF64: 0 | AG64: 0 | AH64: 0 | AI64: 0.8000000119 | AJ64: 0 | AK64: 0.1999999881 | AL64: 1 | AN64: 0.06110057905 | AO64: 0.08755040914 | AP64: 0.5836703627
AD65: 62 | AE65: 0 | AF65: 0 | AG65: 0 | AH65: 0 | AI65: 0.8000000119 | AJ65: 0.1000000015 | AK65: 0.09999996424 | AL65: 0.9999999776 | AN65: 0.06660516303 | AO65: 0.0886618793 | AP65: 0.6384385654
AD66: 63 | AE66: 0 | AF66: 0 | AG66: 0 | AH66: 0 | AI66: 0.8000000119 | AJ66: 0.200000003 | AK66: 0 | AL66: 1.000000015 | AN66: 0.07210974865 | AO66: 0.09034440666 | AP66: 0.6874775201
AD67: 64 | AE67: 0 | AF67: 0 | AG67: 0 | AH67: 0 | AI67: 0.9000000358 | AJ67: 0 | AK67: 0.09999996424 | AL67: 1 | AN67: 0.06528912573 | AO67: 0.0970485881 | AP67: 0.5697056166
AD68: 65 | AE68: 0 | AF68: 0 | AG68: 0 | AH68: 0 | AI68: 0.9000000358 | AJ68: 0.1000000015 | AK68: 0 | AL68: 1.000000037 | AN68: 0.07079371135 | AO68: 0.09839520603 | AP68: =(AN68-RFR)/AO68 -> 0.617852371
AD69: 66 | AE69: 0 | AF69: 0 | AG69: 0 | AH69: 0 | AI69: 1 | AJ69: 0 | AK69: 0 | AL69: =SUM(AE69:AK69) -> 1 | AN69: =AE69*$C$5+AF69*$C$6+AG69*$C$7+AH69*$C$8+AI69*$C$9+AJ69*$C$10+AK69*$C$11 -> 0.0694776699 | AO69: =SDP(7,$E$5:$K$11,AE69:AK69) -> 0.1068254709 | AP69: 0.5567742355 | AQ69: =IF(AP69>=0.9999*$AP$2,"Max. Sharpe","") -> 
AD70: 67 | AE70: 0 | AF70: 0 | AG70: 0 | AH70: 0.1000000015 | AI70: 0 | AJ70: 0 | AK70: 0.8999999762 | AL70: 0.9999999776 | AN70: 0.02679016769 | AO70: 0.04332804307 | AP70: 0.3875127168
AD71: 68 | AE71: 0 | AF71: 0 | AG71: 0 | AH71: 0.1000000015 | AI71: 0 | AJ71: 0.1000000015 | AK71: 0.8000000119 | AL71: 1.000000015 | AN71: 0.0322947533 | AO71: 0.03975781053 | AP71: 0.5607641117
AD72: 69 | AE72: 0 | AF72: 0 | AG72: 0 | AH72: 0.1000000015 | AI72: 0 | AJ72: 0.200000003 | AK72: 0.6999999881 | AL72: 0.9999999925 | AN72: 0.03779933728 | AO72: 0.03727434576 | AP72: 0.7458034934
AD73: 70 | AE73: 0 | AF73: 0 | AG73: 0 | AH73: 0.1000000015 | AI73: 0 | AJ73: 0.3000000119 | AK73: 0.6000000238 | AL73: 1.000000037 | AN73: 0.04330392351 | AO73: 0.03610262647 | AP73: 0.9224792423
AD74: 71 | AE74: 0 | AF74: 0 | AG74: 0 | AH74: 0.1000000015 | AI74: 0 | AJ74: 0.400000006 | AK74: 0.5 | AL74: 1.000000007 | AN74: 0.04880850687 | AO74: 0.03636964038 | AP74: 1.067057757
AD75: 72 | AE75: 0 | AF75: 0 | AG75: 0 | AH75: 0.1000000015 | AI75: 0 | AJ75: 0.5 | AK75: 0.3999999762 | AL75: 0.9999999776 | AN75: 0.05431309023 | AO75: 0.03804512322 | AP75: 1.164750866
AD76: 73 | AE76: 0 | AF76: 0 | AG76: 0 | AH76: 0.1000000015 | AI76: 0 | AJ76: 0.6000000238 | AK76: 0.3000000119 | AL76: 1.000000037 | AN76: 0.0598176777 | AO76: 0.04095657542 | AP76: 1.216353594
AD77: 74 | AE77: 0 | AF77: 0 | AG77: 0 | AH77: 0.1000000015 | AI77: 0 | AJ77: 0.6999999881 | AK77: 0.1999999881 | AL77: 0.9999999776 | AN77: 0.06532225859 | AO77: 0.04486401007 | AP77: 1.233109981
AD78: 75 | AE78: 0 | AF78: 0 | AG78: 0 | AH78: 0.1000000015 | AI78: 0 | AJ78: 0.8000000119 | AK78: 0.09999996424 | AL78: 0.9999999776 | AN78: 0.07082684442 | AO78: 0.04953228682 | AP78: 1.22802415
AD79: 76 | AE79: 0 | AF79: 0 | AG79: 0 | AH79: 0.1000000015 | AI79: 0 | AJ79: 0.9000000358 | AK79: 0 | AL79: 1.000000037 | AN79: 0.07633143188 | AO79: 0.05476718396 | AP79: 1.211152867
AD80: 77 | AE80: 0 | AF80: 0 | AG80: 0 | AH80: 0.1000000015 | AI80: 0.1000000015 | AJ80: 0 | AK80: 0.8000000119 | AL80: 1.000000015 | AN80: 0.03097871445 | AO80: 0.04183695838 | AP80: 0.501439762
AD81: 78 | AE81: 0 | AF81: 0 | AG81: 0 | AH81: 0.1000000015 | AI81: 0.1000000015 | AJ81: 0.1000000015 | AK81: 0.6999999881 | AL81: 0.9999999925 | AN81: 0.03648329842 | AO81: 0.03900036588 | AP81: 0.6790525634
AD82: 79 | AE82: 0 | AF82: 0 | AG82: 0 | AH82: 0.1000000015 | AI82: 0.1000000015 | AJ82: 0.200000003 | AK82: 0.6000000238 | AL82: 1.00000003 | AN82: 0.04198788404 | AO82: 0.03737720102 | AP82: 0.8558127193
AD83: 80 | AE83: 0 | AF83: 0 | AG83: 0 | AH83: 0.1000000015 | AI83: 0.1000000015 | AJ83: 0.3000000119 | AK83: 0.5 | AL83: 1.000000015 | AN83: 0.04749246863 | AO83: 0.03712695464 | AP83: 1.009844976
AD84: 81 | AE84: 0 | AF84: 0 | AG84: 0 | AH84: 0.1000000015 | AI84: 0.1000000015 | AJ84: 0.400000006 | AK84: 0.3999999762 | AL84: 0.9999999851 | AN84: 0.05299705199 | AO84: 0.03827656433 | AP84: 1.123325793
AD85: 82 | AE85: 0 | AF85: 0 | AG85: 0 | AH85: 0.1000000015 | AI85: 0.1000000015 | AJ85: 0.5 | AK85: 0.3000000119 | AL85: 1.000000015 | AN85: 0.058501637 | AO85: 0.04070760682 | AP85: 1.191463728
AD86: 83 | AE86: 0 | AF86: 0 | AG86: 0 | AH86: 0.1000000015 | AI86: 0.1000000015 | AJ86: 0.6000000238 | AK86: 0.1999999881 | AL86: 1.000000015 | AN86: 0.06400622282 | AO86: 0.04420918599 | AP86: 1.221606361
AD87: 84 | AE87: 0 | AF87: 0 | AG87: 0 | AH87: 0.1000000015 | AI87: 0.1000000015 | AJ87: 0.6999999881 | AK87: 0.09999996424 | AL87: 0.9999999553 | AN87: 0.06951080371 | AO87: 0.04855021834 | AP87: 1.225757695
AD88: 85 | AE88: 0 | AF88: 0 | AG88: 0 | AH88: 0.1000000015 | AI88: 0.1000000015 | AJ88: 0.8000000119 | AK88: 0 | AL88: 1.000000015 | AN88: 0.07501539118 | AO88: 0.05352686346 | AP88: 1.214631065
AD89: 86 | AE89: 0 | AF89: 0 | AG89: 0 | AH89: 0.1000000015 | AI89: 0.200000003 | AJ89: 0 | AK89: 0.6999999881 | AL89: 0.9999999925 | AN89: 0.03516725957 | AO89: 0.04316526651 | AP89: 0.5830442298
AD90: 87 | AE90: 0 | AF90: 0 | AG90: 0 | AH90: 0.1000000015 | AI90: 0.200000003 | AJ90: 0.1000000015 | AK90: 0.6000000238 | AL90: 1.00000003 | AN90: 0.04067184519 | AO90: 0.04124647006 | AP90: 0.7436235184
AD91: 88 | AE91: 0 | AF91: 0 | AG91: 0 | AH91: 0.1000000015 | AI91: 0.200000003 | AJ91: 0.200000003 | AK91: 0.5 | AL91: 1.000000007 | AN91: 0.04617642916 | AO91: 0.04055405036 | AP91: 0.8920546492
AD92: 89 | AE92: 0 | AF92: 0 | AG92: 0 | AH92: 0.1000000015 | AI92: 0.200000003 | AJ92: 0.3000000119 | AK92: 0.3999999762 | AL92: 0.9999999925 | AN92: 0.05168101375 | AO92: 0.04114996642 | AP92: 1.012905171
AD93: 90 | AE93: 0 | AF93: 0 | AG93: 0 | AH93: 0.1000000015 | AI93: 0.200000003 | AJ93: 0.400000006 | AK93: 0.3000000119 | AL93: 1.000000022 | AN93: 0.05718559876 | AO93: 0.0429806672 | AP93: 1.097833092
AD94: 91 | AE94: 0 | AF94: 0 | AG94: 0 | AH94: 0.1000000015 | AI94: 0.200000003 | AJ94: 0.5 | AK94: 0.1999999881 | AL94: 0.9999999925 | AN94: 0.06269018212 | AO94: 0.04589863494 | AP94: 1.147968391
AD95: 92 | AE95: 0 | AF95: 0 | AG95: 0 | AH95: 0.1000000015 | AI95: 0.200000003 | AJ95: 0.6000000238 | AK95: 0.09999996424 | AL95: 0.9999999925 | AN95: 0.06819476794 | AO95: 0.04971278459 | AP95: 1.170619759
AD96: 93 | AE96: 0 | AF96: 0 | AG96: 0 | AH96: 0.1000000015 | AI96: 0.200000003 | AJ96: 0.6999999881 | AK96: 0 | AL96: 0.9999999925 | AN96: 0.07369935048 | AO96: 0.05423436314 | AP96: 1.174520116
AD97: 94 | AE97: 0 | AF97: 0 | AG97: 0 | AH97: 0.1000000015 | AI97: 0.3000000119 | AJ97: 0 | AK97: 0.6000000238 | AL97: 1.000000037 | AN97: 0.03935580685 | AO97: 0.04707491398 | AP97: 0.6235976738
AD98: 95 | AE98: 0 | AF98: 0 | AG98: 0 | AH98: 0.1000000015 | AI98: 0.3000000119 | AJ98: 0.1000000015 | AK98: 0.5 | AL98: 1.000000015 | AN98: 0.04486039083 | AO98: 0.04605878145 | AP98: 0.7568674145
AD99: 96 | AE99: 0 | AF99: 0 | AG99: 0 | AH99: 0.1000000015 | AI99: 0.3000000119 | AJ99: 0.200000003 | AK99: 0.3999999762 | AL99: 0.9999999925 | AN99: 0.0503649748 | AO99: 0.04617471993 | AP99: 0.8741790933
AD100: 97 | AE100: 0 | AF100: 0 | AG100: 0 | AH100: 0.1000000015 | AI100: 0.3000000119 | AJ100: 0.3000000119 | AK100: 0.3000000119 | AL100: 1.000000037 | AN100: 0.05586956104 | AO100: 0.04741442204 | AP100: 0.9674179093
AD101: 98 | AE101: 0 | AF101: 0 | AG101: 0 | AH101: 0.1000000015 | AI101: 0.3000000119 | AJ101: 0.400000006 | AK101: 0.1999999881 | AL101: 1.000000007 | AN101: 0.0613741444 | AO101: 0.04969384149 | AP101: 1.033813102
AD102: 99 | AE102: 0 | AF102: 0 | AG102: 0 | AH102: 0.1000000015 | AI102: 0.3000000119 | AJ102: 0.5 | AK102: 0.09999996424 | AL102: 0.9999999776 | AN102: 0.06687872775 | AO102: 0.05287871137 | AP102: 1.075645118
AD103: 100 | AE103: 0 | AF103: 0 | AG103: 0 | AH103: 0.1000000015 | AI103: 0.3000000119 | AJ103: 0.6000000238 | AK103: 0 | AL103: 1.000000037 | AN103: 0.07238331522 | AO103: 0.05681696907 | AP103: 1.097969783
AD104: 101 | AE104: 0 | AF104: 0 | AG104: 0 | AH104: 0.1000000015 | AI104: 0.400000006 | AJ104: 0 | AK104: 0.5 | AL104: 1.000000007 | AN104: 0.04354435145 | AO104: 0.05299766362 | AP104: 0.6329401933
AD105: 102 | AE105: 0 | AF105: 0 | AG105: 0 | AH105: 0.1000000015 | AI105: 0.400000006 | AJ105: 0.1000000015 | AK105: 0.3999999762 | AL105: 0.9999999851 | AN105: 0.04904893543 | AO105: 0.05273945257 | AP105: 0.7404122251
AD106: 103 | AE106: 0 | AF106: 0 | AG106: 0 | AH106: 0.1000000015 | AI106: 0.400000006 | AJ106: 0.200000003 | AK106: 0.3000000119 | AL106: 1.000000022 | AN106: 0.05455352105 | AO106: 0.05347407237 | AP106: 0.8331798772
AD107: 104 | AE107: 0 | AF107: 0 | AG107: 0 | AH107: 0.1000000015 | AI107: 0.400000006 | AJ107: 0.3000000119 | AK107: 0.1999999881 | AL107: 1.000000007 | AN107: 0.06005810564 | AO107: 0.05516186357 | AP107: 0.907476695
AD108: 105 | AE108: 0 | AF108: 0 | AG108: 0 | AH108: 0.1000000015 | AI108: 0.400000006 | AJ108: 0.400000006 | AK108: 0.09999996424 | AL108: 0.9999999776 | AN108: 0.065562689 | AO108: 0.05771928653 | AP108: 0.9626364485
AD109: 106 | AE109: 0 | AF109: 0 | AG109: 0 | AH109: 0.1000000015 | AI109: 0.400000006 | AJ109: 0.5 | AK109: 0 | AL109: 1.000000007 | AN109: 0.071067274 | AO109: 0.06103711203 | AP109: 1.000494158
AD110: 107 | AE110: 0 | AF110: 0 | AG110: 0 | AH110: 0.1000000015 | AI110: 0.5 | AJ110: 0 | AK110: 0.3999999762 | AL110: 0.9999999776 | AN110: 0.04773289606 | AO110: 0.06034363806 | AP110: 0.6253003178
AD111: 108 | AE111: 0 | AF111: 0 | AG111: 0 | AH111: 0.1000000015 | AI111: 0.5 | AJ111: 0.1000000015 | AK111: 0.3000000119 | AL111: 1.000000015 | AN111: 0.05323748168 | AO111: 0.06067442521 | AP111: 0.712614607
AD112: 109 | AE112: 0 | AF112: 0 | AG112: 0 | AH112: 0.1000000015 | AI112: 0.5 | AJ112: 0.200000003 | AK112: 0.1999999881 | AL112: 0.9999999925 | AN112: 0.05874206565 | AO112: 0.06186068803 | AP112: 0.7879328084
AD113: 110 | AE113: 0 | AF113: 0 | AG113: 0 | AH113: 0.1000000015 | AI113: 0.5 | AJ113: 0.3000000119 | AK113: 0.09999996424 | AL113: 0.9999999776 | AN113: 0.06424665024 | AO113: 0.06385478377 | AP113: 0.8495315
AD114: 111 | AE114: 0 | AF114: 0 | AG114: 0 | AH114: 0.1000000015 | AI114: 0.5 | AJ114: 0.400000006 | AK114: 0 | AL114: 1.000000007 | AN114: 0.06975123524 | AO114: 0.06658416986 | AP114: 0.8973789921
AD115: 112 | AE115: 0 | AF115: 0 | AG115: 0 | AH115: 0.1000000015 | AI115: 0.6000000238 | AJ115: 0 | AK115: 0.3000000119 | AL115: 1.000000037 | AN115: 0.05192144437 | AO115: 0.06865752488 | AP115: 0.6105877607
AD116: 113 | AE116: 0 | AF116: 0 | AG116: 0 | AH116: 0.1000000015 | AI116: 0.6000000238 | AJ116: 0.1000000015 | AK116: 0.1999999881 | AL116: 1.000000015 | AN116: 0.05742602835 | AO116: 0.06943500787 | AP116: 0.6830276226
AD117: 114 | AE117: 0 | AF117: 0 | AG117: 0 | AH117: 0.1000000015 | AI117: 0.6000000238 | AJ117: 0.200000003 | AK117: 0.09999996424 | AL117: 0.9999999925 | AN117: 0.06293061232 | AO117: 0.07095006853 | AP117: 0.7460262325
AD118: 115 | AE118: 0 | AF118: 0 | AG118: 0 | AH118: 0.1000000015 | AI118: 0.6000000238 | AJ118: 0.3000000119 | AK118: 0 | AL118: 1.000000037 | AN118: 0.06843519856 | AO118: 0.07315691561 | AP118: 0.7987652032
AD119: 116 | AE119: 0 | AF119: 0 | AG119: 0 | AH119: 0.1000000015 | AI119: 0.6999999881 | AJ119: 0 | AK119: 0.1999999881 | AL119: 0.9999999776 | AN119: 0.05610998691 | AO119: 0.07762894779 | AP119: 0.593979285
AD120: 117 | AE120: 0 | AF120: 0 | AG120: 0 | AH120: 0.1000000015 | AI120: 0.6999999881 | AJ120: 0.1000000015 | AK120: 0.09999996424 | AL120: 0.9999999553 | AN120: 0.06161457088 | AO120: 0.07874611765 | AP120: 0.655455436
AD121: 118 | AE121: 0 | AF121: 0 | AG121: 0 | AH121: 0.1000000015 | AI121: 0.6999999881 | AJ121: 0.200000003 | AK121: 0 | AL121: 0.9999999925 | AN121: 0.0671191565 | AO121: 0.08050451428 | AP121: 0.709514951
AD122: 119 | AE122: 0 | AF122: 0 | AG122: 0 | AH122: 0.1000000015 | AI122: 0.8000000119 | AJ122: 0 | AK122: 0.09999996424 | AL122: 0.9999999776 | AN122: 0.06029853358 | AO122: 0.08705486357 | AP122: 0.5777797071
AD123: 120 | AE123: 0 | AF123: 0 | AG123: 0 | AH123: 0.1000000015 | AI123: 0.8000000119 | AJ123: 0.1000000015 | AK123: 0 | AL123: 1.000000015 | AN123: 0.0658031192 | AO123: 0.08843404055 | AP123: 0.6310140174
AD124: 121 | AE124: 0 | AF124: 0 | AG124: 0 | AH124: 0.1000000015 | AI124: 0.9000000358 | AJ124: 0 | AK124: 0 | AL124: 1.000000037 | AN124: 0.0644870819 | AO124: 0.09680259973 | AP124: 0.5628679607
AD125: 122 | AE125: 0 | AF125: 0 | AG125: 0 | AH125: 0.200000003 | AI125: 0 | AJ125: 0 | AK125: 0.8000000119 | AL125: 1.000000015 | AN125: 0.02598812386 | AO125: 0.03941787034 | AP125: 0.4056059781
AD126: 123 | AE126: 0 | AF126: 0 | AG126: 0 | AH126: 0.200000003 | AI126: 0 | AJ126: 0.1000000015 | AK126: 0.6999999881 | AL126: 0.9999999925 | AN126: 0.03149270783 | AO126: 0.03610135987 | AP126: 0.5953434415
AD127: 124 | AE127: 0 | AF127: 0 | AG127: 0 | AH127: 0.200000003 | AI127: 0 | AJ127: 0.200000003 | AK127: 0.6000000238 | AL127: 1.00000003 | AN127: 0.03699729345 | AO127: 0.03403200209 | AP127: 0.7932913667
AD128: 125 | AE128: 0 | AF128: 0 | AG128: 0 | AH128: 0.200000003 | AI128: 0 | AJ128: 0.3000000119 | AK128: 0.5 | AL128: 1.000000015 | AN128: 0.04250187804 | AO128: 0.03344211355 | AP128: 0.9718846864
AD129: 126 | AE129: 0 | AF129: 0 | AG129: 0 | AH129: 0.200000003 | AI129: 0 | AJ129: 0.400000006 | AK129: 0.3999999762 | AL129: 0.9999999851 | AN129: 0.0480064614 | AO129: 0.03440787271 | AP129: 1.104586201
AD130: 127 | AE130: 0 | AF130: 0 | AG130: 0 | AH130: 0.200000003 | AI130: 0 | AJ130: 0.5 | AK130: 0.3000000119 | AL130: 1.000000015 | AN130: 0.0535110464 | AO130: 0.03680703416 | AP130: 1.18213943
AD131: 128 | AE131: 0 | AF131: 0 | AG131: 0 | AH131: 0.200000003 | AI131: 0 | AJ131: 0.6000000238 | AK131: 0.1999999881 | AL131: 1.000000015 | AN131: 0.05901563222 | AO131: 0.04038493335 | AP131: 1.213710861
AD132: 129 | AE132: 0 | AF132: 0 | AG132: 0 | AH132: 0.200000003 | AI132: 0 | AJ132: 0.6999999881 | AK132: 0.09999996424 | AL132: 0.9999999553 | AN132: 0.06452021312 | AO132: 0.04486041144 | AP132: =(AN132-RFR)/AO132 -> 1.215330207
AD133: 130 | AE133: 0 | AF133: 0 | AG133: 0 | AH133: 0.200000003 | AI133: 0 | AJ133: 0.8000000119 | AK133: 0 | AL133: =SUM(AE133:AK133) -> 1.000000015 | AN133: =AE133*$C$5+AF133*$C$6+AG133*$C$7+AH133*$C$8+AI133*$C$9+AJ133*$C$10+AK133*$C$11 -> 0.07002480059 | AO133: =SDP(7,$E$5:$K$11,AE133:AK133) -> 0.04999300092 | AP133: 1.200664083 | AQ133: =IF(AP133>=0.9999*$AP$2,"Max. Sharpe","") -> 
AD134: 131 | AE134: 0 | AF134: 0 | AG134: 0 | AH134: 0.200000003 | AI134: 0.1000000015 | AJ134: 0 | AK134: 0.6999999881 | AL134: 0.9999999925 | AN134: 0.03017666898 | AO134: 0.03828340396 | AP134: 0.5270343514
AD135: 132 | AE135: 0 | AF135: 0 | AG135: 0 | AH135: 0.200000003 | AI135: 0.1000000015 | AJ135: 0.1000000015 | AK135: 0.6000000238 | AL135: 1.00000003 | AN135: 0.0356812546 | AO135: 0.03581189737 | AP135: 0.7171151624
AD136: 133 | AE136: 0 | AF136: 0 | AG136: 0 | AH136: 0.200000003 | AI136: 0.1000000015 | AJ136: 0.200000003 | AK136: 0.5 | AL136: 1.000000007 | AN136: 0.04118583857 | AO136: 0.03470870107 | AP136: 0.8985020357
AD137: 134 | AE137: 0 | AF137: 0 | AG137: 0 | AH137: 0.200000003 | AI137: 0.1000000015 | AJ137: 0.3000000119 | AK137: 0.3999999762 | AL137: 0.9999999925 | AN137: 0.04669042316 | AO137: 0.03510306403 | AP137: 1.045219959
AD138: 135 | AE138: 0 | AF138: 0 | AG138: 0 | AH138: 0.200000003 | AI138: 0.1000000015 | AJ138: 0.400000006 | AK138: 0.3000000119 | AL138: 1.000000022 | AN138: 0.05219500816 | AO138: 0.03694706038 | AP138: 1.142039657
AD139: 136 | AE139: 0 | AF139: 0 | AG139: 0 | AH139: 0.200000003 | AI139: 0.1000000015 | AJ139: 0.5 | AK139: 0.1999999881 | AL139: 0.9999999925 | AN139: 0.05769959152 | AO139: 0.04004091024 | AP139: 1.191271408
AD140: 137 | AE140: 0 | AF140: 0 | AG140: 0 | AH140: 0.200000003 | AI140: 0.1000000015 | AJ140: 0.6000000238 | AK140: 0.09999996424 | AL140: 0.9999999925 | AN140: 0.06320417734 | AO140: 0.04412247613 | AP140: 1.205829364
AD141: 138 | AE141: 0 | AF141: 0 | AG141: 0 | AH141: 0.200000003 | AI141: 0.1000000015 | AJ141: 0.6999999881 | AK141: 0 | AL141: 0.9999999925 | AN141: 0.06870875988 | AO141: 0.04894527793 | AP141: 1.199477506
AD142: 139 | AE142: 0 | AF142: 0 | AG142: 0 | AH142: 0.200000003 | AI142: 0.200000003 | AJ142: 0 | AK142: 0.6000000238 | AL142: 1.00000003 | AN142: 0.03436521574 | AO142: 0.04021650553 | AP142: 0.6058511405
AD143: 140 | AE143: 0 | AF143: 0 | AG143: 0 | AH143: 0.200000003 | AI143: 0.200000003 | AJ143: 0.1000000015 | AK143: 0.5 | AL143: 1.000000007 | AN143: 0.03986979972 | AO143: 0.03875014186 | AP143: 0.7708307191
AD144: 141 | AE144: 0 | AF144: 0 | AG144: 0 | AH144: 0.200000003 | AI144: 0.200000003 | AJ144: 0.200000003 | AK144: 0.3999999762 | AL144: 0.9999999851 | AN144: 0.04537438369 | AO144: 0.03861488029 | AP144: 0.9160816613
AD145: 142 | AE145: 0 | AF145: 0 | AG145: 0 | AH145: 0.200000003 | AI145: 0.200000003 | AJ145: 0.3000000119 | AK145: 0.3000000119 | AL145: 1.00000003 | AN145: 0.05087896992 | AO145: 0.03982427716 | AP145: 1.026483664
AD146: 143 | AE146: 0 | AF146: 0 | AG146: 0 | AH146: 0.200000003 | AI146: 0.200000003 | AJ146: 0.400000006 | AK146: 0.1999999881 | AL146: 1 | AN146: 0.05638355328 | AO146: 0.04226306081 | AP146: 1.09749631
AD147: 144 | AE147: 0 | AF147: 0 | AG147: 0 | AH147: 0.200000003 | AI147: 0.200000003 | AJ147: 0.5 | AK147: 0.09999996424 | AL147: 0.9999999702 | AN147: 0.06188813664 | AO147: 0.04573498666 | AP147: 1.134539232
AD148: 145 | AE148: 0 | AF148: 0 | AG148: 0 | AH148: 0.200000003 | AI148: 0.200000003 | AJ148: 0.6000000238 | AK148: 0 | AL148: 1.00000003 | AN148: 0.06739272411 | AO148: 0.05002539977 | AP148: 1.147271673
AD149: 146 | AE149: 0 | AF149: 0 | AG149: 0 | AH149: 0.200000003 | AI149: 0.3000000119 | AJ149: 0 | AK149: 0.5 | AL149: 1.000000015 | AN149: 0.03855376138 | AO149: 0.04482201859 | AP149: 0.6370476448
AD150: 147 | AE150: 0 | AF150: 0 | AG150: 0 | AH150: 0.200000003 | AI150: 0.3000000119 | AJ150: 0.1000000015 | AK150: 0.3999999762 | AL150: 0.9999999925 | AN150: 0.04405834535 | AO150: 0.04427812994 | AP150: 0.7691911425
AD151: 148 | AE151: 0 | AF151: 0 | AG151: 0 | AH151: 0.200000003 | AI151: 0.3000000119 | AJ151: 0.200000003 | AK151: 0.3000000119 | AL151: 1.00000003 | AN151: 0.04956293097 | AO151: 0.04491572082 | AP151: 0.8808259168
AD152: 149 | AE152: 0 | AF152: 0 | AG152: 0 | AH152: 0.200000003 | AI152: 0.3000000119 | AJ152: 0.3000000119 | AK152: 0.1999999881 | AL152: 1.000000015 | AN152: 0.05506751556 | AO152: 0.04668638855 | AP152: 0.9653245188
AD153: 150 | AE153: 0 | AF153: 0 | AG153: 0 | AH153: 0.200000003 | AI153: 0.3000000119 | AJ153: 0.400000006 | AK153: 0.09999996424 | AL153: 0.9999999851 | AN153: 0.06057209892 | AO153: 0.04946863279 | AP153: 1.02230638
AD154: 151 | AE154: 0 | AF154: 0 | AG154: 0 | AH154: 0.200000003 | AI154: 0.3000000119 | AJ154: 0.5 | AK154: 0 | AL154: 1.000000015 | AN154: 0.06607668392 | AO154: 0.05310368538 | AP154: 1.055984788
AD155: 152 | AE155: 0 | AF155: 0 | AG155: 0 | AH155: 0.200000003 | AI155: 0.400000006 | AJ155: 0 | AK155: 0.3999999762 | AL155: 0.9999999851 | AN155: 0.04274230598 | AO155: 0.05138635263 | AP155: 0.6371790233
AD156: 153 | AE156: 0 | AF156: 0 | AG156: 0 | AH156: 0.200000003 | AI156: 0.400000006 | AJ156: 0.1000000015 | AK156: 0.3000000119 | AL156: 1.000000022 | AN156: 0.0482468916 | AO156: 0.05156966299 | AP156: 0.7416548681
AD157: 154 | AE157: 0 | AF157: 0 | AG157: 0 | AH157: 0.200000003 | AI157: 0.400000006 | AJ157: 0.200000003 | AK157: 0.1999999881 | AL157: 1 | AN157: 0.05375147557 | AO157: 0.05276013166 | AP157: 0.8292525852
AD158: 155 | AE158: 0 | AF158: 0 | AG158: 0 | AH158: 0.200000003 | AI158: 0.400000006 | AJ158: 0.3000000119 | AK158: 0.09999996424 | AL158: 0.9999999851 | AN158: 0.05925606016 | AO158: 0.05489228666 | AP158: 0.8973220677
AD159: 156 | AE159: 0 | AF159: 0 | AG159: 0 | AH159: 0.200000003 | AI159: 0.400000006 | AJ159: 0.400000006 | AK159: 0 | AL159: 1.000000015 | AN159: 0.06476064517 | AO159: 0.05786209926 | AP159: 0.9463992124
AD160: 157 | AE160: 0 | AF160: 0 | AG160: 0 | AH160: 0.200000003 | AI160: 0.5 | AJ160: 0 | AK160: 0.3000000119 | AL160: 1.000000015 | AN160: 0.04693085223 | AO160: 0.05926211923 | AP160: 0.6231780555
AD161: 158 | AE161: 0 | AF161: 0 | AG161: 0 | AH161: 0.200000003 | AI161: 0.5 | AJ161: 0.1000000015 | AK161: 0.1999999881 | AL161: 0.9999999925 | AN161: 0.0524354362 | AO161: 0.05998503417 | AP161: 0.7074337256
AD162: 159 | AE162: 0 | AF162: 0 | AG162: 0 | AH162: 0.200000003 | AI162: 0.5 | AJ162: 0.200000003 | AK162: 0.09999996424 | AL162: 0.9999999702 | AN162: 0.05794002018 | AO162: 0.06156085804 | AP162: 0.7787419101
AD163: 160 | AE163: 0 | AF163: 0 | AG163: 0 | AH163: 0.200000003 | AI163: 0.5 | AJ163: 0.3000000119 | AK163: 0 | AL163: 1.000000015 | AN163: 0.06344460641 | AO163: 0.06392654777 | AP163: 0.8360314811
AD164: 161 | AE164: 0 | AF164: 0 | AG164: 0 | AH164: 0.200000003 | AI164: 0.6000000238 | AJ164: 0 | AK164: 0.1999999881 | AL164: 1.000000015 | AN164: 0.0511193989 | AO164: 0.06799513847 | AP164: 0.6047402774
AD165: 162 | AE165: 0 | AF165: 0 | AG165: 0 | AH165: 0.200000003 | AI165: 0.6000000238 | AJ165: 0.1000000015 | AK165: 0.09999996424 | AL165: 0.9999999925 | AN165: 0.05662398288 | AO165: 0.06911496073 | AP165: 0.6745859707
AD166: 163 | AE166: 0 | AF166: 0 | AG166: 0 | AH166: 0.200000003 | AI166: 0.6000000238 | AJ166: 0.200000003 | AK166: 0 | AL166: 1.00000003 | AN166: 0.06212856849 | AO166: 0.07096298784 | AP166: 0.7345881294
AD167: 164 | AE167: 0 | AF167: 0 | AG167: 0 | AH167: 0.200000003 | AI167: 0.6999999881 | AJ167: 0 | AK167: 0.09999996424 | AL167: 0.9999999553 | AN167: 0.05530794143 | AO167: 0.07729537785 | AP167: 0.5861662455
AD168: 165 | AE168: 0 | AF168: 0 | AG168: 0 | AH168: 0.200000003 | AI168: 0.6999999881 | AJ168: 0.1000000015 | AK168: 0 | AL168: 0.9999999925 | AN168: 0.06081252705 | AO168: 0.07871116698 | AP168: 0.6455567742
AD169: 166 | AE169: 0 | AF169: 0 | AG169: 0 | AH169: 0.200000003 | AI169: 0.8000000119 | AJ169: 0 | AK169: 0 | AL169: 1.000000015 | AN169: 0.05949648975 | AO169: 0.08698108792 | AP169: 0.5690488695
AD170: 167 | AE170: 0 | AF170: 0 | AG170: 0 | AH170: 0.3000000119 | AI170: 0 | AJ170: 0 | AK170: 0.6999999881 | AL170: 1 | AN170: 0.02518607853 | AO170: 0.03610958531 | AP170: 0.4205553289
AD171: 168 | AE171: 0 | AF171: 0 | AG171: 0 | AH171: 0.3000000119 | AI171: 0 | AJ171: 0.1000000015 | AK171: 0.6000000238 | AL171: 1.000000037 | AN171: 0.03069066415 | AO171: 0.0331604816 | AP171: 0.623955478
AD172: 169 | AE172: 0 | AF172: 0 | AG172: 0 | AH172: 0.3000000119 | AI172: 0 | AJ172: 0.200000003 | AK172: 0.5 | AL172: 1.000000015 | AN172: 0.03619524812 | AO172: 0.03163323924 | AP172: 0.8280924986
AD173: 170 | AE173: 0 | AF173: 0 | AG173: 0 | AH173: 0.3000000119 | AI173: 0 | AJ173: 0.3000000119 | AK173: 0.3999999762 | AL173: 1 | AN173: 0.04169983271 | AO173: 0.03173381463 | AP173: 0.9989291576
AD174: 171 | AE174: 0 | AF174: 0 | AG174: 0 | AH174: 0.3000000119 | AI174: 0 | AJ174: 0.400000006 | AK174: 0.3000000119 | AL174: 1.00000003 | AN174: 0.04720441772 | AO174: 0.03344753012 | AP174: 1.112321824
AD175: 172 | AE175: 0 | AF175: 0 | AG175: 0 | AH175: 0.3000000119 | AI175: 0 | AJ175: 0.5 | AK175: 0.1999999881 | AL175: 1 | AN175: 0.05270900107 | AO175: 0.03654817119 | AP175: 1.168567391
AD176: 173 | AE176: 0 | AF176: 0 | AG176: 0 | AH176: 0.3000000119 | AI176: 0 | AJ176: 0.6000000238 | AK176: 0.09999996424 | AL176: 1 | AN176: 0.0582135869 | AO176: 0.04072013497 | AP176: 1.184023258
AD177: 174 | AE177: 0 | AF177: 0 | AG177: 0 | AH177: 0.3000000119 | AI177: 0 | AJ177: 0.6999999881 | AK177: 0 | AL177: 1 | AN177: 0.06371816944 | AO177: 0.04567076266 | AP177: 1.176204782
AD178: 175 | AE178: 0 | AF178: 0 | AG178: 0 | AH178: 0.3000000119 | AI178: 0.1000000015 | AJ178: 0 | AK178: 0.6000000238 | AL178: 1.000000037 | AN178: 0.02937462529 | AO178: 0.03542021662 | AP178: 0.5469934162
AD179: 176 | AE179: 0 | AF179: 0 | AG179: 0 | AH179: 0.3000000119 | AI179: 0.1000000015 | AJ179: 0.1000000015 | AK179: 0.5 | AL179: 1.000000015 | AN179: 0.03487920927 | AO179: 0.03343112767 | AP179: 0.7441929424
AD180: 177 | AE180: 0 | AF180: 0 | AG180: 0 | AH180: 0.3000000119 | AI180: 0.1000000015 | AJ180: 0.200000003 | AK180: 0.3999999762 | AL180: 0.9999999925 | AN180: 0.04038379324 | AO180: 0.03295478225 | AP180: 0.9219843425
AD181: 178 | AE181: 0 | AF181: 0 | AG181: 0 | AH181: 0.3000000119 | AI181: 0.1000000015 | AJ181: 0.3000000119 | AK181: 0.3000000119 | AL181: 1.000000037 | AN181: 0.04588837948 | AO181: 0.03405472264 | AP181: 1.053844421
AD182: 179 | AE182: 0 | AF182: 0 | AG182: 0 | AH182: 0.3000000119 | AI182: 0.1000000015 | AJ182: 0.400000006 | AK182: 0.1999999881 | AL182: 1.000000007 | AN182: 0.05139296284 | AO182: 0.0365890637 | AP182: 1.131293306
AD183: 180 | AE183: 0 | AF183: 0 | AG183: 0 | AH183: 0.3000000119 | AI183: 0.1000000015 | AJ183: 0.5 | AK183: 0.09999996424 | AL183: 0.9999999776 | AN183: 0.05689754619 | AO183: 0.0402880162 | AP183: 1.164056973
AD184: 181 | AE184: 0 | AF184: 0 | AG184: 0 | AH184: 0.3000000119 | AI184: 0.1000000015 | AJ184: 0.6000000238 | AK184: 0 | AL184: 1.000000037 | AN184: 0.06240213366 | AO184: 0.0448644422 | AP184: 1.168010368
AD185: 182 | AE185: 0 | AF185: 0 | AG185: 0 | AH185: 0.3000000119 | AI185: 0.200000003 | AJ185: 0 | AK185: 0.5 | AL185: 1.000000015 | AN185: 0.03356317041 | AO185: 0.03801551089 | AP185: 0.6198304288
AD186: 183 | AE186: 0 | AF186: 0 | AG186: 0 | AH186: 0.3000000119 | AI186: 0.200000003 | AJ186: 0.1000000015 | AK186: 0.3999999762 | AL186: 0.9999999925 | AN186: 0.03906775439 | AO186: 0.03708855063 | AP186: 0.7837392914
AD187: 184 | AE187: 0 | AF187: 0 | AG187: 0 | AH187: 0.3000000119 | AI187: 0.200000003 | AJ187: 0.200000003 | AK187: 0.3000000119 | AL187: 1.00000003 | AN187: 0.04457234001 | AO187: 0.0375668928 | AP187: 0.9202874507
AD188: 185 | AE188: 0 | AF188: 0 | AG188: 0 | AH188: 0.3000000119 | AI188: 0.200000003 | AJ188: 0.3000000119 | AK188: 0.1999999881 | AL188: 1.000000015 | AN188: 0.0500769246 | AO188: 0.039399378 | AP188: 1.017196886
AD189: 186 | AE189: 0 | AF189: 0 | AG189: 0 | AH189: 0.3000000119 | AI189: 0.200000003 | AJ189: 0.400000006 | AK189: 0.09999996424 | AL189: 0.9999999851 | AN189: 0.05558150796 | AO189: 0.0424108468 | AP189: 1.074760619
AD190: 187 | AE190: 0 | AF190: 0 | AG190: 0 | AH190: 0.3000000119 | AI190: 0.200000003 | AJ190: 0.5 | AK190: 0 | AL190: 1.000000015 | AN190: 0.06108609296 | AO190: 0.04637216777 | AP190: 1.101654191
AD191: 188 | AE191: 0 | AF191: 0 | AG191: 0 | AH191: 0.3000000119 | AI191: 0.3000000119 | AJ191: 0 | AK191: 0.3999999762 | AL191: 1 | AN191: 0.03775171605 | AO191: 0.04330893606 | AP191: 0.6407849875
AD192: 189 | AE192: 0 | AF192: 0 | AG192: 0 | AH192: 0.3000000119 | AI192: 0.3000000119 | AJ192: 0.1000000015 | AK192: 0.3000000119 | AL192: 1.000000037 | AN192: 0.04325630167 | AO192: 0.04328254983 | AP192: 0.7683535698
AD193: 190 | AE193: 0 | AF193: 0 | AG193: 0 | AH193: 0.3000000119 | AI193: 0.3000000119 | AJ193: 0.200000003 | AK193: 0.1999999881 | AL193: 1.000000015 | AN193: 0.04876088564 | AO193: 0.0444569774 | AP193: 0.871874066
AD194: 191 | AE194: 0 | AF194: 0 | AG194: 0 | AH194: 0.3000000119 | AI194: 0.3000000119 | AJ194: 0.3000000119 | AK194: 0.09999996424 | AL194: 1 | AN194: 0.05426547023 | AO194: 0.04674180225 | AP194: 0.9470210413
AD195: 192 | AE195: 0 | AF195: 0 | AG195: 0 | AH195: 0.3000000119 | AI195: 0.3000000119 | AJ195: 0.400000006 | AK195: 0 | AL195: 1.00000003 | AN195: 0.05977005524 | AO195: 0.04998497665 | AP195: 0.9957002798
AD196: 193 | AE196: 0 | AF196: 0 | AG196: 0 | AH196: 0.3000000119 | AI196: 0.400000006 | AJ196: 0 | AK196: 0.3000000119 | AL196: 1.00000003 | AN196: 0.0419402623 | AO196: 0.05045836791 | AP196: =(AN196-RFR)/AO196 -> 0.6330022872
AD197: 194 | AE197: 0 | AF197: 0 | AG197: 0 | AH197: 0.3000000119 | AI197: 0.400000006 | AJ197: 0.1000000015 | AK197: 0.1999999881 | AL197: =SUM(AE197:AK197) -> 1.000000007 | AN197: =AE197*$C$5+AF197*$C$6+AG197*$C$7+AH197*$C$8+AI197*$C$9+AJ197*$C$10+AK197*$C$11 -> 0.04744484627 | AO197: =SDP(7,$E$5:$K$11,AE197:AK197) -> 0.05109886825 | AP197: 0.7327920863 | AQ197: =IF(AP197>=0.9999*$AP$2,"Max. Sharpe","") -> 
AD198: 195 | AE198: 0 | AF198: 0 | AG198: 0 | AH198: 0.3000000119 | AI198: 0.400000006 | AJ198: 0.200000003 | AK198: 0.09999996424 | AL198: 0.9999999851 | AN198: 0.05294943025 | AO198: 0.05273966491 | AP198: 0.8143667639
AD199: 196 | AE199: 0 | AF199: 0 | AG199: 0 | AH199: 0.3000000119 | AI199: 0.400000006 | AJ199: 0.3000000119 | AK199: 0 | AL199: 1.00000003 | AN199: 0.05845401648 | AO199: 0.05529175699 | AP199: 0.8763334559
AD200: 197 | AE200: 0 | AF200: 0 | AG200: 0 | AH200: 0.3000000119 | AI200: 0.5 | AJ200: 0 | AK200: 0.1999999881 | AL200: 1 | AN200: 0.0461288069 | AO200: 0.05879053473 | AP200: 0.6145344155
... 2050 more rows

Sheet Mon. ROR Histogram
E2: ROR histogram from real multi-strategy trading (before fees)
A5: Bin | B5: Frequency | C5: Cumulative %
A6: -0.02 | B6: 3 | C6: 0.02027027027
A7: -0.01 | B7: 13 | C7: 0.1081081081
A8: 0 | B8: 34 | C8: 0.3378378378
A9: 0.01 | B9: 57 | C9: 0.722972973
A10: 0.02 | B10: 31 | C10: 0.9324324324
A11: 0.03 | B11: 7 | C11: 0.9797297297
A12: More | B12: 3 | C12: 1
E31: * EFT was replaced with V4 on June 3, 2013
E32: ** V2 was replaced with a newer version on December 1, 2015

Sheet 1x-2x
A1: Nonstandard - Overleveraged Portfolios (Net of Fees)
D4: Over-Leverage
D5: 1 | E5: 1.5 | F5: 2
A6: Month # | B6: Month | C6: Comb. ROR (Before Fees) | D6: VAMI 1x | E6: VAMI 1.5x | F6: VAMI 2x
A7: ='MultiStrategy-Monthly'!A7 -> 0 | B7: ='MultiStrategy-Monthly'!B7 -> 2012-02-12 | D7: 1000 | E7: 1000 | F7: 1000
A8: ='MultiStrategy-Monthly'!A8 -> 1 | B8: ='MultiStrategy-Monthly'!B8 -> 2012-03-12 | C8: ='MultiStrategy-Monthly'!P8 -> 0.00672252768 | D8: =D7*(1+$D$5*C8) -> 1006.722528 | E8: =E7*(1+$E$5*C8) -> 1010.083792 | F8: =F7*(1+$F$5*C8) -> 1013.445055
A9: ='MultiStrategy-Monthly'!A9 -> 2 | B9: ='MultiStrategy-Monthly'!B9 -> 2012-04-12 | C9: ='MultiStrategy-Monthly'!P9 -> 0.00847275264 | D9: =D8*(1+$D$5*C9) -> 1015.252239 | E9: =E8*(1+$E$5*C9) -> 1022.921077 | F9: =F8*(1+$F$5*C9) -> 1030.618394
A10: ='MultiStrategy-Monthly'!A10 -> 3 | B10: ='MultiStrategy-Monthly'!B10 -> 2012-05-12 | C10: ='MultiStrategy-Monthly'!P10 -> -0.0053634636 | D10: =D9*(1+$D$5*C10) -> 1009.80697 | E10: =E9*(1+$E$5*C10) -> 1014.691477 | F10: =F9*(1+$F$5*C10) -> 1019.563025
A11: ='MultiStrategy-Monthly'!A11 -> 4 | B11: ='MultiStrategy-Monthly'!B11 -> 2012-06-12 | C11: ='MultiStrategy-Monthly'!P11 -> 0.02647056562 | D11: =D10*(1+$D$5*C11) -> 1036.537132 | E11: =E10*(1+$E$5*C11) -> 1054.980663 | F11: =F10*(1+$F$5*C11) -> 1073.539845
A12: ='MultiStrategy-Monthly'!A12 -> 5 | B12: ='MultiStrategy-Monthly'!B12 -> 2012-07-12 | C12: ='MultiStrategy-Monthly'!P12 -> 0.0066073392 | D12: 1043.385884 | E12: 1065.436585 | F12: 1087.726329
A13: ='MultiStrategy-Monthly'!A13 -> 6 | B13: ='MultiStrategy-Monthly'!B13 -> 2012-08-12 | C13: ='MultiStrategy-Monthly'!P13 -> 0.01338106176 | D13: 1057.347495 | E13: 1086.821594 | F13: 1116.836196
A14: ='MultiStrategy-Monthly'!A14 -> 7 | B14: ='MultiStrategy-Monthly'!B14 -> 2012-09-12 | C14: ='MultiStrategy-Monthly'!P14 -> 0.001668 | D14: 1059.111151 | E14: 1089.540822 | F14: 1120.561961
A15: ='MultiStrategy-Monthly'!A15 -> 8 | B15: ='MultiStrategy-Monthly'!B15 -> 2012-10-12 | C15: ='MultiStrategy-Monthly'!P15 -> -0.002817 | D15: 1056.127635 | E15: 1084.936967 | F15: 1114.248715
A16: ='MultiStrategy-Monthly'!A16 -> 9 | B16: ='MultiStrategy-Monthly'!B16 -> 2012-11-12 | C16: ='MultiStrategy-Monthly'!P16 -> -0.010305 | D16: 1045.244239 | E16: 1068.166554 | F16: 1091.284049
A17: ='MultiStrategy-Monthly'!A17 -> 10 | B17: ='MultiStrategy-Monthly'!B17 -> 2012-12-12 | C17: ='MultiStrategy-Monthly'!P17 -> -0.006231 | D17: 1038.731323 | E17: 1058.182935 | F17: 1077.684467
A18: ='MultiStrategy-Monthly'!A18 -> 11 | B18: ='MultiStrategy-Monthly'!B18 -> 2013-01-12 | C18: ='MultiStrategy-Monthly'!P18 -> -0.000597 | D18: 1038.1112 | E18: 1057.235333 | F18: 1076.397712
A19: ='MultiStrategy-Monthly'!A19 -> 12 | B19: ='MultiStrategy-Monthly'!B19 -> 2013-02-12 | C19: ='MultiStrategy-Monthly'!P19 -> 0.0165768 | D19: 1055.319762 | E19: 1083.523701 | F19: 1112.084171
A20: ='MultiStrategy-Monthly'!A20 -> 13 | B20: ='MultiStrategy-Monthly'!B20 -> 2013-03-12 | C20: ='MultiStrategy-Monthly'!P20 -> -0.0119832 | D20: 1042.673654 | E20: 1064.047579 | F20: 1085.431517
A21: ='MultiStrategy-Monthly'!A21 -> 14 | B21: ='MultiStrategy-Monthly'!B21 -> 2013-04-12 | C21: ='MultiStrategy-Monthly'!P21 -> 0.0156168 | D21: 1058.95688 | E21: 1088.973106 | F21: 1119.333451
A22: ='MultiStrategy-Monthly'!A22 -> 15 | B22: ='MultiStrategy-Monthly'!B22 -> 2013-05-12 | C22: ='MultiStrategy-Monthly'!P22 -> -0.0145464 | D22: 1043.55287 | E22: 1065.212149 | F22: 1086.768907
A23: ='MultiStrategy-Monthly'!A23 -> 16 | B23: ='MultiStrategy-Monthly'!B23 -> 2013-06-12 | C23: ='MultiStrategy-Monthly'!P23 -> -0.0071328 | D23: 1036.109416 | E23: 1053.815231 | F23: 1071.265496
A24: ='MultiStrategy-Monthly'!A24 -> 17 | B24: ='MultiStrategy-Monthly'!B24 -> 2013-07-12 | C24: ='MultiStrategy-Monthly'!P24 -> 0.02497790108 | D24: 1061.989254 | E24: 1093.29837 | F24: 1124.781423
A25: ='MultiStrategy-Monthly'!A25 -> 18 | B25: ='MultiStrategy-Monthly'!B25 -> 2013-08-12 | C25: ='MultiStrategy-Monthly'!P25 -> -0.0016143228 | D25: 1060.274861 | E25: 1090.650965 | F25: 1121.149903
A26: ='MultiStrategy-Monthly'!A26 -> 19 | B26: ='MultiStrategy-Monthly'!B26 -> 2013-09-12 | C26: ='MultiStrategy-Monthly'!P26 -> 0.009185811551 | D26: 1070.014346 | E26: 1105.678736 | F26: 1141.747246
A27: ='MultiStrategy-Monthly'!A27 -> 20 | B27: ='MultiStrategy-Monthly'!B27 -> 2013-10-12 | C27: ='MultiStrategy-Monthly'!P27 -> 0.00781116192 | D27: 1078.372401 | E27: 1118.63369 | F27: 1159.583991
A28: ='MultiStrategy-Monthly'!A28 -> 21 | B28: ='MultiStrategy-Monthly'!B28 -> 2013-11-12 | C28: ='MultiStrategy-Monthly'!P28 -> 9.60192e-05 | D28: 1078.475946 | E28: 1118.794805 | F28: 1159.806676
A29: ='MultiStrategy-Monthly'!A29 -> 22 | B29: ='MultiStrategy-Monthly'!B29 -> 2013-12-12 | C29: ='MultiStrategy-Monthly'!P29 -> 0.0013362672 | D29: 1079.917078 | E29: 1121.037318 | F29: 1162.906299
A30: ='MultiStrategy-Monthly'!A30 -> 23 | B30: ='MultiStrategy-Monthly'!B30 -> 2014-01-12 | C30: ='MultiStrategy-Monthly'!P30 -> 0.00417043392 | D30: 1084.4208 | E30: 1128.050137 | F30: 1172.605947
A31: ='MultiStrategy-Monthly'!A31 -> 24 | B31: ='MultiStrategy-Monthly'!B31 -> 2014-02-12 | C31: ='MultiStrategy-Monthly'!P31 -> 0.01487486112 | D31: 1100.551409 | E31: 1153.21952 | F31: 1207.490648
A32: ='MultiStrategy-Monthly'!A32 -> 25 | B32: ='MultiStrategy-Monthly'!B32 -> 2014-03-12 | C32: ='MultiStrategy-Monthly'!P32 -> 0.00087660576 | D32: 1101.516159 | E32: 1154.735899 | F32: 1209.607635
A33: ='MultiStrategy-Monthly'!A33 -> 26 | B33: ='MultiStrategy-Monthly'!B33 -> 2014-04-12 | C33: ='MultiStrategy-Monthly'!P33 -> 0.00315248832 | D33: 1104.988676 | E33: 1160.196336 | F33: 1217.234183
A34: ='MultiStrategy-Monthly'!A34 -> 27 | B34: ='MultiStrategy-Monthly'!B34 -> 2014-05-12 | C34: ='MultiStrategy-Monthly'!P34 -> 0.00610743168 | D34: 1111.737319 | E34: 1170.825065 | F34: 1232.102532
A35: ='MultiStrategy-Monthly'!A35 -> 28 | B35: ='MultiStrategy-Monthly'!B35 -> 2014-06-12 | C35: ='MultiStrategy-Monthly'!P35 -> 0.00209068416 | D35: 1114.06161 | E35: 1174.496804 | F35: 1237.254406
A36: ='MultiStrategy-Monthly'!A36 -> 29 | B36: ='MultiStrategy-Monthly'!B36 -> 2014-07-12 | C36: ='MultiStrategy-Monthly'!P36 -> -0.01127481 | D36: 1101.500777 | E36: 1154.633461 | F36: 1209.35479
A37: ='MultiStrategy-Monthly'!A37 -> 30 | B37: ='MultiStrategy-Monthly'!B37 -> 2014-08-12 | C37: ='MultiStrategy-Monthly'!P37 -> 0.0039045996 | D37: =D36*(1+$D$5*C37) -> 1105.801697 | E37: =E36*(1+$E$5*C37) -> 1161.396033 | F37: =F36*(1+$F$5*C37) -> 1218.798882
A38: ='MultiStrategy-Monthly'!A38 -> 31 | B38: ='MultiStrategy-Monthly'!B38 -> 2014-09-12 | C38: ='MultiStrategy-Monthly'!P38 -> -0.0152600052 | D38: 1088.927157 | E38: 1134.811669 | F38: 1181.601128
A39: ='MultiStrategy-Monthly'!A39 -> 32 | B39: ='MultiStrategy-Monthly'!B39 -> 2014-10-12 | C39: ='MultiStrategy-Monthly'!P39 -> 0.0068266188 | D39: 1096.360848 | E39: 1146.432059 | F39: 1197.733808
A40: ='MultiStrategy-Monthly'!A40 -> 33 | B40: ='MultiStrategy-Monthly'!B40 -> 2014-11-12 | C40: ='MultiStrategy-Monthly'!P40 -> 0.00925992 | D40: 1106.513061 | E40: 1162.355863 | F40: 1219.915647
A41: ='MultiStrategy-Monthly'!A41 -> 34 | B41: ='MultiStrategy-Monthly'!B41 -> 2014-12-12 | C41: ='MultiStrategy-Monthly'!P41 -> -0.0170948412 | D41: 1087.597396 | E41: 1132.550429 | F41: 1178.207118
A42: ='MultiStrategy-Monthly'!A42 -> 35 | B42: ='MultiStrategy-Monthly'!B42 -> 2015-01-15 | C42: ='MultiStrategy-Monthly'!P42 -> 0.0002263536 | D42: 1087.843578 | E42: 1132.934965 | F42: 1178.740501
A43: ='MultiStrategy-Monthly'!A43 -> 36 | B43: ='MultiStrategy-Monthly'!B43 -> 2015-02-18 | C43: ='MultiStrategy-Monthly'!P43 -> 0.03098301502 | D43: 1121.548252 | E43: 1185.587576 | F43: 1251.782371
A44: ='MultiStrategy-Monthly'!A44 -> 37 | B44: ='MultiStrategy-Monthly'!B44 -> 2015-03-24 | C44: ='MultiStrategy-Monthly'!P44 -> 0.00587010336 | D44: 1128.131856 | E44: 1196.026859 | F44: 1266.478554
A45: ='MultiStrategy-Monthly'!A45 -> 38 | B45: ='MultiStrategy-Monthly'!B45 -> 2015-04-15 | C45: ='MultiStrategy-Monthly'!P45 -> 0.00711847776 | D45: 1136.162437 | E45: 1208.797694 | F45: 1284.509353
A46: ='MultiStrategy-Monthly'!A46 -> 39 | B46: ='MultiStrategy-Monthly'!B46 -> 2015-05-15 | C46: ='MultiStrategy-Monthly'!P46 -> 0.0046093824 | D46: 1141.399445 | E46: 1217.155411 | F46: 1296.350943
A47: ='MultiStrategy-Monthly'!A47 -> 40 | B47: ='MultiStrategy-Monthly'!B47 -> 2015-06-15 | C47: ='MultiStrategy-Monthly'!P47 -> -0.0013701252 | D47: 1139.835584 | E47: 1214.653928 | F47: 1292.798617
A48: ='MultiStrategy-Monthly'!A48 -> 41 | B48: ='MultiStrategy-Monthly'!B48 -> 2015-07-15 | C48: ='MultiStrategy-Monthly'!P48 -> 0.01539688012 | D48: 1157.385496 | E48: 1242.706749 | F48: 1332.608747
A49: ='MultiStrategy-Monthly'!A49 -> 42 | B49: ='MultiStrategy-Monthly'!B49 -> 2015-08-15 | C49: ='MultiStrategy-Monthly'!P49 -> -0.0346269564 | D49: 1117.308759 | E49: 1178.16002 | F49: 1240.320377
A50: ='MultiStrategy-Monthly'!A50 -> 43 | B50: ='MultiStrategy-Monthly'!B50 -> 2015-09-15 | C50: ='MultiStrategy-Monthly'!P50 -> 0.0049420536 | D50: 1122.830559 | E50: 1186.893815 | F50: 1252.579837
A51: ='MultiStrategy-Monthly'!A51 -> 44 | B51: ='MultiStrategy-Monthly'!B51 -> 2015-10-15 | C51: ='MultiStrategy-Monthly'!P51 -> 0.0267011508 | D51: 1152.811427 | E51: 1234.430962 | F51: 1319.470483
A52: ='MultiStrategy-Monthly'!A52 -> 45 | B52: ='MultiStrategy-Monthly'!B52 -> 2015-11-15 | C52: ='MultiStrategy-Monthly'!P52 -> -0.005255862 | D52: 1146.752409 | E52: 1224.698963 | F52: 1305.600574
A53: ='MultiStrategy-Monthly'!A53 -> 46 | B53: ='MultiStrategy-Monthly'!B53 -> 2015-12-15 | C53: ='MultiStrategy-Monthly'!P53 -> -0.0138624432 | D53: 1130.855619 | E53: 1199.232984 | F53: 1269.402946
A54: ='MultiStrategy-Monthly'!A54 -> 47 | B54: ='MultiStrategy-Monthly'!B54 -> 2016-01-15 | C54: ='MultiStrategy-Monthly'!P54 -> -0.0065042364 | D54: 1123.500267 | E54: 1187.532841 | F54: 1252.889952
A55: ='MultiStrategy-Monthly'!A55 -> 48 | B55: ='MultiStrategy-Monthly'!B55 -> 2016-02-15 | C55: ='MultiStrategy-Monthly'!P55 -> 0.01298961 | D55: 1138.094097 | E55: 1210.671224 | F55: 1285.439056
A56: ='MultiStrategy-Monthly'!A56 -> 49 | B56: ='MultiStrategy-Monthly'!B56 -> 2016-03-15 | C56: ='MultiStrategy-Monthly'!P56 -> 0.03161209643 | D56: 1174.071638 | E56: 1268.079007 | F56: 1366.709903
A57: ='MultiStrategy-Monthly'!A57 -> 50 | B57: ='MultiStrategy-Monthly'!B57 -> 2016-04-15 | C57: ='MultiStrategy-Monthly'!P57 -> 0.00118389792 | D57: 1175.461618 | E57: 1270.330921 | F57: 1369.945993
A58: ='MultiStrategy-Monthly'!A58 -> 51 | B58: ='MultiStrategy-Monthly'!B58 -> 2016-05-15 | C58: ='MultiStrategy-Monthly'!P58 -> 0.01397493408 | D58: 1191.888617 | E58: 1296.960108 | F58: 1408.235803
A59: ='MultiStrategy-Monthly'!A59 -> 52 | B59: ='MultiStrategy-Monthly'!B59 -> 2016-06-15 | C59: ='MultiStrategy-Monthly'!P59 -> 0.00760136544 | D59: 1200.948598 | E59: 1311.748109 | F59: 1429.644833
A60: ='MultiStrategy-Monthly'!A60 -> 53 | B60: ='MultiStrategy-Monthly'!B60 -> 2016-07-15 | C60: ='MultiStrategy-Monthly'!P60 -> 0.003631549288 | D60: 1205.309902 | E60: 1318.893626 | F60: 1440.028484
A61: ='MultiStrategy-Monthly'!A61 -> 54 | B61: ='MultiStrategy-Monthly'!B61 -> 2016-08-15 | C61: ='MultiStrategy-Monthly'!P61 -> 0.002051217378 | D61: 1207.782255 | E61: 1322.951633 | F61: 1445.936107
A62: ='MultiStrategy-Monthly'!A62 -> 55 | B62: ='MultiStrategy-Monthly'!B62 -> 2016-09-15 | C62: ='MultiStrategy-Monthly'!P62 -> -0.00375746976 | D62: 1203.244049 | E62: 1315.495206 | F62: 1435.069985
A63: ='MultiStrategy-Monthly'!A63 -> 56 | B63: ='MultiStrategy-Monthly'!B63 -> 2016-10-15 | C63: ='MultiStrategy-Monthly'!P63 -> -0.01329085749 | D63: =D62*(1+$D$5*C63) -> 1187.251904 | E63: =E62*(1+$E$5*C63) -> 1289.269117 | F63: =F62*(1+$F$5*C63) -> 1396.923363
A64: ='MultiStrategy-Monthly'!A64 -> 57 | B64: ='MultiStrategy-Monthly'!B64 -> 2016-11-30 | C64: ='MultiStrategy-Monthly'!P64 -> 0.01947208958 | D64: 1210.37018 | E64: 1326.926263 | F64: 1451.325397
A65: ='MultiStrategy-Monthly'!A65 -> 58 | B65: ='MultiStrategy-Monthly'!B65 -> 2016-12-16 | C65: ='MultiStrategy-Monthly'!P65 -> 0.01279566612 | D65: 1225.857672 | E65: 1352.394621 | F65: 1488.466747
A66: ='MultiStrategy-Monthly'!A66 -> 59 | B66: ='MultiStrategy-Monthly'!B66 -> 2017-01-01 | C66: ='MultiStrategy-Monthly'!P66 -> 0.01070995488 | D66: 1238.986553 | E66: 1374.120749 | F66: 1520.349571
A67: ='MultiStrategy-Monthly'!A67 -> 60 | B67: ='MultiStrategy-Monthly'!B67 -> 2017-02-17 | C67: ='MultiStrategy-Monthly'!P67 -> 0.003525217248 | D67: 1243.354249 | E67: 1381.386861 | F67: 1531.068696
A68: ='MultiStrategy-Monthly'!A68 -> 61 | B68: ='MultiStrategy-Monthly'!B68 -> 2017-03-17 | C68: ='MultiStrategy-Monthly'!P68 -> 0.01067506442 | D68: 1256.627136 | E68: 1403.506451 | F68: 1563.75721
A69: ='MultiStrategy-Monthly'!A69 -> 62 | B69: ='MultiStrategy-Monthly'!B69 -> 2017-04-17 | C69: ='MultiStrategy-Monthly'!P69 -> -0.00163689092 | D69: 1254.570175 | E69: 1400.060371 | F69: 1558.63781
A70: ='MultiStrategy-Monthly'!A70 -> 63 | B70: ='MultiStrategy-Monthly'!B70 -> 2017-05-17 | C70: ='MultiStrategy-Monthly'!P70 -> 0.01107776423 | D70: 1268.468007 | E70: 1423.324679 | F70: 1593.170254
A71: ='MultiStrategy-Monthly'!A71 -> 64 | B71: ='MultiStrategy-Monthly'!B71 -> 2017-06-17 | C71: ='MultiStrategy-Monthly'!P71 -> -0.0024575942 | D71: 1265.350628 | E71: 1418.077747 | F71: 1585.339522
A72: ='MultiStrategy-Monthly'!A72 -> 65 | B72: ='MultiStrategy-Monthly'!B72 -> 2017-07-17 | C72: ='MultiStrategy-Monthly'!P72 -> -0.00500515824 | D72: 1259.017347 | E72: 1407.431192 | F72: 1569.469772
A73: ='MultiStrategy-Monthly'!A73 -> 66 | B73: ='MultiStrategy-Monthly'!B73 -> 2017-08-17 | C73: ='MultiStrategy-Monthly'!P73 -> -0.00013924176 | D73: 1258.84204 | E73: 1407.137232 | F73: 1569.0327
A74: ='MultiStrategy-Monthly'!A74 -> 67 | B74: ='MultiStrategy-Monthly'!B74 -> 2017-09-17 | C74: ='MultiStrategy-Monthly'!P74 -> 0.01501402458 | D74: 1277.742325 | E74: 1438.827421 | F74: 1616.147691
A75: ='MultiStrategy-Monthly'!A75 -> 68 | B75: ='MultiStrategy-Monthly'!B75 -> 2017-10-17 | C75: ='MultiStrategy-Monthly'!P75 -> 0.003275176544 | D75: 1281.927157 | E75: 1445.896042 | F75: 1626.734029
A76: ='MultiStrategy-Monthly'!A76 -> 69 | B76: ='MultiStrategy-Monthly'!B76 -> 2017-11-17 | C76: ='MultiStrategy-Monthly'!P76 -> 0.003528006656 | D76: 1286.449804 | E76: 1453.547738 | F76: 1638.212286
A77: ='MultiStrategy-Monthly'!A77 -> 70 | B77: ='MultiStrategy-Monthly'!B77 -> 2017-12-17 | C77: ='MultiStrategy-Monthly'!P77 -> 0.01011169546 | D77: 1299.457993 | E77: 1475.594487 | F77: 1671.342494
A78: ='MultiStrategy-Monthly'!A78 -> 71 | B78: ='MultiStrategy-Monthly'!B78 -> 2018-01-17 | C78: ='MultiStrategy-Monthly'!P78 -> -0.0075562662 | D78: 1289.638942 | E78: 1458.869509 | F78: 1646.084276
A79: ='MultiStrategy-Monthly'!A79 -> 72 | B79: ='MultiStrategy-Monthly'!B79 -> 2018-02-17 | C79: ='MultiStrategy-Monthly'!P79 -> -0.00383189208 | D79: 1284.697185 | E79: 1450.484164 | F79: 1633.469042
A80: ='MultiStrategy-Monthly'!A80 -> 73 | B80: ='MultiStrategy-Monthly'!B80 -> 2018-03-17 | C80: ='MultiStrategy-Monthly'!P80 -> -0.0092950734 | D80: 1272.755831 | E80: 1430.260628 | F80: 1603.102612
A81: ='MultiStrategy-Monthly'!A81 -> 74 | B81: ='MultiStrategy-Monthly'!B81 -> 2018-04-17 | C81: ='MultiStrategy-Monthly'!P81 -> 0.0018671314 | D81: =D80*(1+$D$5*C81) -> 1275.132233 | E81: =E80*(1+$E$5*C81) -> 1434.266355 | F81: =F80*(1+$F$5*C81) -> 1609.089019
A82: ='MultiStrategy-Monthly'!A82 -> 75 | B82: ='MultiStrategy-Monthly'!B82 -> 2018-05-17 | C82: ='MultiStrategy-Monthly'!P82 -> 0.01362202824 | D82: =D81*(1+$D$5*C82) -> 1292.50212 | E82: =E81*(1+$E$5*C82) -> 1463.57278 | F82: =F81*(1+$F$5*C82) -> 1652.927131
A83: ='MultiStrategy-Monthly'!A83 -> 76 | B83: ='MultiStrategy-Monthly'!B83 -> 2018-06-17 | C83: ='MultiStrategy-Monthly'!P83 -> -0.001970591 | D83: =D82*(1+$D$5*C83) -> 1289.955127 | E83: =E82*(1+$E$5*C83) -> 1459.246625 | F83: =F82*(1+$F$5*C83) -> 1646.412644
A84: ='MultiStrategy-Monthly'!A84 -> 77 | B84: ='MultiStrategy-Monthly'!B84 -> 2018-07-17 | C84: ='MultiStrategy-Monthly'!P84 -> 0.01684122312 | D84: =D83*(1+$D$5*C84) -> 1311.679549 | E84: =E83*(1+$E$5*C84) -> 1496.109872 | F84: =F83*(1+$F$5*C84) -> 1701.86785
A85: ='MultiStrategy-Monthly'!A85 -> 78 | B85: ='MultiStrategy-Monthly'!B85 -> 2018-08-17 | C85: ='MultiStrategy-Monthly'!P85 -> 0.00095068512 | D85: =D84*(1+$D$5*C85) -> 1312.926543 | E85: =E84*(1+$E$5*C85) -> 1498.243367 | F85: =F84*(1+$F$5*C85) -> 1705.103731
A86: ='MultiStrategy-Monthly'!A86 -> 79 | B86: ='MultiStrategy-Monthly'!B86 -> 2018-09-17 | C86: ='MultiStrategy-Monthly'!P86 -> 0.00725840544 | D86: =D85*(1+$D$5*C86) -> 1322.456297 | E86: =E85*(1+$E$5*C86) -> 1514.555653 | F86: =F85*(1+$F$5*C86) -> 1729.856399
A87: ='MultiStrategy-Monthly'!A87 -> 80 | B87: ='MultiStrategy-Monthly'!B87 -> 2018-10-17 | C87: ='MultiStrategy-Monthly'!P87 -> -0.0115680408 | D87: =D86*(1+$D$5*C87) -> 1307.158068 | E87: =E86*(1+$E$5*C87) -> 1488.274991 | F87: =F86*(1+$F$5*C87) -> 1689.8343
A88: ='MultiStrategy-Monthly'!A88 -> 81 | B88: ='MultiStrategy-Monthly'!B88 -> 2018-11-17 | C88: ='MultiStrategy-Monthly'!P88 -> -0.0094776996 | D88: =D87*(1+$D$5*C88) -> 1294.769217 | E88: =E87*(1+$E$5*C88) -> 1467.116856 | F88: =F87*(1+$F$5*C88) -> 1657.802816
A89: ='MultiStrategy-Monthly'!A89 -> 82 | B89: ='MultiStrategy-Monthly'!B89 -> 2018-12-17 | C89: ='MultiStrategy-Monthly'!P89 -> -0.0088500828 | D89: =D88*(1+$D$5*C89) -> 1283.310402 | E89: =E88*(1+$E$5*C89) -> 1447.640697 | F89: =F88*(1+$F$5*C89) -> 1628.459432
A90: ='MultiStrategy-Monthly'!A90 -> 83 | B90: ='MultiStrategy-Monthly'!B90 -> 2019-01-17 | C90: ='MultiStrategy-Monthly'!P90 -> 0.0259723608 | D90: =D89*(1+$D$5*C90) -> 1316.641003 | E90: =E89*(1+$E$5*C90) -> 1504.038667 | F90: =F89*(1+$F$5*C90) -> 1713.049304
A91: ='MultiStrategy-Monthly'!A91 -> 84 | B91: ='MultiStrategy-Monthly'!B91 -> 2019-02-17 | C91: ='MultiStrategy-Monthly'!P91 -> 0.01153115656 | D91: =D90*(1+$D$5*C91) -> 1331.823396 | E91: =E90*(1+$E$5*C91) -> 1530.053625 | F91: =F90*(1+$F$5*C91) -> 1752.556183
A92: ='MultiStrategy-Monthly'!A92 -> 85 | B92: ='MultiStrategy-Monthly'!B92 -> 2019-03-17 | C92: ='MultiStrategy-Monthly'!P92 -> 0.01550316384 | D92: =D91*(1+$D$5*C92) -> 1352.470873 | E92: =E91*(1+$E$5*C92) -> 1565.634633 | F92: =F91*(1+$F$5*C92) -> 1806.896515
A93: ='MultiStrategy-Monthly'!A93 -> 86 | B93: ='MultiStrategy-Monthly'!B93 -> 2019-04-17 | C93: ='MultiStrategy-Monthly'!P93 -> 0.00586598784 | D93: =D92*(1+$D$5*C93) -> 1360.40445 | E93: =E92*(1+$E$5*C93) -> 1579.410624 | F93: =F92*(1+$F$5*C93) -> 1828.094981
A94: ='MultiStrategy-Monthly'!A94 -> 87 | B94: ='MultiStrategy-Monthly'!B94 -> 2019-05-17 | C94: ='MultiStrategy-Monthly'!P94 -> -0.0109112724 | D94: =D93*(1+$D$5*C94) -> 1345.560707 | E94: =E93*(1+$E$5*C94) -> 1553.560555 | F94: =F93*(1+$F$5*C94) -> 1788.201296
A95: ='MultiStrategy-Monthly'!A95 -> 88 | B95: ='MultiStrategy-Monthly'!B95 -> 2019-06-17 | C95: ='MultiStrategy-Monthly'!P95 -> 0.01316902895 | D95: =D94*(1+$D$5*C95) -> 1363.280435 | E95: =E94*(1+$E$5*C95) -> 1584.24888 | F95: =F94*(1+$F$5*C95) -> 1835.299045
A96: ='MultiStrategy-Monthly'!A96 -> 89 | B96: ='MultiStrategy-Monthly'!B96 -> 2019-07-17 | C96: ='MultiStrategy-Monthly'!P96 -> 0.005255884864 | D96: =D95*(1+$D$5*C96) -> 1370.44568 | E96: =E95*(1+$E$5*C96) -> 1596.738825 | F96: =F95*(1+$F$5*C96) -> 1854.591286
A97: ='MultiStrategy-Monthly'!A97 -> 90 | B97: ='MultiStrategy-Monthly'!B97 -> 2019-08-17 | C97: ='MultiStrategy-Monthly'!P97 -> -0.00065968356 | D97: =D96*(1+$D$5*C97) -> 1369.541619 | E97: =E96*(1+$E$5*C97) -> 1595.158811 | F97: =F96*(1+$F$5*C97) -> 1852.144399
A98: ='MultiStrategy-Monthly'!A98 -> 91 | B98: ='MultiStrategy-Monthly'!B98 -> 2019-09-17 | C98: ='MultiStrategy-Monthly'!P98 -> 0.01047534957 | D98: =D97*(1+$D$5*C98) -> 1383.888046 | E98: =E97*(1+$E$5*C98) -> 1620.223581 | F98: =F97*(1+$F$5*C98) -> 1890.948119
A99: ='MultiStrategy-Monthly'!A99 -> 92 | B99: ='MultiStrategy-Monthly'!B99 -> 2019-10-17 | C99: ='MultiStrategy-Monthly'!P99 -> 0.01228354682 | D99: =D98*(1+$D$5*C99) -> 1400.8871 | E99: =E98*(1+$E$5*C99) -> 1650.076719 | F99: =F98*(1+$F$5*C99) -> 1937.403219
A100: ='MultiStrategy-Monthly'!A100 -> 93 | B100: ='MultiStrategy-Monthly'!B100 -> 2019-11-17 | C100: ='MultiStrategy-Monthly'!P100 -> 0.007026061472 | D100: =D99*(1+$D$5*C100) -> 1410.729819 | E100: =E99*(1+$E$5*C100) -> 1667.46703 | F100: =F99*(1+$F$5*C100) -> 1964.627847
A101: ='MultiStrategy-Monthly'!A101 -> 94 | B101: ='MultiStrategy-Monthly'!B101 -> 2019-12-17 | C101: ='MultiStrategy-Monthly'!P101 -> 0.003529607136 | D101: =D100*(1+$D$5*C101) -> 1415.709141 | E101: =E100*(1+$E$5*C101) -> 1676.295285 | F101: =F100*(1+$F$5*C101) -> 1978.496576
A102: ='MultiStrategy-Monthly'!A102 -> 95 | B102: ='MultiStrategy-Monthly'!B102 -> 2020-01-17 | C102: ='MultiStrategy-Monthly'!P102 -> -0.00542042564 | D102: =D101*(1+$D$5*C102) -> 1408.035395 | E102: =E101*(1+$E$5*C102) -> 1662.665934 | F102: =F101*(1+$F$5*C102) -> 1957.047989
A103: ='MultiStrategy-Monthly'!A103 -> 96 | B103: ='MultiStrategy-Monthly'!B103 -> 2020-02-17 | C103: ='MultiStrategy-Monthly'!P103 -> 0.0013801282 | D103: =D102*(1+$D$5*C103) -> 1409.978664 | E103: =E102*(1+$E$5*C103) -> 1666.107972 | F103: =F102*(1+$F$5*C103) -> 1962.449943
A104: ='MultiStrategy-Monthly'!A104 -> 97 | B104: ='MultiStrategy-Monthly'!B104 -> 2020-03-17 | C104: ='MultiStrategy-Monthly'!P104 -> -0.05809827598 | D104: =D103*(1+$D$5*C104) -> 1328.061335 | E104: =E103*(1+$E$5*C104) -> 1520.910971 | F104: =F103*(1+$F$5*C104) -> 1734.420026
A105: ='MultiStrategy-Monthly'!A105 -> 98 | B105: ='MultiStrategy-Monthly'!B105 -> 2020-04-17 | C105: ='MultiStrategy-Monthly'!P105 -> 0.00233790648 | D105: =D104*(1+$D$5*C105) -> 1331.166218 | E105: =E104*(1+$E$5*C105) -> 1526.244593 | F105: =F104*(1+$F$5*C105) -> 1742.52985
A106: ='MultiStrategy-Monthly'!A106 -> 99 | B106: ='MultiStrategy-Monthly'!B106 -> 2020-05-17 | C106: ='MultiStrategy-Monthly'!P106 -> 0.000399984 | D106: =D105*(1+$D$5*C106) -> 1331.698663 | E106: =E105*(1+$E$5*C106) -> 1527.160303 | F106: =F105*(1+$F$5*C106) -> 1743.923818
A107: ='MultiStrategy-Monthly'!A107 -> 100 | B107: ='MultiStrategy-Monthly'!B107 -> 2020-06-17 | C107: ='MultiStrategy-Monthly'!P107 -> -0.00176392944 | D107: =D106*(1+$D$5*C107) -> 1329.34964 | E107: =E106*(1+$E$5*C107) -> 1523.119598 | F107: =F106*(1+$F$5*C107) -> 1737.771501
A108: ='MultiStrategy-Monthly'!A108 -> 101 | B108: ='MultiStrategy-Monthly'!B108 -> 2020-07-17 | C108: ='MultiStrategy-Monthly'!P108 -> 0.00470781168 | D108: =D107*(1+$D$5*C108) -> 1335.607968 | E108: =E107*(1+$E$5*C108) -> 1533.875438 | F108: =F107*(1+$F$5*C108) -> 1754.133703
A109: ='MultiStrategy-Monthly'!A109 -> 102 | B109: ='MultiStrategy-Monthly'!B109 -> 2020-08-17 | C109: ='MultiStrategy-Monthly'!P109 -> -0.00461781528 | D109: =D108*(1+$D$5*C109) -> 1329.440377 | E109: =E108*(1+$E$5*C109) -> 1523.250708 | F109: =F108*(1+$F$5*C109) -> 1737.933172
A110: ='MultiStrategy-Monthly'!A110 -> 103 | B110: ='MultiStrategy-Monthly'!B110 -> 2020-09-17 | C110: ='MultiStrategy-Monthly'!P110 -> 0.01754729808 | D110: =D109*(1+$D$5*C110) -> 1352.768464 | E110: =E109*(1+$E$5*C110) -> 1563.34411 | F110: =F109*(1+$F$5*C110) -> 1798.925235
A111: ='MultiStrategy-Monthly'!A111 -> 104 | B111: ='MultiStrategy-Monthly'!B111 -> 2020-10-17 | C111: ='MultiStrategy-Monthly'!P111 -> 0.00301387944 | D111: =D110*(1+$D$5*C111) -> 1356.845545 | E111: =E110*(1+$E$5*C111) -> 1570.411706 | F111: =F110*(1+$F$5*C111) -> 1809.768723
A112: ='MultiStrategy-Monthly'!A112 -> 105 | B112: ='MultiStrategy-Monthly'!B112 -> 2020-11-17 | C112: ='MultiStrategy-Monthly'!P112 -> 0.01424943 | D112: =D111*(1+$D$5*C112) -> 1376.179821 | E112: =E111*(1+$E$5*C112) -> 1603.977913 | F112: =F111*(1+$F$5*C112) -> 1861.345068
A113: ='MultiStrategy-Monthly'!A113 -> 106 | B113: ='MultiStrategy-Monthly'!B113 -> 2020-12-17 | C113: ='MultiStrategy-Monthly'!P113 -> 0.00827566896 | D113: =D112*(1+$D$5*C113) -> 1387.568629 | E113: =E112*(1+$E$5*C113) -> 1623.888899 | F113: =F112*(1+$F$5*C113) -> 1892.152819
A114: ='MultiStrategy-Monthly'!A114 -> 107 | B114: ='MultiStrategy-Monthly'!B114 -> 2021-01-17 | C114: ='MultiStrategy-Monthly'!P114 -> -0.0058097676 | D114: =D113*(1+$D$5*C114) -> 1379.507178 | E114: =E113*(1+$E$5*C114) -> 1609.737273 | F114: =F113*(1+$F$5*C114) -> 1870.166883
A115: ='MultiStrategy-Monthly'!A115 -> 108 | B115: ='MultiStrategy-Monthly'!B115 -> 2021-02-17 | C115: ='MultiStrategy-Monthly'!P115 -> 0.004549818 | D115: =D114*(1+$D$5*C115) -> 1385.783685 | E115: =E114*(1+$E$5*C115) -> 1620.72329 | F115: =F114*(1+$F$5*C115) -> 1887.184721
A116: ='MultiStrategy-Monthly'!A116 -> 109 | B116: ='MultiStrategy-Monthly'!B116 -> 2021-03-17 | C116: ='MultiStrategy-Monthly'!P116 -> 0.01384144632 | D116: =D115*(1+$D$5*C116) -> 1404.964935 | E116: =E115*(1+$E$5*C116) -> 1654.373022 | F116: =F115*(1+$F$5*C116) -> 1939.427453
A117: ='MultiStrategy-Monthly'!A117 -> 110 | B117: ='MultiStrategy-Monthly'!B117 -> 2021-04-17 | C117: ='MultiStrategy-Monthly'!P117 -> 0.01021878476 | D117: =D116*(1+$D$5*C117) -> 1419.321969 | E117: =E116*(1+$E$5*C117) -> 1679.731545 | F117: =F116*(1+$F$5*C117) -> 1979.064636
A118: ='MultiStrategy-Monthly'!A118 -> 111 | B118: ='MultiStrategy-Monthly'!B118 -> 2021-05-17 | C118: ='MultiStrategy-Monthly'!P118 -> 0.005222191104 | D118: =D117*(1+$D$5*C118) -> 1426.73394 | E118: =E117*(1+$E$5*C118) -> 1692.889363 | F118: =F117*(1+$F$5*C118) -> 1999.734744
A119: ='MultiStrategy-Monthly'!A119 -> 112 | B119: ='MultiStrategy-Monthly'!B119 -> 2021-06-17 | C119: ='MultiStrategy-Monthly'!P119 -> 0.005402983872 | D119: =D118*(1+$D$5*C119) -> 1434.44256 | E119: =E118*(1+$E$5*C119) -> 1706.609344 | F119: =F118*(1+$F$5*C119) -> 2021.343813
A120: ='MultiStrategy-Monthly'!A120 -> 113 | B120: ='MultiStrategy-Monthly'!B120 -> 2021-07-17 | C120: ='MultiStrategy-Monthly'!P120 -> -0.00266789328 | D120: =D119*(1+$D$5*C120) -> 1430.615621 | E120: =E119*(1+$E$5*C120) -> 1699.779767 | F120: =F119*(1+$F$5*C120) -> 2010.558354
A121: ='MultiStrategy-Monthly'!A121 -> 114 | B121: ='MultiStrategy-Monthly'!B121 -> 2021-08-17 | C121: ='MultiStrategy-Monthly'!P121 -> 0.004566505502 | D121: =D120*(1+$D$5*C121) -> 1437.148535 | E121: =E120*(1+$E$5*C121) -> 1711.422847 | F121: =F120*(1+$F$5*C121) -> 2028.920805
A122: ='MultiStrategy-Monthly'!A122 -> 115 | B122: ='MultiStrategy-Monthly'!B122 -> 2021-09-17 | C122: ='MultiStrategy-Monthly'!P122 -> 0.005588576448 | D122: =D121*(1+$D$5*C122) -> 1445.180149 | E122: =E121*(1+$E$5*C122) -> 1725.769473 | F122: =F121*(1+$F$5*C122) -> 2051.598363
A123: ='MultiStrategy-Monthly'!A123 -> 116 | B123: ='MultiStrategy-Monthly'!B123 -> 2021-10-17 | C123: ='MultiStrategy-Monthly'!P123 -> 0.006018959232 | D123: =D122*(1+$D$5*C123) -> 1453.87863 | E123: =E122*(1+$E$5*C123) -> 1741.350478 | F123: =F122*(1+$F$5*C123) -> 2076.295337
A124: ='MultiStrategy-Monthly'!A124 -> 117 | B124: ='MultiStrategy-Monthly'!B124 -> 2021-11-17 | C124: ='MultiStrategy-Monthly'!P124 -> -0.0079396824 | D124: =D123*(1+$D$5*C124) -> 1442.335295 | E124: =E123*(1+$E$5*C124) -> 1720.611823 | F124: =F123*(1+$F$5*C124) -> 2043.325086
A125: ='MultiStrategy-Monthly'!A125 -> 118 | B125: ='MultiStrategy-Monthly'!B125 -> 2021-12-17 | C125: ='MultiStrategy-Monthly'!P125 -> 0.01801502254 | D125: =D124*(1+$D$5*C125) -> 1468.318998 | E125: =E124*(1+$E$5*C125) -> 1767.107114 | F125: =F124*(1+$F$5*C125) -> 2116.946181
A126: ='MultiStrategy-Monthly'!A126 -> 119 | B126: ='MultiStrategy-Monthly'!B126 -> 2022-01-17 | C126: ='MultiStrategy-Monthly'!P126 -> -0.01277748888 | D126: =D125*(1+$D$5*C126) -> 1449.557568 | E126: =E125*(1+$E$5*C126) -> 1733.238327 | F126: =F125*(1+$F$5*C126) -> 2062.847668
A127: ='MultiStrategy-Monthly'!A127 -> 120 | B127: ='MultiStrategy-Monthly'!B127 -> 2022-02-17 | C127: ='MultiStrategy-Monthly'!P127 -> 0.00033598656 | D127: =D126*(1+$D$5*C127) -> 1450.0446 | E127: =E126*(1+$E$5*C127) -> 1734.111844 | F127: =F126*(1+$F$5*C127) -> 2064.233847
A128: ='MultiStrategy-Monthly'!A128 -> 121 | B128: ='MultiStrategy-Monthly'!B128 -> 2022-03-17 | C128: ='MultiStrategy-Monthly'!P128 -> -0.00449582016 | D128: =D127*(1+$D$5*C128) -> 1443.52546 | E128: =E127*(1+$E$5*C128) -> 1722.417462 | F128: =F127*(1+$F$5*C128) -> 2045.672998
A129: ='MultiStrategy-Monthly'!A129 -> 122 | B129: ='MultiStrategy-Monthly'!B129 -> 2022-04-17 | C129: ='MultiStrategy-Monthly'!P129 -> -0.01043558256 | D129: =D128*(1+$D$5*C129) -> 1428.461431 | E129: =E128*(1+$E$5*C129) -> 1695.455817 | F129: =F128*(1+$F$5*C129) -> 2002.977419
A130: ='MultiStrategy-Monthly'!A130 -> 123 | B130: ='MultiStrategy-Monthly'!B130 -> 2022-05-17 | C130: ='MultiStrategy-Monthly'!P130 -> 0.00914763408 | D130: =D129*(1+$D$5*C130) -> 1441.528474 | E130: =E129*(1+$E$5*C130) -> 1718.719931 | F130: =F129*(1+$F$5*C130) -> 2039.622428
A131: ='MultiStrategy-Monthly'!A131 -> 124 | B131: ='MultiStrategy-Monthly'!B131 -> 2022-06-17 | C131: ='MultiStrategy-Monthly'!P131 -> -0.00330586776 | D131: =D130*(1+$D$5*C131) -> 1436.762971 | E131: =E130*(1+$E$5*C131) -> 1710.19714 | F131: =F130*(1+$F$5*C131) -> 2026.136984
A132: ='MultiStrategy-Monthly'!A132 -> 125 | B132: ='MultiStrategy-Monthly'!B132 -> 2022-07-17 | C132: ='MultiStrategy-Monthly'!P132 -> 0.0155793768 | D132: =D131*(1+$D$5*C132) -> 1459.146843 | E132: =E131*(1+$E$5*C132) -> 1750.162849 | F132: =F131*(1+$F$5*C132) -> 2089.268887
A133: ='MultiStrategy-Monthly'!A133 -> 126 | B133: ='MultiStrategy-Monthly'!B133 -> 2022-08-17 | C133: ='MultiStrategy-Monthly'!P133 -> -0.0027298908 | D133: =D132*(1+$D$5*C133) -> 1455.163531 | E133: =E132*(1+$E$5*C133) -> 1742.996218 | F133: =F132*(1+$F$5*C133) -> 2077.861936
A134: ='MultiStrategy-Monthly'!A134 -> 127 | B134: ='MultiStrategy-Monthly'!B134 -> 2022-09-17 | C134: ='MultiStrategy-Monthly'!P134 -> -0.02177112912 | D134: =D133*(1+$D$5*C134) -> 1423.482978 | E134: =E133*(1+$E$5*C134) -> 1686.075725 | F134: =F133*(1+$F$5*C134) -> 1987.387135
A135: ='MultiStrategy-Monthly'!A135 -> 128 | B135: ='MultiStrategy-Monthly'!B135 -> 2022-10-17 | C135: ='MultiStrategy-Monthly'!P135 -> 0.02670293184 | D135: =D134*(1+$D$5*C135) -> 1461.494147 | E135: =E134*(1+$E$5*C135) -> 1753.610473 | F135: =F134*(1+$F$5*C135) -> 2093.525261
A136: ='MultiStrategy-Monthly'!A136 -> 129 | B136: ='MultiStrategy-Monthly'!B136 -> 2022-11-17 | C136: ='MultiStrategy-Monthly'!P136 -> 0.01639334459 | D136: =D135*(1+$D$5*C136) -> 1485.452924 | E136: =E135*(1+$E$5*C136) -> 1796.731784 | F136: =F135*(1+$F$5*C136) -> 2162.165023
A137: ='MultiStrategy-Monthly'!A137 -> 130 | B137: ='MultiStrategy-Monthly'!B137 -> 2022-12-17 | C137: ='MultiStrategy-Monthly'!P137 -> -0.0012399504 | D137: =D136*(1+$D$5*C137) -> 1483.611036 | E137: =E136*(1+$E$5*C137) -> 1793.389996 | F137: =F136*(1+$F$5*C137) -> 2156.803068
A138: ='MultiStrategy-Monthly'!A138 -> 131 | B138: ='MultiStrategy-Monthly'!B138 -> 2023-01-17 | C138: ='MultiStrategy-Monthly'!P138 -> 0.009184802146 | D138: =D137*(1+$D$5*C138) -> 1497.23771 | E138: =E137*(1+$E$5*C138) -> 1818.097895 | F138: =F137*(1+$F$5*C138) -> 2196.422687
A139: ='MultiStrategy-Monthly'!A139 -> 132 | B139: ='MultiStrategy-Monthly'!B139 -> 2023-02-17 | C139: ='MultiStrategy-Monthly'!P139 -> 0.001163153472 | D139: =D138*(1+$D$5*C139) -> 1498.979227 | E139: =E138*(1+$E$5*C139) -> 1821.269985 | F139: =F138*(1+$F$5*C139) -> 2201.532241
A140: ='MultiStrategy-Monthly'!A140 -> 133 | B140: ='MultiStrategy-Monthly'!B140 -> 2023-03-17 | C140: ='MultiStrategy-Monthly'!P140 -> 0.00528778848 | D140: =D139*(1+$D$5*C140) -> 1506.905513 | E140: =E139*(1+$E$5*C140) -> 1835.715721 | F140: =F139*(1+$F$5*C140) -> 2224.814714
A141: ='MultiStrategy-Monthly'!A141 -> 134 | B141: ='MultiStrategy-Monthly'!B141 -> 2023-04-17 | C141: ='MultiStrategy-Monthly'!P141 -> 0.005062197504 | D141: =D140*(1+$D$5*C141) -> 1514.533766 | E141: =E140*(1+$E$5*C141) -> 1849.654854 | F141: =F140*(1+$F$5*C141) -> 2247.339617
A142: ='MultiStrategy-Monthly'!A142 -> 135 | B142: ='MultiStrategy-Monthly'!B142 -> 2023-05-17 | C142: ='MultiStrategy-Monthly'!P142 -> 0.001180752768 | D142: =D141*(1+$D$5*C142) -> 1516.322056 | E142: =E141*(1+$E$5*C142) -> 1852.930832 | F142: =F141*(1+$F$5*C142) -> 2252.646722
A143: ='MultiStrategy-Monthly'!A143 -> 136 | B143: ='MultiStrategy-Monthly'!B143 -> 2023-06-17 | C143: ='MultiStrategy-Monthly'!P143 -> 0.0204391824 | D143: =D142*(1+$D$5*C143) -> 1547.314439 | E143: =E142*(1+$E$5*C143) -> 1909.739418 | F143: =F142*(1+$F$5*C143) -> 2344.731237
A144: ='MultiStrategy-Monthly'!A144 -> 137 | B144: ='MultiStrategy-Monthly'!B144 -> 2023-07-17 | C144: ='MultiStrategy-Monthly'!P144 -> -0.00051397944 | D144: =D143*(1+$D$5*C144) -> 1546.519151 | E144: =E143*(1+$E$5*C144) -> 1908.267068 | F144: =F143*(1+$F$5*C144) -> 2342.320949
A145: ='MultiStrategy-Monthly'!A145 -> 138 | B145: ='MultiStrategy-Monthly'!B145 -> 2023-08-17 | C145: ='MultiStrategy-Monthly'!P145 -> 0.00571289228 | D145: =D144*(1+$D$5*C145) -> 1555.354248 | E145: =E144*(1+$E$5*C145) -> 1924.619655 | F145: =F144*(1+$F$5*C145) -> 2369.083804
A146: ='MultiStrategy-Monthly'!A146 -> 139 | B146: ='MultiStrategy-Monthly'!B146 -> 2023-09-17 | C146: ='MultiStrategy-Monthly'!P146 -> -0.0113695452 | D146: =D145*(1+$D$5*C146) -> 1537.670578 | E146: =E145*(1+$E$5*C146) -> 1891.796579 | F146: =F145*(1+$F$5*C146) -> 2315.212993
A147: ='MultiStrategy-Monthly'!A147 -> 140 | B147: ='MultiStrategy-Monthly'!B147 -> 2023-10-17 | C147: ='MultiStrategy-Monthly'!P147 -> 0.00398184072 | D147: =D146*(1+$D$5*C147) -> 1543.793337 | E147: =E146*(1+$E$5*C147) -> 1903.095828 | F147: =F146*(1+$F$5*C147) -> 2333.650612
A148: ='MultiStrategy-Monthly'!A148 -> 141 | B148: ='MultiStrategy-Monthly'!B148 -> 2023-11-17 | C148: ='MultiStrategy-Monthly'!P148 -> 0.01496545762 | D148: =D147*(1+$D$5*C148) -> 1566.896911 | E148: =E147*(1+$E$5*C148) -> 1945.816878 | F148: =F147*(1+$F$5*C148) -> 2403.49891
A149: ='MultiStrategy-Monthly'!A149 -> 142 | B149: ='MultiStrategy-Monthly'!B149 -> 2023-12-17 | C149: ='MultiStrategy-Monthly'!P149 -> 0.002534298624 | D149: =D148*(1+$D$5*C149) -> 1570.867896 | E149: =E148*(1+$E$5*C149) -> 1953.2138 | F149: =F148*(1+$F$5*C149) -> 2415.681278
A150: ='MultiStrategy-Monthly'!A150 -> 143 | B150: ='MultiStrategy-Monthly'!B150 -> 2024-01-17 | C150: ='MultiStrategy-Monthly'!P150 -> 0.003859045632 | D150: =D149*(1+$D$5*C150) -> 1576.929947 | E150: =E149*(1+$E$5*C150) -> 1964.520112 | F150: =F149*(1+$F$5*C150) -> 2434.325727
A151: ='MultiStrategy-Monthly'!A151 -> 144 | B151: ='MultiStrategy-Monthly'!B151 -> 2024-02-17 | C151: ='MultiStrategy-Monthly'!P151 -> 0.003715051392 | D151: =D150*(1+$D$5*C151) -> 1582.788322 | E151: =E150*(1+$E$5*C151) -> 1975.467551 | F151: =F150*(1+$F$5*C151) -> 2452.413017
A152: ='MultiStrategy-Monthly'!A152 -> 145 | B152: ='MultiStrategy-Monthly'!B152 -> 2024-03-17 | C152: ='MultiStrategy-Monthly'!P152 -> -0.00166393344 | D152: =D151*(1+$D$5*C152) -> 1580.154668 | E152: =E151*(1+$E$5*C152) -> 1970.536982 | F152: =F151*(1+$F$5*C152) -> 2444.251713
A153: ='MultiStrategy-Monthly'!A153 -> 146 | B153: ='MultiStrategy-Monthly'!B153 -> 2024-04-17 | C153: ='MultiStrategy-Monthly'!P153 -> -0.00237790488 | D153: =D152*(1+$D$5*C153) -> 1576.397211 | E153: =E152*(1+$E$5*C153) -> 1963.508357 | F153: =F152*(1+$F$5*C153) -> 2432.627317
A154: ='MultiStrategy-Monthly'!A154 -> 147 | B154: ='MultiStrategy-Monthly'!B154 -> 2024-05-17 | C154: ='MultiStrategy-Monthly'!P154 -> 0.01023911069 | D154: =D153*(1+$D$5*C154) -> 1592.538116 | E154: =E153*(1+$E$5*C154) -> 1993.665226 | F154: =F153*(1+$F$5*C154) -> 2482.443198
A155: ='MultiStrategy-Monthly'!A155 -> 148 | B155: ='MultiStrategy-Monthly'!B155 -> 2024-06-17 | C155: ='MultiStrategy-Monthly'!P155 -> 0.003764649408 | D155: =D154*(1+$D$5*C155) -> 1598.533464 | E155: =E154*(1+$E$5*C155) -> 2004.923402 | F155: =F154*(1+$F$5*C155) -> 2501.134254
